BODY NAME,,SERVICE AREA,EXPENSES TYPE,EXPENSE CODE,DATE,TRANSACTION NO.,AMOUNT, SUPPLIER NAME,SUPPLIER ID
EFDC,PH100,PRIVATE SECTOR HOUSING,GRANTS GENERAL,3720,05-Apr-16,18242,30000.00,ARLINGTON BUILDERS LTD,ARL002
EFDC,PH100,PRIVATE SECTOR HOUSING,GRANTS GENERAL,3720,05-Apr-16,18252,1743.02,STANNAH LIFT SERVICES LTD,STA002
EFDC,YB200,SUPERVISION/MANAGEMENT SPECIAL,CONTRIBUTIONS,3740,05-Apr-16,18272,500.00,MR ADAM P RAYNER,5348P
EFDC,IR100,INTEREST RECEIVABLE,INTEREST RECIEVABLE,7900,08-Apr-16,18315,-12492.70,BIFFA MUNICIPAL LTD,BIF990
EFDC,YB400,SUPERVISION/MANAGEMENT SPECIAL,BUILDING MAINTENANCE,1010,08-Apr-16,18315,16351.86,BIFFA MUNICIPAL LTD,BIF990
EFDC,PS100,CAR PARKING,CLEANSING CONTRACTORS,4320,08-Apr-16,18315,2418.00,BIFFA MUNICIPAL LTD,BIF990
EFDC,EH142,ENVIRONMENTAL HEALTH,CLEANSING CONTRACTORS,4320,08-Apr-16,18315,1303.60,BIFFA MUNICIPAL LTD,BIF990
EFDC,SC100,WASTE MANAGEMENT,CLEANSING CONTRACTORS,4320,08-Apr-16,18315,93409.37,BIFFA MUNICIPAL LTD,BIF990
EFDC,WC100,WASTE MANAGEMENT,CLEANSING CONTRACTORS,4320,08-Apr-16,18315,98390.78,BIFFA MUNICIPAL LTD,BIF990
EFDC,WC200,WASTE MANAGEMENT,CLEANSING CONTRACTORS,4320,08-Apr-16,18315,199099.93,BIFFA MUNICIPAL LTD,BIF990
EFDC,RS301,NORTH WEALD CENTRE,LICENCES,3870,12-Apr-16,18329,1900.00,CIVIL AVIATION AUTHORITY,203P
EFDC,LT110,LOCAL TAXATION,LEGAL EXPENSES,3680,15-Apr-16,18426,33.00,HER MAJESTY'S COURT SERVICE,HER990
EFDC,LT120,LOCAL TAXATION,LEGAL EXPENSES,3680,15-Apr-16,18426,2037.00,HER MAJESTY'S COURT SERVICE,HER990
EFDC,TO100,LAND & PROPERTY,LICENSES,2360,19-Apr-16,18463,2030.00,POST OFFICE LTD,29P
EFDC,32140,OTHER SUPPORT SERVICES (HR),COMMISSION,9320,19-Apr-16,18468,-43.87,UNISON,UNI001
EFDC,RS301,NORTH WEALD CENTRE,FEES & CHARGES,9210,19-Apr-16,18475,750.00,EXTREME EVENTS EUROPE LTD,322P
EFDC,PH100,PRIVATE SECTOR HOUSING,GRANTS GENERAL,3720,19-Apr-16,18487,5380.00,STANNAH LIFT SERVICES LTD,STA002
EFDC,NR100,NON RING FENCED GOVT GRANTS,GOVERNMENT GRANTS,7800,21-Apr-16,18571,121769.00,DEPT. FOR COMMUNITIES & LOCAL GOVERNMENT,DEP993
EFDC,CT100,COUNCIL TAX INCOME,CONTRIBUTIONS FROM OTHER L.A'S,9060,21-Apr-16,18573,-2185.00,ESSEX FIRE AUTHORITY,ESS992
EFDC,BA100,HOUSING BENEFITS,CONTRIBUTIONS FROM OTHER L.A'S,9060,21-Apr-16,18573,-47.00,ESSEX FIRE AUTHORITY,ESS992
EFDC,BA100,HOUSING BENEFITS,CONTRIBUTIONS FROM OTHER L.A'S,9060,21-Apr-16,18573,-1497.00,ESSEX FIRE AUTHORITY,ESS992
EFDC,CF100,COLLECTION FUND COUNCIL TAX,ESSEX FIRE PRECEPT,X116,21-Apr-16,18573,294734.00,ESSEX FIRE AUTHORITY,ESS992
EFDC,CF200,COLLECTION FUND NON DOMESTIC R,ESSEX FIRE S/D,X134,21-Apr-16,18573,-1134.00,ESSEX FIRE AUTHORITY,ESS992
EFDC,CF200,COLLECTION FUND NON DOMESTIC R,ESSEX FIRE PRECEPT,X116,21-Apr-16,18573,29780.00,ESSEX FIRE AUTHORITY,ESS992
EFDC,CT100,COUNCIL TAX INCOME,CONTRIBUTIONS FROM OTHER L.A'S,9060,21-Apr-16,18574,-4841.41,ESSEX POLICE AUTHORITY,ESS991
EFDC,BA100,HOUSING BENEFITS,CONTRIBUTIONS FROM OTHER L.A'S,9060,21-Apr-16,18574,-310.85,ESSEX POLICE AUTHORITY,ESS991
EFDC,BA100,HOUSING BENEFITS,CONTRIBUTIONS FROM OTHER L.A'S,9060,21-Apr-16,18574,-1675.41,ESSEX POLICE AUTHORITY,ESS991
EFDC,BA100,HOUSING BENEFITS,CONTRIBUTIONS FROM OTHER L.A'S,9060,21-Apr-16,18574,-1575.06,ESSEX POLICE AUTHORITY,ESS991
EFDC,CF100,COLLECTION FUND COUNCIL TAX,ESSEX POLICE PRECEPT,X115,21-Apr-16,18574,662368.00,ESSEX POLICE AUTHORITY,ESS991
EFDC,CT100,COUNCIL TAX INCOME,CONTRIBUTIONS FROM OTHER L.A'S,9060,21-Apr-16,18575,-35755.00,ESSEX COUNTY COUNCIL,ESS990
EFDC,CF100,COLLECTION FUND COUNCIL TAX,ESSEX COUNTY COUNCIL PRECEPT,X114,21-Apr-16,18575,4921509.00,ESSEX COUNTY COUNCIL,ESS990
EFDC,33020,OTHER ACTIVITIES,BANKING AND CASH COLLECTION,3440,29-Apr-16,18655,5996.57,CAPITA BUSINESS SERVICES,CAP990
EFDC,YB400,SUPERVISION/MANAGEMENT SPECIAL,OTHER MISCELLANEOUS EXPENSES,3850,29-Apr-16,18656,130.10,NATWEST BANK PLC,NAT991
EFDC,YA100,SUPERVISION/MANAGEMENT GENERAL,PUBLICITY,3360,29-Apr-16,18656,257.75,NATWEST BANK PLC,NAT991
EFDC,32030,OTHER SUPPORT SERVICES (HR),TRAINING EXPENSES,0310,29-Apr-16,18656,98.00,NATWEST BANK PLC,NAT991
EFDC,34160,COMMUNITIES SUPPORT SERVICES,PUBLICITY,3360,29-Apr-16,18656,190.83,NATWEST BANK PLC,NAT991
EFDC,33080,OTHER ACTIVITIES,MATERIALS,3080,29-Apr-16,18656,95.18,NATWEST BANK PLC,NAT991
EFDC,33080,OTHER ACTIVITIES,TRAINING EXPENSES,0310,29-Apr-16,18656,21.90,NATWEST BANK PLC,NAT991
EFDC,33080,OTHER ACTIVITIES,TRAINING EXPENSES,0310,29-Apr-16,18656,89.74,NATWEST BANK PLC,NAT991
EFDC,36200,OTHER ACTIVITIES,EQUIPMENT - NEW,3010,29-Apr-16,18656,22.76,NATWEST BANK PLC,NAT991
EFDC,36200,OTHER ACTIVITIES,TRAINING EXPENSES,0310,29-Apr-16,18656,42.00,NATWEST BANK PLC,NAT991
EFDC,EI131,FORWARD PLANNING & ECONOMIC,CONTRIBUTIONS,3740,29-Apr-16,18656,12.00,NATWEST BANK PLC,NAT991
EFDC,EI131,FORWARD PLANNING & ECONOMIC,CONTRIBUTIONS,3740,29-Apr-16,18656,80.00,NATWEST BANK PLC,NAT991
EFDC,CD112,SPORTS DEVELOPMENT & OTHER,TRAINING EXPENSES,0310,29-Apr-16,18656,102.00,NATWEST BANK PLC,NAT991
EFDC,CH117,HERITAGE LOTTERY FUND,PUBLICITY,3360,29-Apr-16,18656,40.00,NATWEST BANK PLC,NAT991
EFDC,YA200,SUPERVISION/MANAGEMENT GENERAL,LEGAL EXPENSES,3680,29-Apr-16,18658,105.00,NATWEST BANK PLC,NAT991
EFDC,42520,GOVERNANCE SUPPORT SERVICES,TRAINING EXPENSES,0310,29-Apr-16,18658,671.50,NATWEST BANK PLC,NAT991
EFDC,32060,OTHER SUPPORT SERVICES (HR),BOOKS & PUBLICATIONS,3350,29-Apr-16,18658,55.56,NATWEST BANK PLC,NAT991
EFDC,HL100,HOMELESSNESS,LEGAL EXPENSES,3680,29-Apr-16,18658,240.00,NATWEST BANK PLC,NAT991
EFDC,PR100,CAPITAL POOLING,PAYMENT TO CENTRAL GOVERNMENT,7050,05-May-16,18712,214063.83,GBS RE D C L G,DEP990
EFDC,PR100,CAPITAL POOLING,PAYMENT TO CENTRAL GOVERNMENT,7050,05-May-16,18713,621.47,GBS RE D C L G,DEP990
EFDC,YA200,SUPERVISION/MANAGEMENT GENERAL,LAND REGISTRY FEES,3425,05-May-16,18715,6.00,LAND REGISTRY,LAN992
EFDC,05245,LEASEHOLDERS ADMIN,LAND REGISTRY FEES,3425,05-May-16,18715,123.00,LAND REGISTRY,LAN992
EFDC,PS100,CAR PARKING,LAND REGISTRY FEES,3425,05-May-16,18715,9.00,LAND REGISTRY,LAN992
EFDC,32060,OTHER SUPPORT SERVICES (HR),LAND REGISTRY FEES,3425,05-May-16,18715,342.00,LAND REGISTRY,LAN992
EFDC,32220,OTHER SUPPORT SERVICES (HR),LAND REGISTRY FEES,3425,05-May-16,18715,12.00,LAND REGISTRY,LAN992
EFDC,EH110,ENVIRONMENTAL HEALTH,LAND REGISTRY FEES,3425,05-May-16,18715,27.00,LAND REGISTRY,LAN992
EFDC,33055,OTHER ACTIVITIES,LAND REGISTRY FEES,3425,05-May-16,18715,15.00,LAND REGISTRY,LAN992
EFDC,EH112,LAND DRAINAGE/SEWERAGE,LAND REGISTRY FEES,3425,05-May-16,18715,42.00,LAND REGISTRY,LAN992
EFDC,LT120,LOCAL TAXATION,LAND REGISTRY FEES,3425,05-May-16,18715,144.00,LAND REGISTRY,LAN992
EFDC,31120,CORPORATE SUPPORT SERVICES,LAND REGISTRY FEES,3425,05-May-16,18715,60.00,LAND REGISTRY,LAN992
EFDC,UO100,IAS19 PENSION  HOLDING ACCOUNT,P/FUND CURRENT SERVICE COST,0340,05-May-16,18716,1498760.00,ESSEX COUNTY COUNCIL,ESS990
EFDC,CF200,COLLECTION FUND NON DOMESTIC R,NDR PAYMENT TO CENTRAL GOVT,X153,05-May-16,18718,928343.00,ESSEX COUNTY COUNCIL,ESS990
EFDC,CF200,COLLECTION FUND NON DOMESTIC R,ESSEX COUNTY COUNCIL S/D,X132,05-May-16,18718,-11023.00,ESSEX COUNTY COUNCIL,ESS990
EFDC,CF200,COLLECTION FUND NON DOMESTIC R,ESSEX COUNTY COUNCIL PRECEPT,X114,05-May-16,18718,289459.00,ESSEX COUNTY COUNCIL,ESS990
EFDC,ED100,FORWARD PLANNING & ECONOMIC,GRANTS TO VOLUNTARY ORGS,3710,10-May-16,18734,2800.00,NORTH WEALD CRICKET CLUB,1457P
EFDC,EH120,PRIVATE SECTOR HOUSING,LICENSING INCOME,9370,10-May-16,18739,936.00,FIRE SAFE SOLUTIONS LIMITED,5448P
EFDC,UO100,IAS19 PENSION  HOLDING ACCOUNT,P/FUND CURRENT SERVICE COST,0340,13-May-16,18790,26315.85,ESSEX COUNTY COUNCIL,ESS990
EFDC,IR100,INTEREST RECEIVABLE,INTEREST RECIEVABLE,7900,13-May-16,18791,-12236.32,BIFFA MUNICIPAL LTD,BIF990
EFDC,YB400,SUPERVISION/MANAGEMENT SPECIAL,BUILDING MAINTENANCE,1010,13-May-16,18791,16351.86,BIFFA MUNICIPAL LTD,BIF990
EFDC,PS100,CAR PARKING,CLEANSING CONTRACTORS,4320,13-May-16,18791,2418.00,BIFFA MUNICIPAL LTD,BIF990
EFDC,EH142,ENVIRONMENTAL HEALTH,CLEANSING CONTRACTORS,4320,13-May-16,18791,1303.60,BIFFA MUNICIPAL LTD,BIF990
EFDC,SC100,WASTE MANAGEMENT,CLEANSING CONTRACTORS,4320,13-May-16,18791,93409.37,BIFFA MUNICIPAL LTD,BIF990
EFDC,WC100,WASTE MANAGEMENT,CLEANSING CONTRACTORS,4320,13-May-16,18791,98390.78,BIFFA MUNICIPAL LTD,BIF990
EFDC,WC200,WASTE MANAGEMENT,CLEANSING CONTRACTORS,4320,13-May-16,18791,199099.93,BIFFA MUNICIPAL LTD,BIF990
EFDC,TO100,LAND & PROPERTY,LICENSES,2360,17-May-16,18814,1150.00,POST OFFICE LTD,5023P
EFDC,YA200,SUPERVISION/MANAGEMENT GENERAL,MATERIALS,3080,17-May-16,18822,23.75,EPPING FOREST DISTRICT COUNCIL,EPP002
EFDC,42510,GOVERNANCE SUPPORT SERVICES,CIVIC HOSPITALITY,3840,17-May-16,18822,30.50,EPPING FOREST DISTRICT COUNCIL,EPP002
EFDC,42510,GOVERNANCE SUPPORT SERVICES,CONFERENCE EXPENSES,3620,17-May-16,18822,10.00,EPPING FOREST DISTRICT COUNCIL,EPP002
EFDC,42520,GOVERNANCE SUPPORT SERVICES,EQUIPMENT - NEW,3010,17-May-16,18822,4.99,EPPING FOREST DISTRICT COUNCIL,EPP002
EFDC,42510,GOVERNANCE SUPPORT SERVICES,OTHER TRAVEL EXPENSES,2850,17-May-16,18822,3.50,EPPING FOREST DISTRICT COUNCIL,EPP002
EFDC,42510,GOVERNANCE SUPPORT SERVICES,OTHER TRAVEL EXPENSES,2850,17-May-16,18822,22.70,EPPING FOREST DISTRICT COUNCIL,EPP002
EFDC,CM100,CORPORATE ACTIVITIES,OTHER MISCELLANEOUS EXPENSES,3850,17-May-16,18822,35.94,EPPING FOREST DISTRICT COUNCIL,EPP002
EFDC,32060,OTHER SUPPORT SERVICES (HR),OTHER TRAVEL EXPENSES,2850,17-May-16,18822,13.50,EPPING FOREST DISTRICT COUNCIL,EPP002
EFDC,32060,OTHER SUPPORT SERVICES (HR),OTHER TRAVEL EXPENSES,2850,17-May-16,18822,6.60,EPPING FOREST DISTRICT COUNCIL,EPP002
EFDC,32060,OTHER SUPPORT SERVICES (HR),OTHER TRAVEL EXPENSES,2850,17-May-16,18822,11.67,EPPING FOREST DISTRICT COUNCIL,EPP002
EFDC,32180,OTHER SUPPORT SERVICES (HR),OTHER TRAVEL EXPENSES,2850,17-May-16,18822,48.00,EPPING FOREST DISTRICT COUNCIL,EPP002
EFDC,34160,COMMUNITIES SUPPORT SERVICES,OTHER TRAVEL EXPENSES,2850,17-May-16,18822,8.33,EPPING FOREST DISTRICT COUNCIL,EPP002
EFDC,34160,COMMUNITIES SUPPORT SERVICES,OTHER TRAVEL EXPENSES,2850,17-May-16,18822,9.10,EPPING FOREST DISTRICT COUNCIL,EPP002
EFDC,35900,ENVIRONMENTAL OTHER,STATIONERY,3320,17-May-16,18822,28.24,EPPING FOREST DISTRICT COUNCIL,EPP002
EFDC,35013,ENVIRONMENTAL OTHER,EQUIPMENT - NEW,3010,17-May-16,18822,38.95,EPPING FOREST DISTRICT COUNCIL,EPP002
EFDC,35013,ENVIRONMENTAL OTHER,EQUIPMENT - NEW,3010,17-May-16,18822,13.12,EPPING FOREST DISTRICT COUNCIL,EPP002
EFDC,33080,OTHER ACTIVITIES,MATERIALS,3080,17-May-16,18822,7.07,EPPING FOREST DISTRICT COUNCIL,EPP002
EFDC,33055,OTHER ACTIVITIES,OTHER TRAVEL EXPENSES,2850,17-May-16,18822,6.75,EPPING FOREST DISTRICT COUNCIL,EPP002
EFDC,33075,OTHER ACTIVITIES,OTHER TRAVEL EXPENSES,2850,17-May-16,18822,36.30,EPPING FOREST DISTRICT COUNCIL,EPP002
EFDC,33075,OTHER ACTIVITIES,OTHER TRAVEL EXPENSES,2850,17-May-16,18822,3.75,EPPING FOREST DISTRICT COUNCIL,EPP002
EFDC,33080,OTHER ACTIVITIES,OTHER TRAVEL EXPENSES,2850,17-May-16,18822,4.75,EPPING FOREST DISTRICT COUNCIL,EPP002
EFDC,33080,OTHER ACTIVITIES,OTHER TRAVEL EXPENSES,2850,17-May-16,18822,27.50,EPPING FOREST DISTRICT COUNCIL,EPP002
EFDC,33080,OTHER ACTIVITIES,OTHER TRAVEL EXPENSES,2850,17-May-16,18822,47.40,EPPING FOREST DISTRICT COUNCIL,EPP002
EFDC,36200,OTHER ACTIVITIES,BOOKS & PUBLICATIONS,3350,17-May-16,18822,45.99,EPPING FOREST DISTRICT COUNCIL,EPP002
EFDC,41100,OTHER ACTIVITIES,STATIONERY,3320,17-May-16,18822,3.48,EPPING FOREST DISTRICT COUNCIL,EPP002
EFDC,36900,OTHER ACTIVITIES,OTHER TRAVEL EXPENSES,2850,17-May-16,18822,2.92,EPPING FOREST DISTRICT COUNCIL,EPP002
EFDC,36900,OTHER ACTIVITIES,OTHER TRAVEL EXPENSES,2850,17-May-16,18822,11.83,EPPING FOREST DISTRICT COUNCIL,EPP002
EFDC,36200,OTHER ACTIVITIES,TRAINING EXPENSES,0310,17-May-16,18822,27.20,EPPING FOREST DISTRICT COUNCIL,EPP002
EFDC,36200,OTHER ACTIVITIES,TRAINING EXPENSES,0310,17-May-16,18822,35.99,EPPING FOREST DISTRICT COUNCIL,EPP002
EFDC,36200,OTHER ACTIVITIES,TRAINING EXPENSES,0310,17-May-16,18822,12.00,EPPING FOREST DISTRICT COUNCIL,EPP002
EFDC,36200,OTHER ACTIVITIES,TRAINING EXPENSES,0310,17-May-16,18822,12.00,EPPING FOREST DISTRICT COUNCIL,EPP002
EFDC,36200,OTHER ACTIVITIES,TRAINING EXPENSES,0310,17-May-16,18822,22.70,EPPING FOREST DISTRICT COUNCIL,EPP002
EFDC,36900,OTHER ACTIVITIES,COMMITTEE ATTENDANCE,0140,17-May-16,18822,9.41,EPPING FOREST DISTRICT COUNCIL,EPP002
EFDC,EH112,LAND DRAINAGE/SEWERAGE,OTHER MAINTENANCE,1050,17-May-16,18822,47.50,EPPING FOREST DISTRICT COUNCIL,EPP002
EFDC,DR140,MEMBER ACTIVITIES,OTHER MISCELLANEOUS EXPENSES,3850,17-May-16,18822,41.25,EPPING FOREST DISTRICT COUNCIL,EPP002
EFDC,EI131,FORWARD PLANNING & ECONOMIC,MATERIALS,3080,17-May-16,18822,24.99,EPPING FOREST DISTRICT COUNCIL,EPP002
EFDC,EI131,FORWARD PLANNING & ECONOMIC,EQUIPMENT - MAINTENANCE,3030,17-May-16,18822,17.50,EPPING FOREST DISTRICT COUNCIL,EPP002
EFDC,EI131,FORWARD PLANNING & ECONOMIC,EQUIPMENT - NEW,3010,17-May-16,18822,29.16,EPPING FOREST DISTRICT COUNCIL,EPP002
EFDC,EI131,FORWARD PLANNING & ECONOMIC,EQUIPMENT - NEW,3010,17-May-16,18822,15.00,EPPING FOREST DISTRICT COUNCIL,EPP002
EFDC,EI131,FORWARD PLANNING & ECONOMIC,EQUIPMENT - NEW,3010,17-May-16,18822,33.42,EPPING FOREST DISTRICT COUNCIL,EPP002
EFDC,EI131,FORWARD PLANNING & ECONOMIC,FUEL,2330,17-May-16,18822,29.58,EPPING FOREST DISTRICT COUNCIL,EPP002
EFDC,37100,PLANNING OTHER,OTHER TRAVEL EXPENSES,2850,17-May-16,18822,24.67,EPPING FOREST DISTRICT COUNCIL,EPP002
EFDC,CY100,SAFER COMMUNITIES,EQUIPMENT - NEW,3010,17-May-16,18822,14.16,EPPING FOREST DISTRICT COUNCIL,EPP002
EFDC,CY100,SAFER COMMUNITIES,OTHER TRAVEL EXPENSES,2850,17-May-16,18822,36.67,EPPING FOREST DISTRICT COUNCIL,EPP002
EFDC,44100,FINANCE SUPPORT SERVICES,OTHER TRAVEL EXPENSES,2850,17-May-16,18822,6.00,EPPING FOREST DISTRICT COUNCIL,EPP002
EFDC,44100,FINANCE SUPPORT SERVICES,OTHER TRAVEL EXPENSES,2850,17-May-16,18822,29.60,EPPING FOREST DISTRICT COUNCIL,EPP002
EFDC,YB200,SUPERVISION/MANAGEMENT SPECIAL,CONTRIBUTIONS,3740,17-May-16,18833,500.00,MRS JEAN MAURO,5487P
EFDC,YB200,SUPERVISION/MANAGEMENT SPECIAL,CONTRIBUTIONS,3740,17-May-16,18835,500.00,MRS G MAYS,5488P
EFDC,YB200,SUPERVISION/MANAGEMENT SPECIAL,CONTRIBUTIONS,3740,17-May-16,18838,500.00,MR S SMITH,5489P
EFDC,PH100,PRIVATE SECTOR HOUSING,GRANTS GENERAL,3720,17-May-16,18840,7985.00,VSN ENTERPRISES,VSN002
EFDC,CF200,COLLECTION FUND NON DOMESTIC R,REPAY DEF ON COLLECTION FUND,X135,20-May-16,18886,-23650.00,NATIONAL WESTMINSTER TRO,NAT990
EFDC,CF200,COLLECTION FUND NON DOMESTIC R,REPAY DEF ON COLLECTION FUND,X135,20-May-16,18886,-37588.00,NATIONAL WESTMINSTER TRO,NAT990
EFDC,CF200,COLLECTION FUND NON DOMESTIC R,NDR PAYMENT TO CENTRAL GOVT,X153,20-May-16,18886,1608107.00,NATIONAL WESTMINSTER TRO,NAT990
EFDC,CT100,COUNCIL TAX INCOME,CONTRIBUTIONS FROM OTHER L.A'S,9060,20-May-16,18887,-2185.00,ESSEX FIRE AUTHORITY,ESS992
EFDC,BA100,HOUSING BENEFITS,CONTRIBUTIONS FROM OTHER L.A'S,9060,20-May-16,18887,-47.00,ESSEX FIRE AUTHORITY,ESS992
EFDC,CF100,COLLECTION FUND COUNCIL TAX,ESSEX FIRE S/D,X134,20-May-16,18887,8678.00,ESSEX FIRE AUTHORITY,ESS992
EFDC,CF100,COLLECTION FUND COUNCIL TAX,ESSEX FIRE PRECEPT,X116,20-May-16,18887,294734.00,ESSEX FIRE AUTHORITY,ESS992
EFDC,CF200,COLLECTION FUND NON DOMESTIC R,ESSEX FIRE S/D,X134,20-May-16,18887,-1134.00,ESSEX FIRE AUTHORITY,ESS992
EFDC,CF200,COLLECTION FUND NON DOMESTIC R,ESSEX FIRE PRECEPT,X116,20-May-16,18887,29780.00,ESSEX FIRE AUTHORITY,ESS992
EFDC,CT100,COUNCIL TAX INCOME,CONTRIBUTIONS FROM OTHER L.A'S,9060,20-May-16,18888,-4841.41,ESSEX POLICE AUTHORITY,ESS991
EFDC,CF100,COLLECTION FUND COUNCIL TAX,ESSEX FIRE S/D,X134,20-May-16,18888,19226.00,ESSEX POLICE AUTHORITY,ESS991
EFDC,CF100,COLLECTION FUND COUNCIL TAX,ESSEX POLICE PRECEPT,X115,20-May-16,18888,662368.00,ESSEX POLICE AUTHORITY,ESS991
EFDC,CF200,COLLECTION FUND NON DOMESTIC R,NDR PAYMENT TO CENTRAL GOVT,X153,20-May-16,18889,928343.00,ESSEX COUNTY COUNCIL,ESS990
EFDC,CF200,COLLECTION FUND NON DOMESTIC R,ESSEX COUNTY COUNCIL S/D,X132,20-May-16,18889,-11023.00,ESSEX COUNTY COUNCIL,ESS990
EFDC,CF200,COLLECTION FUND NON DOMESTIC R,ESSEX COUNTY COUNCIL PRECEPT,X114,20-May-16,18889,289459.00,ESSEX COUNTY COUNCIL,ESS990
EFDC,CT100,COUNCIL TAX INCOME,CONTRIBUTIONS FROM OTHER L.A'S,9060,20-May-16,18890,-35755.00,ESSEX COUNTY COUNCIL,ESS990
EFDC,LC100,OTHER ACTIVITIES,PROFESSIONAL FEES,3420,20-May-16,18890,1998.70,ESSEX COUNTY COUNCIL,ESS990
EFDC,PH100,PRIVATE SECTOR HOUSING,GOVERNMENT GRANTS,9020,20-May-16,18890,-664970.00,ESSEX COUNTY COUNCIL,ESS990
EFDC,CF100,COLLECTION FUND COUNCIL TAX,ESSEX COUNTY COUNCIL S/D,X132,20-May-16,18890,141987.00,ESSEX COUNTY COUNCIL,ESS990
EFDC,CF100,COLLECTION FUND COUNCIL TAX,ESSEX COUNTY COUNCIL PRECEPT,X114,20-May-16,18890,4921509.00,ESSEX COUNTY COUNCIL,ESS990
EFDC,DC120,PLANNING REGULATORY SERVICES,REFUNDS,9211,24-May-16,18900,3850.00,MR K S ELLERBECK,5491P
EFDC,32140,OTHER SUPPORT SERVICES (HR),COMMISSION,9320,24-May-16,18935,-42.07,UNISON,UNI001
EFDC,NR100,NON RING FENCED GOVT GRANTS,GOVERNMENT GRANTS,7800,26-May-16,19027,-138088.00,NATIONAL WESTMINSTER TRO,NAT990
EFDC,CF200,COLLECTION FUND NON DOMESTIC R,REPAY DEF ON COLLECTION FUND,X135,26-May-16,19027,-23651.00,NATIONAL WESTMINSTER TRO,NAT990
EFDC,CF200,COLLECTION FUND NON DOMESTIC R,REPAY DEF ON COLLECTION FUND,X135,26-May-16,19027,-37589.00,NATIONAL WESTMINSTER TRO,NAT990
EFDC,CF200,COLLECTION FUND NON DOMESTIC R,NDR PAYMENT TO CENTRAL GOVT,X153,26-May-16,19027,1608108.00,NATIONAL WESTMINSTER TRO,NAT990
EFDC,YB200,SUPERVISION/MANAGEMENT SPECIAL,CONTRIBUTIONS,3740,31-May-16,19053,500.00,MRS J E PARKES,5533P
EFDC,YB200,SUPERVISION/MANAGEMENT SPECIAL,CONTRIBUTIONS,3740,31-May-16,19054,500.00,J PARROTT,5534P
EFDC,GD100,VOLUNTARY SECTOR SUPPORT,GRANTS TO VOLUNTARY ORGS,3710,31-May-16,19061,1458.00,WALTHAM ABBEY CHURCH,3717P
EFDC,YB200,SUPERVISION/MANAGEMENT SPECIAL,CONTRIBUTIONS,3740,31-May-16,19063,500.00,MRS E WOOD,5541P
EFDC,CAPCM,COMMUNITIES CAPITAL,LEGAL FEES,E140,02-Jun-16,19100,586140.00,PERRIN MYDDELTON CLIENT ACCOUNT,PER991
EFDC,CAPCM,COMMUNITIES CAPITAL,BUILDING ACQUISITION,A020,02-Jun-16,19101,279950.00,GREEN WRIGHT CHALTON ANNIS,GRE990
EFDC,33020,OTHER ACTIVITIES,BANKING AND CASH COLLECTION,3440,02-Jun-16,19103,6765.11,CAPITA BUSINESS SERVICES,CAP990
EFDC,YB200,SUPERVISION/MANAGEMENT SPECIAL,CONTRIBUTIONS,3740,07-Jun-16,19127,500.00,MRS M J JEFFERY,5555P
EFDC,YB200,SUPERVISION/MANAGEMENT SPECIAL,CONTRIBUTIONS,3740,07-Jun-16,19141,500.00,MR S MELIA,5564P
EFDC,PH100,PRIVATE SECTOR HOUSING,GRANTS GENERAL,3720,07-Jun-16,19144,6820.00,EDON 2000 LTD,EDO001
EFDC,PH100,PRIVATE SECTOR HOUSING,GRANTS GENERAL,3720,07-Jun-16,19157,2685.00,STANNAH LIFT SERVICES LTD,STA002
EFDC,PH100,PRIVATE SECTOR HOUSING,GRANTS GENERAL,3720,07-Jun-16,19159,2670.00,STANNAH LIFT SERVICES LTD,STA002
EFDC,YA200,SUPERVISION/MANAGEMENT GENERAL,LAND REGISTRY FEES,3425,10-Jun-16,19216,6.00,LAND REGISTRY,LAN992
EFDC,YA210,SUPERVISION/MANAGEMENT GENERAL,LAND REGISTRY FEES,3425,10-Jun-16,19216,39.00,LAND REGISTRY,LAN992
EFDC,YA180,SUPERVISION/MANAGEMENT GENERAL,LAND REGISTRY FEES,3425,10-Jun-16,19216,1115.00,LAND REGISTRY,LAN992
EFDC,05245,LEASEHOLDERS ADMIN,LAND REGISTRY FEES,3425,10-Jun-16,19216,120.00,LAND REGISTRY,LAN992
EFDC,42310,GOVERNANCE SUPPORT SERVICES,LAND REGISTRY FEES,3425,10-Jun-16,19216,12.00,LAND REGISTRY,LAN992
EFDC,32060,OTHER SUPPORT SERVICES (HR),LAND REGISTRY FEES,3425,10-Jun-16,19216,369.00,LAND REGISTRY,LAN992
EFDC,32220,OTHER SUPPORT SERVICES (HR),LAND REGISTRY FEES,3425,10-Jun-16,19216,27.00,LAND REGISTRY,LAN992
EFDC,EH110,ENVIRONMENTAL HEALTH,LAND REGISTRY FEES,3425,10-Jun-16,19216,21.00,LAND REGISTRY,LAN992
EFDC,33055,OTHER ACTIVITIES,LAND REGISTRY FEES,3425,10-Jun-16,19216,105.00,LAND REGISTRY,LAN992
EFDC,EH112,LAND DRAINAGE/SEWERAGE,LAND REGISTRY FEES,3425,10-Jun-16,19216,3.00,LAND REGISTRY,LAN992
EFDC,LT120,LOCAL TAXATION,LAND REGISTRY FEES,3425,10-Jun-16,19216,99.00,LAND REGISTRY,LAN992
EFDC,31120,CORPORATE SUPPORT SERVICES,LAND REGISTRY FEES,3425,10-Jun-16,19216,72.00,LAND REGISTRY,LAN992
EFDC,DC100,PLANNING REGULATORY SERVICES,LAND REGISTRY FEES,3425,10-Jun-16,19216,93.00,LAND REGISTRY,LAN992
EFDC,EH120,PRIVATE SECTOR HOUSING,LAND REGISTRY FEES,3425,10-Jun-16,19216,93.00,LAND REGISTRY,LAN992
EFDC,CAPCM,COMMUNITIES CAPITAL,CAPITAL SALARIES HRA,A440,10-Jun-16,19216,18.00,LAND REGISTRY,LAN992
EFDC,32030,OTHER SUPPORT SERVICES (HR),STATIONERY,3320,10-Jun-16,19217,42.95,NATWEST BANK PLC,NAT991
EFDC,26200,OTHER SUPPORT SERVICES (HR),BUILDING MAINTENANCE,1010,10-Jun-16,19217,20.42,NATWEST BANK PLC,NAT991
EFDC,35005,ENVIRONMENTAL OTHER,EQUIPMENT - NEW,3010,10-Jun-16,19217,49.05,NATWEST BANK PLC,NAT991
EFDC,33080,OTHER ACTIVITIES,MATERIALS,3080,10-Jun-16,19217,33.22,NATWEST BANK PLC,NAT991
EFDC,36200,OTHER ACTIVITIES,CONFERENCE EXPENSES,3620,10-Jun-16,19217,99.00,NATWEST BANK PLC,NAT991
EFDC,36200,OTHER ACTIVITIES,BOOKS & PUBLICATIONS,3350,10-Jun-16,19217,23.00,NATWEST BANK PLC,NAT991
EFDC,31120,CORPORATE SUPPORT SERVICES,SUBSCRIPTIONS,3730,10-Jun-16,19217,236.00,NATWEST BANK PLC,NAT991
EFDC,37500,PLANNING OTHER,CONFERENCE EXPENSES,3620,10-Jun-16,19217,363.30,NATWEST BANK PLC,NAT991
EFDC,YA200,SUPERVISION/MANAGEMENT GENERAL,LEGAL EXPENSES,3680,10-Jun-16,19219,780.00,NATWEST BANK PLC,NAT991
EFDC,YA180,SUPERVISION/MANAGEMENT GENERAL,LEGAL EXPENSES,3680,10-Jun-16,19219,181.00,NATWEST BANK PLC,NAT991
EFDC,05245,LEASEHOLDERS ADMIN,LEGAL EXPENSES,3680,10-Jun-16,19219,270.00,NATWEST BANK PLC,NAT991
EFDC,42520,GOVERNANCE SUPPORT SERVICES,STATIONERY,3320,10-Jun-16,19219,79.00,NATWEST BANK PLC,NAT991
EFDC,42520,GOVERNANCE SUPPORT SERVICES,EQUIPMENT - NEW,3010,10-Jun-16,19219,21.62,NATWEST BANK PLC,NAT991
EFDC,32060,OTHER SUPPORT SERVICES (HR),TRAINING EXPENSES,0310,10-Jun-16,19219,30.00,NATWEST BANK PLC,NAT991
EFDC,HL100,HOMELESSNESS,LEGAL EXPENSES,3680,10-Jun-16,19219,-60.00,NATWEST BANK PLC,NAT991
EFDC,HL100,HOMELESSNESS,LEGAL EXPENSES,3680,10-Jun-16,19219,155.00,NATWEST BANK PLC,NAT991
EFDC,UO130,LAND & PROPERTY,LEGAL EXPENSES,3680,10-Jun-16,19219,721.88,NATWEST BANK PLC,NAT991
EFDC,GD100,VOLUNTARY SECTOR SUPPORT,GRANTS TO VOLUNTARY ORGS,3710,14-Jun-16,19260,5000.00,EPPING FORESTERS CRICKET CLUB,5581P
EFDC,GD100,VOLUNTARY SECTOR SUPPORT,GRANTS TO VOLUNTARY ORGS,3710,14-Jun-16,19272,2500.00,LOUGHTON VOLUNTARY CARE,559P
EFDC,RS301,NORTH WEALD CENTRE,ADVERTISING,3820,14-Jun-16,19274,750.00,MR A MORETON,43P
EFDC,YB200,SUPERVISION/MANAGEMENT SPECIAL,CONTRIBUTIONS,3740,14-Jun-16,19286,500.00,MRS S Y FLETCHER,5598P
EFDC,GD100,VOLUNTARY SECTOR SUPPORT,GRANTS TO VOLUNTARY ORGS,3710,14-Jun-16,19294,1700.00,ONGAR VILLAGERS VOLUNTARY CARE ASSOCIATION,5604P
EFDC,TO100,LAND & PROPERTY,LICENSES,2360,22-Jun-16,19295,920.00,POST OFFICE LTD,5023P
EFDC,PH100,PRIVATE SECTOR HOUSING,GRANTS GENERAL,3720,14-Jun-16,19302,5586.00,STANNAH LIFT SERVICES LTD,STA002
EFDC,YB200,SUPERVISION/MANAGEMENT SPECIAL,CONTRIBUTIONS,3740,14-Jun-16,19309,500.00,MRS BARBARA WHEAL,5614P
EFDC,BC100,PLANNING REGULATORY SERVICES,FEES & CHARGES,9210,21-Jun-16,19366,623.30,R & S AHMAD,5615P
EFDC,YB200,SUPERVISION/MANAGEMENT SPECIAL,CONTRIBUTIONS,3740,21-Jun-16,19368,500.00,MISS J. BARKER,5617P
EFDC,DR155,MEMBER ACTIVITIES,MEMBERS ALLOWANCES,3630,21-Jun-16,19380,1400.00,INFORMATION COMMISSIONER'S OFFICE,5501P
EFDC,YB200,SUPERVISION/MANAGEMENT SPECIAL,CONTRIBUTIONS,3740,21-Jun-16,19381,500.00,MRS L. LAWRENCE,5627P
EFDC,PH100,PRIVATE SECTOR HOUSING,GRANTS GENERAL,3720,21-Jun-16,19394,30000.00,MR & MRS I AHMED,5629P
EFDC,TO100,LAND & PROPERTY,LICENSES,2360,21-Jun-16,19406,690.00,POST OFFICE LTD,5023P
EFDC,PH100,PRIVATE SECTOR HOUSING,GRANTS GENERAL,3720,21-Jun-16,19410,2590.00,STANNAH LIFT SERVICES LTD,STA002
EFDC,PH100,PRIVATE SECTOR HOUSING,GRANTS GENERAL,3720,21-Jun-16,19411,4981.00,STANNAH LIFT SERVICES LTD,STA002
EFDC,CAPCM,COMMUNITIES CAPITAL,LEGAL FEES,A140,24-Jun-16,19462,12324.00,H M R C,HMR990
EFDC,NR100,NON RING FENCED GOVT GRANTS,GOVERNMENT GRANTS,7800,24-Jun-16,19466,-138088.00,NATIONAL WESTMINSTER TRO,NAT990
EFDC,CF200,COLLECTION FUND NON DOMESTIC R,REPAY DEF ON COLLECTION FUND,X135,24-Jun-16,19466,-23650.00,NATIONAL WESTMINSTER TRO,NAT990
EFDC,CF200,COLLECTION FUND NON DOMESTIC R,REPAY DEF ON COLLECTION FUND,X135,24-Jun-16,19466,-37588.00,NATIONAL WESTMINSTER TRO,NAT990
EFDC,CF200,COLLECTION FUND NON DOMESTIC R,NDR PAYMENT TO CENTRAL GOVT,X153,24-Jun-16,19466,1608107.00,NATIONAL WESTMINSTER TRO,NAT990
EFDC,LT110,LOCAL TAXATION,LEGAL EXPENSES,3680,24-Jun-16,19468,405.00,HER MAJESTY'S COURT SERVICE,HER990
EFDC,LT120,LOCAL TAXATION,LEGAL EXPENSES,3680,24-Jun-16,19468,5025.00,HER MAJESTY'S COURT SERVICE,HER990
EFDC,IR100,INTEREST RECEIVABLE,INTEREST RECIEVABLE,7900,24-Jun-16,19469,-11979.95,BIFFA MUNICIPAL LTD,BIF990
EFDC,YB400,SUPERVISION/MANAGEMENT SPECIAL,BUILDING MAINTENANCE,1010,24-Jun-16,19469,16471.32,BIFFA MUNICIPAL LTD,BIF990
EFDC,PS100,CAR PARKING,CLEANSING CONTRACTORS,4320,24-Jun-16,19469,2435.67,BIFFA MUNICIPAL LTD,BIF990
EFDC,EH142,ENVIRONMENTAL HEALTH,CLEANSING CONTRACTORS,4320,24-Jun-16,19469,1313.12,BIFFA MUNICIPAL LTD,BIF990
EFDC,SC100,WASTE MANAGEMENT,CLEANSING CONTRACTORS,4320,24-Jun-16,19469,94091.79,BIFFA MUNICIPAL LTD,BIF990
EFDC,WC100,WASTE MANAGEMENT,CLEANSING CONTRACTORS,4320,24-Jun-16,19469,99109.59,BIFFA MUNICIPAL LTD,BIF990
EFDC,WC200,WASTE MANAGEMENT,CLEANSING CONTRACTORS,4320,24-Jun-16,19469,200554.50,BIFFA MUNICIPAL LTD,BIF990
EFDC,32140,OTHER SUPPORT SERVICES (HR),COMMISSION,9320,28-Jun-16,19495,-41.80,UNISON,UNI001
EFDC,PH100,PRIVATE SECTOR HOUSING,GRANTS GENERAL,3720,28-Jun-16,19522,7200.00,K.J.BATCHELOR,BAT001
EFDC,PH100,PRIVATE SECTOR HOUSING,GRANTS GENERAL,3720,28-Jun-16,19523,5748.00,EDON 2000 LTD,EDO001
EFDC,YB200,SUPERVISION/MANAGEMENT SPECIAL,CONTRIBUTIONS,3740,28-Jun-16,19525,500.00,D S WILSON,5667P
EFDC,YA100,SUPERVISION/MANAGEMENT GENERAL,PUBLICITY,3360,30-Jun-16,19579,257.75,NATWEST BANK PLC,NAT991
EFDC,42520,GOVERNANCE SUPPORT SERVICES,EQUIPMENT - NEW,3010,30-Jun-16,19579,8.32,NATWEST BANK PLC,NAT991
EFDC,42520,GOVERNANCE SUPPORT SERVICES,TRAINING EXPENSES,0310,30-Jun-16,19579,234.09,NATWEST BANK PLC,NAT991
EFDC,34160,COMMUNITIES SUPPORT SERVICES,PUBLICITY,3360,30-Jun-16,19579,426.19,NATWEST BANK PLC,NAT991
EFDC,33080,OTHER ACTIVITIES,LICENCES,3870,30-Jun-16,19579,384.89,NATWEST BANK PLC,NAT991
EFDC,33080,OTHER ACTIVITIES,SUBSCRIPTIONS,3730,30-Jun-16,19579,49.99,NATWEST BANK PLC,NAT991
EFDC,33080,OTHER ACTIVITIES,MATERIALS,3080,30-Jun-16,19579,27.40,NATWEST BANK PLC,NAT991
EFDC,33080,OTHER ACTIVITIES,EQUIPMENT - NEW,3010,30-Jun-16,19579,225.02,NATWEST BANK PLC,NAT991
EFDC,36200,OTHER ACTIVITIES,TRAINING EXPENSES,0310,30-Jun-16,19579,250.00,NATWEST BANK PLC,NAT991
EFDC,CAPCM,COMMUNITIES CAPITAL,LEGAL FEES,E140,30-Jun-16,19582,18780.00,PERRIN MYDDELTON CLIENT ACCOUNT,PER991
EFDC,CAPRS,RESOURCES CAPITAL,WORKS- LAND AND BUILDINGS,B040,13-Apr-16,65779,1901.90,BSS GROUP LTD,BSS001
EFDC,RM200,RESPONSIVE & VOID REPAIRS,BUILDING MAINTENANCE,1010,15-Jun-16,70319,752.10,MEARS LTD,MEA002
EFDC,CAPCM,COMMUNITIES CAPITAL,VOIDS WORKS,A045,15-Jun-16,70319,2288.70,MEARS LTD,MEA002
EFDC,RM200,RESPONSIVE & VOID REPAIRS,BUILDING MAINTENANCE,1010,11-May-16,72962,1307.64,MEARS LTD,MEA002
EFDC,RM200,RESPONSIVE & VOID REPAIRS,BUILDING MAINTENANCE,1010,11-May-16,72965,1417.36,MEARS LTD,MEA002
EFDC,CAPCM,COMMUNITIES CAPITAL,VOIDS WORKS,A045,11-May-16,72965,1639.17,MEARS LTD,MEA002
EFDC,RS410,SPORTS DEVELOPMENT & OTHER,ACTIVITIES,3372,13-Apr-16,76005,1100.00,WOODREDON EQUESTRIAN CENTRE LTD,WOO015
EFDC,27050,ACCOMMODATION,CONTRACT CLEANING,1630,25-May-16,76748,568.75,ASTRAL HYGIENE,AST002
EFDC,RM200,RESPONSIVE & VOID REPAIRS,BUILDING MAINTENANCE,1010,06-Apr-16,76788,2550.65,MEARS LTD,MEA002
EFDC,CAPCM,COMMUNITIES CAPITAL,VOIDS WORKS,A045,06-Apr-16,76788,2083.69,MEARS LTD,MEA002
EFDC,CAPCM,COMMUNITIES CAPITAL,VOIDS WORKS,A045,06-Apr-16,76788,3159.57,MEARS LTD,MEA002
EFDC,CAPCM,COMMUNITIES CAPITAL,VOIDS WORKS,A045,06-Apr-16,76788,3461.80,MEARS LTD,MEA002
EFDC,36900,OTHER ACTIVITIES,AGENCY STAFF,0120,06-Apr-16,77237,584.00,VENN GROUP LTD,VEN004
EFDC,CAPCM,COMMUNITIES CAPITAL,VOIDS WORKS,A045,20-Apr-16,77530,2566.94,GRACELANDS COMPLETE MAINTENANCE SERVICES LTD,GRA007
EFDC,RM200,RESPONSIVE & VOID REPAIRS,BUILDING MAINTENANCE,1010,20-Apr-16,77532,3591.82,GRACELANDS COMPLETE MAINTENANCE SERVICES LTD,GRA007
EFDC,CAPCM,COMMUNITIES CAPITAL,VOIDS WORKS,A045,20-Apr-16,77532,4046.71,GRACELANDS COMPLETE MAINTENANCE SERVICES LTD,GRA007
EFDC,CAPCM,COMMUNITIES CAPITAL,VOIDS WORKS,A045,20-Apr-16,77532,1703.59,GRACELANDS COMPLETE MAINTENANCE SERVICES LTD,GRA007
EFDC,36900,OTHER ACTIVITIES,AGENCY STAFF,0120,06-Apr-16,77714,604.00,VENN GROUP LTD,VEN004
EFDC,EH155,ENVIRONMENTAL HEALTH,FUEL,2330,11-May-16,77729,68.80,SHELL U.K. OIL PRODUCTS LIMITED,SHE007
EFDC,78001,OTHER ACTIVITIES,FUEL,2330,11-May-16,77729,1000.77,SHELL U.K. OIL PRODUCTS LIMITED,SHE007
EFDC,YA100,SUPERVISION/MANAGEMENT GENERAL,PUBLICITY,3360,13-Apr-16,77841,944.00,MOBILE STATIONERY PRINTING CENTRE LTD,MOB002
EFDC,36900,OTHER ACTIVITIES,AGENCY STAFF,0120,06-Apr-16,78161,604.00,VENN GROUP LTD,VEN004
EFDC,RM100,RESPONSIVE & VOID REPAIRS,BUILDING MAINTENANCE,1010,18-May-16,78196,978.32,GRACELANDS COMPLETE MAINTENANCE SERVICES LTD,GRA007
EFDC,RM100,RESPONSIVE & VOID REPAIRS,BUILDING MAINTENANCE,1010,18-May-16,78197,911.70,GRACELANDS COMPLETE MAINTENANCE SERVICES LTD,GRA007
EFDC,RM200,RESPONSIVE & VOID REPAIRS,BUILDING MAINTENANCE,1010,20-Apr-16,78312,2968.73,GRACELANDS COMPLETE MAINTENANCE SERVICES LTD,GRA007
EFDC,CAPCM,COMMUNITIES CAPITAL,VOIDS WORKS,A045,20-Apr-16,78312,2829.59,GRACELANDS COMPLETE MAINTENANCE SERVICES LTD,GRA007
EFDC,CAPCM,COMMUNITIES CAPITAL,VOIDS WORKS,A045,20-Apr-16,78312,2383.06,GRACELANDS COMPLETE MAINTENANCE SERVICES LTD,GRA007
EFDC,CAPCM,COMMUNITIES CAPITAL,VOIDS WORKS,A045,20-Apr-16,78312,1566.48,GRACELANDS COMPLETE MAINTENANCE SERVICES LTD,GRA007
EFDC,RM200,RESPONSIVE & VOID REPAIRS,BUILDING MAINTENANCE,1010,20-Apr-16,78313,1455.68,GRACELANDS COMPLETE MAINTENANCE SERVICES LTD,GRA007
EFDC,CAPCM,COMMUNITIES CAPITAL,VOIDS WORKS,A045,20-Apr-16,78313,2521.89,GRACELANDS COMPLETE MAINTENANCE SERVICES LTD,GRA007
EFDC,CAPCM,COMMUNITIES CAPITAL,VOIDS WORKS,A045,20-Apr-16,78313,1092.57,GRACELANDS COMPLETE MAINTENANCE SERVICES LTD,GRA007
EFDC,33080,OTHER ACTIVITIES,CONSULTANTS FEES,3490,13-Apr-16,78364,600.00,AIT PARTNERSHIP GROUP LTD,AIT001
EFDC,RM100,RESPONSIVE & VOID REPAIRS,BUILDING MAINTENANCE,1010,04-May-16,78554,575.04,TOWER ASPHALT LTD,TOW001
EFDC,78001,OTHER ACTIVITIES,MATERIALS,3080,18-May-16,78897,897.60,CRANBROOK ELECTRICS,CRA001
EFDC,YB130,SUPERVISION/MANAGEMENT SPECIAL,PROFESSIONAL FEES,3420,06-Apr-16,78910,82.92,BINDER LTD,BIN001
EFDC,YB130,SUPERVISION/MANAGEMENT SPECIAL,PROFESSIONAL FEES,3420,06-Apr-16,78910,82.92,BINDER LTD,BIN001
EFDC,YB130,SUPERVISION/MANAGEMENT SPECIAL,PROFESSIONAL FEES,3420,06-Apr-16,78910,82.92,BINDER LTD,BIN001
EFDC,YB130,SUPERVISION/MANAGEMENT SPECIAL,PROFESSIONAL FEES,3420,06-Apr-16,78910,82.92,BINDER LTD,BIN001
EFDC,YB140,SUPERVISION/MANAGEMENT SPECIAL,PROFESSIONAL FEES,3420,06-Apr-16,78910,181.24,BINDER LTD,BIN001
EFDC,YB140,SUPERVISION/MANAGEMENT SPECIAL,PROFESSIONAL FEES,3420,06-Apr-16,78910,58.54,BINDER LTD,BIN001
EFDC,YB140,SUPERVISION/MANAGEMENT SPECIAL,PROFESSIONAL FEES,3420,06-Apr-16,78910,117.08,BINDER LTD,BIN001
EFDC,YB140,SUPERVISION/MANAGEMENT SPECIAL,PROFESSIONAL FEES,3420,06-Apr-16,78910,172.08,BINDER LTD,BIN001
EFDC,YB140,SUPERVISION/MANAGEMENT SPECIAL,PROFESSIONAL FEES,3420,06-Apr-16,78910,80.42,BINDER LTD,BIN001
EFDC,YB140,SUPERVISION/MANAGEMENT SPECIAL,PROFESSIONAL FEES,3420,06-Apr-16,78910,107.92,BINDER LTD,BIN001
EFDC,YB140,SUPERVISION/MANAGEMENT SPECIAL,PROFESSIONAL FEES,3420,06-Apr-16,78910,117.08,BINDER LTD,BIN001
EFDC,YB140,SUPERVISION/MANAGEMENT SPECIAL,PROFESSIONAL FEES,3420,06-Apr-16,78910,117.08,BINDER LTD,BIN001
EFDC,YB140,SUPERVISION/MANAGEMENT SPECIAL,PROFESSIONAL FEES,3420,06-Apr-16,78910,162.91,BINDER LTD,BIN001
EFDC,YB140,SUPERVISION/MANAGEMENT SPECIAL,PROFESSIONAL FEES,3420,06-Apr-16,78910,80.42,BINDER LTD,BIN001
EFDC,YB140,SUPERVISION/MANAGEMENT SPECIAL,PROFESSIONAL FEES,3420,06-Apr-16,78910,117.08,BINDER LTD,BIN001
EFDC,YB140,SUPERVISION/MANAGEMENT SPECIAL,PROFESSIONAL FEES,3420,06-Apr-16,78910,117.08,BINDER LTD,BIN001
EFDC,YB140,SUPERVISION/MANAGEMENT SPECIAL,PROFESSIONAL FEES,3420,06-Apr-16,78910,117.08,BINDER LTD,BIN001
EFDC,YB140,SUPERVISION/MANAGEMENT SPECIAL,PROFESSIONAL FEES,3420,06-Apr-16,78910,80.42,BINDER LTD,BIN001
EFDC,YB140,SUPERVISION/MANAGEMENT SPECIAL,PROFESSIONAL FEES,3420,06-Apr-16,78910,117.08,BINDER LTD,BIN001
EFDC,26200,OTHER SUPPORT SERVICES (HR),BUILDING MAINTENANCE,1010,06-Apr-16,78910,82.92,BINDER LTD,BIN001
EFDC,26200,OTHER SUPPORT SERVICES (HR),BUILDING MAINTENANCE,1010,06-Apr-16,78910,82.92,BINDER LTD,BIN001
EFDC,RS301,NORTH WEALD CENTRE,OTHER MAINTENANCE,1050,06-Apr-16,78910,82.92,BINDER LTD,BIN001
EFDC,RS301,NORTH WEALD CENTRE,OTHER MAINTENANCE,1050,06-Apr-16,78910,82.92,BINDER LTD,BIN001
EFDC,RS301,NORTH WEALD CENTRE,OTHER MAINTENANCE,1050,06-Apr-16,78910,162.92,BINDER LTD,BIN001
EFDC,RS301,NORTH WEALD CENTRE,OTHER MAINTENANCE,1050,06-Apr-16,78910,135.42,BINDER LTD,BIN001
EFDC,23140,ACCOMMODATION,CLEANSING CONTRACTORS,4320,13-Apr-16,78948,401.29,ATLAS CONTRACTORS LTD,ATL001
EFDC,23130,ACCOMMODATION,CONTRACT CLEANING,1630,13-Apr-16,78948,202.19,ATLAS CONTRACTORS LTD,ATL001
EFDC,23170,ACCOMMODATION,CONTRACT CLEANING,1630,13-Apr-16,78948,754.58,ATLAS CONTRACTORS LTD,ATL001
EFDC,27050,ACCOMMODATION,CONTRACT CLEANING,1630,13-Apr-16,78948,7173.98,ATLAS CONTRACTORS LTD,ATL001
EFDC,27060,ACCOMMODATION,CONTRACT CLEANING,1630,13-Apr-16,78948,454.64,ATLAS CONTRACTORS LTD,ATL001
EFDC,RM200,RESPONSIVE & VOID REPAIRS,BUILDING MAINTENANCE,1010,06-Apr-16,78973,1762.35,MEARS LTD,MEA002
EFDC,CAPCM,COMMUNITIES CAPITAL,VOIDS WORKS,A045,06-Apr-16,78973,3249.35,MEARS LTD,MEA002
EFDC,CAPCM,COMMUNITIES CAPITAL,VOIDS WORKS,A045,06-Apr-16,78973,2317.42,MEARS LTD,MEA002
EFDC,RM200,RESPONSIVE & VOID REPAIRS,BUILDING MAINTENANCE,1010,06-Apr-16,78974,765.35,MEARS LTD,MEA002
EFDC,CAPCM,COMMUNITIES CAPITAL,VOIDS WORKS,A045,06-Apr-16,78974,3229.73,MEARS LTD,MEA002
EFDC,CAPCM,COMMUNITIES CAPITAL,VOIDS WORKS,A045,06-Apr-16,78974,3464.35,MEARS LTD,MEA002
EFDC,CAPCM,COMMUNITIES CAPITAL,VOIDS WORKS,A045,06-Apr-16,78974,2850.08,MEARS LTD,MEA002
EFDC,RM200,RESPONSIVE & VOID REPAIRS,BUILDING MAINTENANCE,1010,06-Apr-16,78975,3011.91,MEARS LTD,MEA002
EFDC,CAPCM,COMMUNITIES CAPITAL,VOIDS WORKS,A045,06-Apr-16,78975,2455.16,MEARS LTD,MEA002
EFDC,CAPCM,COMMUNITIES CAPITAL,VOIDS WORKS,A045,06-Apr-16,78975,4205.92,MEARS LTD,MEA002
EFDC,CAPCM,COMMUNITIES CAPITAL,VOIDS WORKS,A045,06-Apr-16,78975,3645.40,MEARS LTD,MEA002
EFDC,RM200,RESPONSIVE & VOID REPAIRS,BUILDING MAINTENANCE,1010,06-Apr-16,78977,885.82,MEARS LTD,MEA002
EFDC,CAPCM,COMMUNITIES CAPITAL,VOIDS WORKS,A045,06-Apr-16,78977,3149.21,MEARS LTD,MEA002
EFDC,CAPCM,COMMUNITIES CAPITAL,VOIDS WORKS,A045,06-Apr-16,78977,2267.94,MEARS LTD,MEA002
EFDC,RM200,RESPONSIVE & VOID REPAIRS,BUILDING MAINTENANCE,1010,13-Apr-16,78979,1532.56,MEARS LTD,MEA002
EFDC,CAPCM,COMMUNITIES CAPITAL,VOIDS WORKS,A045,13-Apr-16,78979,1883.12,MEARS LTD,MEA002
EFDC,CAPCM,COMMUNITIES CAPITAL,VOIDS WORKS,A045,13-Apr-16,78979,2856.12,MEARS LTD,MEA002
EFDC,RM200,RESPONSIVE & VOID REPAIRS,BUILDING MAINTENANCE,1010,13-Apr-16,78980,737.90,MEARS LTD,MEA002
EFDC,CAPCM,COMMUNITIES CAPITAL,VOIDS WORKS,A045,13-Apr-16,78980,2316.50,MEARS LTD,MEA002
EFDC,CAPCM,COMMUNITIES CAPITAL,VOIDS WORKS,A045,13-Apr-16,78980,1191.48,MEARS LTD,MEA002
EFDC,RM200,RESPONSIVE & VOID REPAIRS,BUILDING MAINTENANCE,1010,06-Apr-16,78981,3747.44,MEARS LTD,MEA002
EFDC,CAPCM,COMMUNITIES CAPITAL,VOIDS WORKS,A045,06-Apr-16,78981,2009.13,MEARS LTD,MEA002
EFDC,CAPCM,COMMUNITIES CAPITAL,VOIDS WORKS,A045,06-Apr-16,78981,3600.25,MEARS LTD,MEA002
EFDC,CAPCM,COMMUNITIES CAPITAL,VOIDS WORKS,A045,06-Apr-16,78981,2994.95,MEARS LTD,MEA002
EFDC,RM200,RESPONSIVE & VOID REPAIRS,BUILDING MAINTENANCE,1010,13-Apr-16,78982,1840.73,MEARS LTD,MEA002
EFDC,CAPCM,COMMUNITIES CAPITAL,VOIDS WORKS,A045,13-Apr-16,78982,2778.67,MEARS LTD,MEA002
EFDC,CAPCM,COMMUNITIES CAPITAL,VOIDS WORKS,A045,13-Apr-16,78982,4384.70,MEARS LTD,MEA002
EFDC,CAPCM,COMMUNITIES CAPITAL,VOIDS WORKS,A045,13-Apr-16,78982,2527.44,MEARS LTD,MEA002
EFDC,RM200,RESPONSIVE & VOID REPAIRS,BUILDING MAINTENANCE,1010,06-Apr-16,78983,1383.19,MEARS LTD,MEA002
EFDC,CAPCM,COMMUNITIES CAPITAL,VOIDS WORKS,A045,06-Apr-16,78983,2473.71,MEARS LTD,MEA002
EFDC,CAPCM,COMMUNITIES CAPITAL,VOIDS WORKS,A045,06-Apr-16,78983,4240.42,MEARS LTD,MEA002
EFDC,CAPCM,COMMUNITIES CAPITAL,VOIDS WORKS,A045,06-Apr-16,78983,2173.90,MEARS LTD,MEA002
EFDC,RM200,RESPONSIVE & VOID REPAIRS,BUILDING MAINTENANCE,1010,06-Apr-16,78984,1306.96,MEARS LTD,MEA002
EFDC,CAPCM,COMMUNITIES CAPITAL,VOIDS WORKS,A045,06-Apr-16,78984,2343.05,MEARS LTD,MEA002
EFDC,RM200,RESPONSIVE & VOID REPAIRS,BUILDING MAINTENANCE,1010,06-Apr-16,78985,2131.84,MEARS LTD,MEA002
EFDC,CAPCM,COMMUNITIES CAPITAL,VOIDS WORKS,A045,06-Apr-16,78985,2287.48,MEARS LTD,MEA002
EFDC,36900,OTHER ACTIVITIES,AGENCY STAFF,0120,06-Apr-16,79080,584.00,VENN GROUP LTD,VEN004
EFDC,YA180,SUPERVISION/MANAGEMENT GENERAL,AGENCY STAFF,0120,06-Apr-16,79081,911.10,VENN GROUP LTD,VEN004
EFDC,RM100,RESPONSIVE & VOID REPAIRS,BUILDING MAINTENANCE,1010,06-Apr-16,79082,4423.71,TOWER ASPHALT LTD,TOW001
EFDC,RM100,RESPONSIVE & VOID REPAIRS,BUILDING MAINTENANCE,1010,04-May-16,79083,3616.70,TOWER ASPHALT LTD,TOW001
EFDC,RM200,RESPONSIVE & VOID REPAIRS,BUILDING MAINTENANCE,1010,06-Apr-16,79144,1342.19,GRACELANDS COMPLETE MAINTENANCE SERVICES LTD,GRA007
EFDC,CAPCM,COMMUNITIES CAPITAL,VOIDS WORKS,A045,06-Apr-16,79144,3611.02,GRACELANDS COMPLETE MAINTENANCE SERVICES LTD,GRA007
EFDC,CAPCM,COMMUNITIES CAPITAL,VOIDS WORKS,A045,06-Apr-16,79144,3612.66,GRACELANDS COMPLETE MAINTENANCE SERVICES LTD,GRA007
EFDC,CAPCM,COMMUNITIES CAPITAL,VOIDS WORKS,A045,06-Apr-16,79144,1257.52,GRACELANDS COMPLETE MAINTENANCE SERVICES LTD,GRA007
EFDC,RM200,RESPONSIVE & VOID REPAIRS,BUILDING MAINTENANCE,1010,06-Apr-16,79150,1591.44,GRACELANDS COMPLETE MAINTENANCE SERVICES LTD,GRA007
EFDC,CAPCM,COMMUNITIES CAPITAL,VOIDS WORKS,A045,06-Apr-16,79150,2016.38,GRACELANDS COMPLETE MAINTENANCE SERVICES LTD,GRA007
EFDC,CAPCM,COMMUNITIES CAPITAL,VOIDS WORKS,A045,06-Apr-16,79150,4642.66,GRACELANDS COMPLETE MAINTENANCE SERVICES LTD,GRA007
EFDC,CAPCM,COMMUNITIES CAPITAL,VOIDS WORKS,A045,06-Apr-16,79150,1425.58,GRACELANDS COMPLETE MAINTENANCE SERVICES LTD,GRA007
EFDC,27110,ACCOMMODATION,EQUIPMENT - MAINTENANCE,3030,20-Apr-16,79416,911.84,CHUBB FIRE & SECURITY LTD,CHU001
EFDC,YB400,SUPERVISION/MANAGEMENT SPECIAL,TREE  MAINTENANCE,1070,06-Apr-16,79488,1600.00,BARTLETT TREE EXPERTS,BAR036
EFDC,78001,OTHER ACTIVITIES,MATERIALS,3080,20-Apr-16,79553,1457.55,CRANBROOK ELECTRICS,CRA001
EFDC,RM100,RESPONSIVE & VOID REPAIRS,BUILDING MAINTENANCE,1010,27-Apr-16,79558,5085.07,M & J SERVICES LTD,SER009
EFDC,36900,OTHER ACTIVITIES,AGENCY STAFF,0120,06-Apr-16,79562,520.00,VENN GROUP LTD,VEN004
EFDC,RM100,RESPONSIVE & VOID REPAIRS,BUILDING MAINTENANCE,1010,11-May-16,79580,575.00,ENVIRONMENTAL DRAINAGE & BUILDING SERVICES,ENV010
EFDC,CAPRS,RESOURCES CAPITAL,QUANTITY SURVEYORS FEES,B170,13-Apr-16,79607,4256.25,STACE LLP,STA012
EFDC,34160,COMMUNITIES SUPPORT SERVICES,PUBLICITY,3360,13-Apr-16,79617,398.29,MISCO,MIS001
EFDC,33080,OTHER ACTIVITIES,EQUIPMENT - NEW,3010,13-Apr-16,79617,13.46,MISCO,MIS001
EFDC,33080,OTHER ACTIVITIES,EQUIPMENT - NEW,3010,13-Apr-16,79617,949.08,MISCO,MIS001
EFDC,33080,OTHER ACTIVITIES,EQUIPMENT - NEW,3010,13-Apr-16,79617,3830.40,MISCO,MIS001
EFDC,33080,OTHER ACTIVITIES,EQUIPMENT - NEW,3010,13-Apr-16,79617,341.82,MISCO,MIS001
EFDC,33080,OTHER ACTIVITIES,EQUIPMENT - NEW,3010,13-Apr-16,79617,556.00,MISCO,MIS001
EFDC,32060,OTHER SUPPORT SERVICES (HR),CONSULTANTS FEES,3490,06-Apr-16,79633,700.00,ANDREW TROLLOPE QC CHAMBERS ACCOUNT NO.2,AND001
EFDC,EH155,ENVIRONMENTAL HEALTH,FUEL,2330,13-Apr-16,79653,72.26,SHELL U.K. OIL PRODUCTS LIMITED,SHE007
EFDC,78001,OTHER ACTIVITIES,FUEL,2330,13-Apr-16,79653,1040.83,SHELL U.K. OIL PRODUCTS LIMITED,SHE007
EFDC,CAPCM,COMMUNITIES CAPITAL,WORKS- COUNCIL DWELLINGS,A040,06-Apr-16,79669,1040.00,REACTIVE INTEGRATED SERVICES LTD (RIS LTD),REA001
EFDC,CAPCM,COMMUNITIES CAPITAL,VOIDS WORKS,A045,06-Apr-16,79670,1351.00,REACTIVE INTEGRATED SERVICES LTD (RIS LTD),REA001
EFDC,CAPCM,COMMUNITIES CAPITAL,WORKS- COUNCIL DWELLINGS,A040,06-Apr-16,79672,1140.00,REACTIVE INTEGRATED SERVICES LTD (RIS LTD),REA001
EFDC,RM500,OTHER ITEMS,CONSULTANTS FEES,3490,06-Apr-16,79680,1215.00,NPS LONDON LTD,NPS002
EFDC,33020,OTHER ACTIVITIES,STATIONERY,3320,06-Apr-16,79726,533.00,MELTEMI COMPANY CLOTHING LTD,MEL005
EFDC,78001,OTHER ACTIVITIES,CONSULTANTS FEES,3490,06-Apr-16,79868,9171.00,MEARS LTD,MEA002
EFDC,32191,OTHER SUPPORT SERVICES (HR),CONSULTANTS FEES,3490,06-Apr-16,79869,2977.00,MEARS LTD,MEA002
EFDC,TO100,LAND & PROPERTY,PROFESSIONAL FEES,3420,06-Apr-16,79881,3535.00,THE AUTOMOBILE ASSOCIATION,AUT008
EFDC,36200,OTHER ACTIVITIES,TRAINING EXPENSES,0310,06-Apr-16,79882,1450.00,TAVCOM TRAINING LIMITED,TAV002
EFDC,32115,OTHER SUPPORT SERVICES (HR),CONSULTANTS FEES,3490,06-Apr-16,79898,900.00,TRAINING & COACHING SOLUTIONS LTD,TRA029
EFDC,35300,ENVIRONMENTAL OTHER,MATERIALS,3080,06-Apr-16,79899,644.31,KELWAY UK LTD,KEL002
EFDC,CAPCM,COMMUNITIES CAPITAL,VOIDS WORKS,A045,06-Apr-16,79901,217.00,GRACELANDS COMPLETE MAINTENANCE SERVICES LTD,GRA007
EFDC,CAPCM,COMMUNITIES CAPITAL,VOIDS WORKS,A045,06-Apr-16,79901,4874.91,GRACELANDS COMPLETE MAINTENANCE SERVICES LTD,GRA007
EFDC,CAPCM,COMMUNITIES CAPITAL,VOIDS SURVEYS,A125,20-Apr-16,79903,50.00,GRACELANDS COMPLETE MAINTENANCE SERVICES LTD,GRA007
EFDC,CAPCM,COMMUNITIES CAPITAL,VOIDS WORKS,A045,20-Apr-16,79903,154.00,GRACELANDS COMPLETE MAINTENANCE SERVICES LTD,GRA007
EFDC,CAPCM,COMMUNITIES CAPITAL,VOIDS WORKS,A045,20-Apr-16,79903,100.00,GRACELANDS COMPLETE MAINTENANCE SERVICES LTD,GRA007
EFDC,CAPCM,COMMUNITIES CAPITAL,VOIDS WORKS,A045,20-Apr-16,79903,4021.49,GRACELANDS COMPLETE MAINTENANCE SERVICES LTD,GRA007
EFDC,26200,OTHER SUPPORT SERVICES (HR),BUILDING MAINTENANCE,1010,06-Apr-16,79904,582.00,ALARMING UK LIMITED,ALA006
EFDC,26200,OTHER SUPPORT SERVICES (HR),BUILDING MAINTENANCE,1010,06-Apr-16,79905,787.10,ALARMING UK LIMITED,ALA006
EFDC,YB400,SUPERVISION/MANAGEMENT SPECIAL,GROUNDS MAINTENANCE,1040,06-Apr-16,79914,3466.20,SAFEPLAY PLAYGROUND MAINTENANCE SERVICES LTD,SAF013
EFDC,OS110,PARKS & GROUNDS,MATERIALS,3080,06-Apr-16,79915,1400.00,SAFEPLAY PLAYGROUND MAINTENANCE SERVICES LTD,SAF013
EFDC,GD190,VOLUNTARY SECTOR SUPPORT,MATERIALS,3080,06-Apr-16,79915,1363.75,SAFEPLAY PLAYGROUND MAINTENANCE SERVICES LTD,SAF013
EFDC,34110,COMMUNITIES SUPPORT SERVICES,EQUIPMENT - HIRED,3020,06-Apr-16,79918,890.00,IMPERATIVE TRAINING LTD,IMP002
EFDC,33080,OTHER ACTIVITIES,ANNUAL SUPPORT /  LICENSES,3872,06-Apr-16,79936,11284.42,PITNEY BOWES SOFTWARE EUROPE LTD,PIT003
EFDC,78001,OTHER ACTIVITIES,MATERIALS,3080,06-Apr-16,79951,503.10,THE BECK COMPANY LTD,BEC001
EFDC,36700,OTHER ACTIVITIES,AGENCY STAFF,0120,06-Apr-16,79974,648.00,MMP CONSULTANCY,MMP001
EFDC,23140,ACCOMMODATION,CLEANSING CONTRACTORS,4320,20-Apr-16,79976,401.29,ATLAS CONTRACTORS LTD,ATL001
EFDC,23130,ACCOMMODATION,CONTRACT CLEANING,1630,20-Apr-16,79976,202.19,ATLAS CONTRACTORS LTD,ATL001
EFDC,23170,ACCOMMODATION,CONTRACT CLEANING,1630,20-Apr-16,79976,687.89,ATLAS CONTRACTORS LTD,ATL001
EFDC,27050,ACCOMMODATION,CONTRACT CLEANING,1630,20-Apr-16,79976,7173.98,ATLAS CONTRACTORS LTD,ATL001
EFDC,27060,ACCOMMODATION,CONTRACT CLEANING,1630,20-Apr-16,79976,454.64,ATLAS CONTRACTORS LTD,ATL001
EFDC,32030,OTHER SUPPORT SERVICES (HR),POSTAGE,3510,06-Apr-16,79980,63.07,ROYAL MAIL GROUP PLC,ROY015
EFDC,34110,COMMUNITIES SUPPORT SERVICES,POSTAGE,3510,06-Apr-16,79980,91.30,ROYAL MAIL GROUP PLC,ROY015
EFDC,RE100,ELECTIONS,POSTAGE,3510,06-Apr-16,79980,108.01,ROYAL MAIL GROUP PLC,ROY015
EFDC,35900,ENVIRONMENTAL OTHER,POSTAGE,3510,06-Apr-16,79980,143.16,ROYAL MAIL GROUP PLC,ROY015
EFDC,33055,OTHER ACTIVITIES,POSTAGE,3510,06-Apr-16,79980,356.68,ROYAL MAIL GROUP PLC,ROY015
EFDC,33055,OTHER ACTIVITIES,POSTAGE,3510,06-Apr-16,79980,2629.00,ROYAL MAIL GROUP PLC,ROY015
EFDC,33055,OTHER ACTIVITIES,POSTAGE,3510,06-Apr-16,79980,147.68,ROYAL MAIL GROUP PLC,ROY015
EFDC,33075,OTHER ACTIVITIES,POSTAGE,3510,06-Apr-16,79980,266.34,ROYAL MAIL GROUP PLC,ROY015
EFDC,36200,OTHER ACTIVITIES,POSTAGE,3510,06-Apr-16,79980,212.64,ROYAL MAIL GROUP PLC,ROY015
EFDC,37100,PLANNING OTHER,POSTAGE,3510,06-Apr-16,79980,278.52,ROYAL MAIL GROUP PLC,ROY015
EFDC,PP111,FORWARD PLANNING & ECONOMIC,PROFESSIONAL FEES,3420,11-May-16,80001,12050.00,FORTISMERE ASSOCIATES LTD,FOR016
EFDC,RM200,RESPONSIVE & VOID REPAIRS,BUILDING MAINTENANCE,1010,06-Apr-16,80004,5494.36,GRACELANDS COMPLETE MAINTENANCE SERVICES LTD,GRA007
EFDC,CAPCM,COMMUNITIES CAPITAL,VOIDS WORKS,A045,06-Apr-16,80004,2349.38,GRACELANDS COMPLETE MAINTENANCE SERVICES LTD,GRA007
EFDC,CAPCM,COMMUNITIES CAPITAL,VOIDS WORKS,A045,06-Apr-16,80004,3464.70,GRACELANDS COMPLETE MAINTENANCE SERVICES LTD,GRA007
EFDC,CAPCM,COMMUNITIES CAPITAL,VOIDS WORKS,A045,06-Apr-16,80004,3623.67,GRACELANDS COMPLETE MAINTENANCE SERVICES LTD,GRA007
EFDC,RM200,RESPONSIVE & VOID REPAIRS,BUILDING MAINTENANCE,1010,06-Apr-16,80005,1114.88,GRACELANDS COMPLETE MAINTENANCE SERVICES LTD,GRA007
EFDC,CAPCM,COMMUNITIES CAPITAL,VOIDS WORKS,A045,06-Apr-16,80005,3212.07,GRACELANDS COMPLETE MAINTENANCE SERVICES LTD,GRA007
EFDC,CAPCM,COMMUNITIES CAPITAL,VOIDS WORKS,A045,06-Apr-16,80005,375.40,GRACELANDS COMPLETE MAINTENANCE SERVICES LTD,GRA007
EFDC,RM200,RESPONSIVE & VOID REPAIRS,BUILDING MAINTENANCE,1010,06-Apr-16,80006,4463.52,MEARS LTD,MEA002
EFDC,CAPCM,COMMUNITIES CAPITAL,VOIDS WORKS,A045,06-Apr-16,80006,1997.72,MEARS LTD,MEA002
EFDC,CAPCM,COMMUNITIES CAPITAL,VOIDS WORKS,A045,06-Apr-16,80006,2792.80,MEARS LTD,MEA002
EFDC,RM200,RESPONSIVE & VOID REPAIRS,BUILDING MAINTENANCE,1010,06-Apr-16,80007,5141.23,MEARS LTD,MEA002
EFDC,CAPCM,COMMUNITIES CAPITAL,VOIDS WORKS,A045,06-Apr-16,80007,3682.15,MEARS LTD,MEA002
EFDC,CAPCM,COMMUNITIES CAPITAL,VOIDS WORKS,A045,06-Apr-16,80007,2471.92,MEARS LTD,MEA002
EFDC,RM200,RESPONSIVE & VOID REPAIRS,BUILDING MAINTENANCE,1010,13-Apr-16,80008,4041.12,MEARS LTD,MEA002
EFDC,CAPCM,COMMUNITIES CAPITAL,VOIDS WORKS,A045,13-Apr-16,80008,2439.51,MEARS LTD,MEA002
EFDC,CAPCM,COMMUNITIES CAPITAL,VOIDS WORKS,A045,13-Apr-16,80008,4199.23,MEARS LTD,MEA002
EFDC,CAPCM,COMMUNITIES CAPITAL,VOIDS WORKS,A045,13-Apr-16,80008,2854.91,MEARS LTD,MEA002
EFDC,32030,OTHER SUPPORT SERVICES (HR),TRAINING EXPENSES,0310,06-Apr-16,80026,845.00,VINE HR LTD,VIN003
EFDC,78001,OTHER ACTIVITIES,MATERIALS,3080,20-Apr-16,80037,715.26,T BREWER & CO LTD,BRE009
EFDC,RM100,RESPONSIVE & VOID REPAIRS,BUILDING MAINTENANCE,1010,06-Apr-16,80041,860.00,ABBEY MAINTENANCE LTD,ABB009
EFDC,78001,OTHER ACTIVITIES,MATERIALS,3080,06-Apr-16,80046,541.44,RIDGEONS,RID001
EFDC,32120,OTHER SUPPORT SERVICES (HR),AGENCY STAFF,0120,06-Apr-16,80055,503.75,VINE HR LTD,VIN003
EFDC,37100,PLANNING OTHER,SUBSCRIPTIONS,3730,06-Apr-16,80056,2004.95,LABC,LAB001
EFDC,78001,OTHER ACTIVITIES,MATERIALS,3080,13-Apr-16,80064,1642.00,CRANBROOK ELECTRICS,CRA001
EFDC,78001,OTHER ACTIVITIES,MATERIALS,3080,06-Apr-16,80065,637.00,CRANBROOK ELECTRICS,CRA001
EFDC,78001,OTHER ACTIVITIES,MATERIALS,3080,06-Apr-16,80066,1905.98,CRANBROOK ELECTRICS,CRA001
EFDC,37600,PLANNING OTHER,AGENCY STAFF,0120,06-Apr-16,80080,1102.00,THE OYSTER PARTNERSHIP LTD,OYS001
EFDC,33080,OTHER ACTIVITIES,ANNUAL SUPPORT /  LICENSES,3872,06-Apr-16,80089,88134.45,CAPITA BUSINESS SERVICES LTD,CAP004
EFDC,RM100,RESPONSIVE & VOID REPAIRS,BUILDING MAINTENANCE,1010,06-Apr-16,80091,4524.48,M & J SERVICES LTD,SER009
EFDC,34160,COMMUNITIES SUPPORT SERVICES,PUBLICITY,3360,13-Apr-16,80101,79.09,MISCO,MIS001
EFDC,33080,OTHER ACTIVITIES,EQUIPMENT - NEW,3010,13-Apr-16,80101,949.08,MISCO,MIS001
EFDC,CAPCM,COMMUNITIES CAPITAL,EQUIPMENT - WIP,E330,20-Apr-16,80102,1847.83,MISCO,MIS001
EFDC,36900,OTHER ACTIVITIES,AGENCY STAFF,0120,06-Apr-16,80108,576.00,VENN GROUP LTD,VEN004
EFDC,33080,OTHER ACTIVITIES,ANNUAL SUPPORT /  LICENSES,3872,13-Apr-16,80118,9938.05,PHOENIX SOFTWARE LTD,PHO002
EFDC,CH110,ARTS & MUSEUM,SUBSCRIPTIONS,3730,13-Apr-16,80123,305.96,THE MUSEUMS ASSOCIATION,MUS002
EFDC,CH110,ARTS & MUSEUM,SUBSCRIPTIONS,3730,13-Apr-16,80123,299.46,THE MUSEUMS ASSOCIATION,MUS002
EFDC,CH110,ARTS & MUSEUM,SUBSCRIPTIONS,3730,13-Apr-16,80123,37.98,THE MUSEUMS ASSOCIATION,MUS002
EFDC,RS301,NORTH WEALD CENTRE,OTHER MAINTENANCE,1050,06-Apr-16,80125,2025.00,MET ENGINEERING LTD,MET006
EFDC,32115,OTHER SUPPORT SERVICES (HR),CONSULTANTS FEES,3490,13-Apr-16,80127,550.00,STRESSLESS TRAINING,STR001
EFDC,25300,INTERNAL INSURANCE FUND,OTHER MISCELLANEOUS EXPENSES,3850,25-May-16,80136,545.00,GROVE CRASH REPAIRS LLP,GRO001
EFDC,SC100,WASTE MANAGEMENT,CLEANSING CONTRACTORS,4320,13-Apr-16,80139,1220.00,K N HAULAGE LTD,HAU001
EFDC,WC100,WASTE MANAGEMENT,PUBLICITY,3360,13-Apr-16,80139,5800.00,K N HAULAGE LTD,HAU001
EFDC,CH113,ARTS & MUSEUM,PROFESSIONAL FEES,3420,06-Apr-16,80150,7375.00,THE MANAGEMENT CENTRE UK LTD,THE005
EFDC,33075,OTHER ACTIVITIES,AGENCY STAFF,0120,06-Apr-16,80161,752.50,BADENOCH & CLARK,BAD001
EFDC,CH110,ARTS & MUSEUM,RENTS / HIRE OF HALL,1210,11-May-16,80169,3700.00,GRANGEWOOD INVESTMENTS LTD,GRA006
EFDC,CH110,ARTS & MUSEUM,RENTS / HIRE OF HALL,1210,11-May-16,80171,2000.00,GRANGEWOOD INVESTMENTS LTD,GRA006
EFDC,CH117,HERITAGE LOTTERY FUND,PUBLICITY,3360,13-Apr-16,80176,1327.00,PRINT & BIND LTD,PRI020
EFDC,RM200,RESPONSIVE & VOID REPAIRS,BUILDING MAINTENANCE,1010,13-Apr-16,80348,773.46,MEARS LTD,MEA002
EFDC,CAPCM,COMMUNITIES CAPITAL,VOIDS WORKS,A045,13-Apr-16,80348,3097.11,MEARS LTD,MEA002
EFDC,CAPCM,COMMUNITIES CAPITAL,VOIDS WORKS,A045,13-Apr-16,80348,2256.08,MEARS LTD,MEA002
EFDC,RS401,SPORTS DEVELOPMENT & OTHER,ACTIVITIES,3372,06-Apr-16,80351,1277.00,LAMBOURNE END LTD,LAM010
EFDC,RM200,RESPONSIVE & VOID REPAIRS,BUILDING MAINTENANCE,1010,13-Apr-16,80359,1364.42,MEARS LTD,MEA002
EFDC,CAPCM,COMMUNITIES CAPITAL,VOIDS WORKS,A045,13-Apr-16,80359,1952.94,MEARS LTD,MEA002
EFDC,CAPCM,COMMUNITIES CAPITAL,VOIDS WORKS,A045,13-Apr-16,80359,2611.37,MEARS LTD,MEA002
EFDC,CAPCM,COMMUNITIES CAPITAL,VOIDS WORKS,A045,13-Apr-16,80359,2772.05,MEARS LTD,MEA002
EFDC,CAPCM,COMMUNITIES CAPITAL,EQUIPMENT - WIP,E330,20-Apr-16,80376,651.09,MISCO,MIS001
EFDC,32220,OTHER SUPPORT SERVICES (HR),AGENCY STAFF,0120,06-Apr-16,80377,839.38,HAYS SPECIALIST RECRUITMENT LTD,HAY011
EFDC,32220,OTHER SUPPORT SERVICES (HR),AGENCY STAFF,0120,06-Apr-16,80378,504.00,HAYS SPECIALIST RECRUITMENT LTD,HAY011
EFDC,26200,OTHER SUPPORT SERVICES (HR),BUILDING MAINTENANCE,1010,06-Apr-16,80380,730.35,EDMUNDSON ELECTRICAL LTD,EDM001
EFDC,36700,OTHER ACTIVITIES,AGENCY STAFF,0120,13-Apr-16,80382,648.00,MMP CONSULTANCY,MMP001
EFDC,32220,OTHER SUPPORT SERVICES (HR),AGENCY STAFF,0120,06-Apr-16,80395,2720.00,CAPSTONE PROPERTY RECRUITMENT (INTERIM) LTD,CAP001
EFDC,EP100,OTHER ACTIVITIES,EQUIPMENT - NEW,3010,13-Apr-16,80405,84.09,MISCO,MIS001
EFDC,36200,OTHER ACTIVITIES,EQUIPMENT - NEW,3010,13-Apr-16,80405,440.16,MISCO,MIS001
EFDC,26200,OTHER SUPPORT SERVICES (HR),BUILDING MAINTENANCE,1010,06-Apr-16,80414,990.00,B B & C FENCING,FEN003
EFDC,RM100,RESPONSIVE & VOID REPAIRS,BUILDING MAINTENANCE,1010,13-Apr-16,80415,1771.91,REACTIVE INTEGRATED SERVICES LTD (RIS LTD),REA001
EFDC,32115,OTHER SUPPORT SERVICES (HR),CONSULTANTS FEES,3490,13-Apr-16,80418,1080.05,LG FUTURES LTD,LGF001
EFDC,36900,OTHER ACTIVITIES,AGENCY STAFF,0120,06-Apr-16,80419,536.00,VENN GROUP LTD,VEN004
EFDC,EH155,ENVIRONMENTAL HEALTH,MATERIALS,3080,13-Apr-16,80421,785.00,GROVE CRASH REPAIRS LLP,GRO001
EFDC,EH155,ENVIRONMENTAL HEALTH,EQUIPMENT - MAINTENANCE,3030,13-Apr-16,80421,295.72,GROVE CRASH REPAIRS LLP,GRO001
EFDC,RM100,RESPONSIVE & VOID REPAIRS,BUILDING MAINTENANCE,1010,06-Apr-16,80424,1040.00,GRACELANDS COMPLETE MAINTENANCE SERVICES LTD,GRA007
EFDC,RM200,RESPONSIVE & VOID REPAIRS,BUILDING MAINTENANCE,1010,20-Apr-16,80425,1988.34,GRACELANDS COMPLETE MAINTENANCE SERVICES LTD,GRA007
EFDC,CAPCM,COMMUNITIES CAPITAL,VOIDS WORKS,A045,20-Apr-16,80425,565.96,GRACELANDS COMPLETE MAINTENANCE SERVICES LTD,GRA007
EFDC,33080,OTHER ACTIVITIES,ANNUAL SUPPORT /  LICENSES,3872,13-Apr-16,80426,1408.25,BOTTOMLINE TECHNOLOGIES LTD,BOT001
EFDC,RM200,RESPONSIVE & VOID REPAIRS,BUILDING MAINTENANCE,1010,20-Apr-16,80427,1869.32,GRACELANDS COMPLETE MAINTENANCE SERVICES LTD,GRA007
EFDC,CAPCM,COMMUNITIES CAPITAL,VOIDS WORKS,A045,20-Apr-16,80427,488.20,GRACELANDS COMPLETE MAINTENANCE SERVICES LTD,GRA007
EFDC,RM200,RESPONSIVE & VOID REPAIRS,BUILDING MAINTENANCE,1010,20-Apr-16,80431,1973.88,GRACELANDS COMPLETE MAINTENANCE SERVICES LTD,GRA007
EFDC,CAPCM,COMMUNITIES CAPITAL,VOIDS WORKS,A045,20-Apr-16,80431,293.67,GRACELANDS COMPLETE MAINTENANCE SERVICES LTD,GRA007
EFDC,RM200,RESPONSIVE & VOID REPAIRS,BUILDING MAINTENANCE,1010,20-Apr-16,80434,1947.74,GRACELANDS COMPLETE MAINTENANCE SERVICES LTD,GRA007
EFDC,CAPCM,COMMUNITIES CAPITAL,VOIDS WORKS,A045,20-Apr-16,80434,2319.94,GRACELANDS COMPLETE MAINTENANCE SERVICES LTD,GRA007
EFDC,CAPCM,COMMUNITIES CAPITAL,VOIDS WORKS,A045,20-Apr-16,80434,372.67,GRACELANDS COMPLETE MAINTENANCE SERVICES LTD,GRA007
EFDC,28030,OTHER SUPPORT SERVICES (HR),MATERIALS,3080,06-Apr-16,80452,858.69,CARE VENDING SERVICES LTD,CAR017
EFDC,YB620,SUPERVISION/MANAGEMENT SPECIAL,RODENT/PEST CONTROL,3410,06-Apr-16,80456,990.00,EXTREME ENVIRONMENTAL SERVICES LTD,EXT002
EFDC,26200,OTHER SUPPORT SERVICES (HR),BUILDING MAINTENANCE,1010,06-Apr-16,80477,621.88,SMART MERCHANTS LTD,SMA002
EFDC,26200,OTHER SUPPORT SERVICES (HR),FIXED PLANT MAINTENANCE,1020,06-Apr-16,80479,972.16,SMART MERCHANTS LTD,SMA002
EFDC,RM400,PLANNED & CYCLICAL MAINTENANCE,BUILDING MAINTENANCE,1010,13-Apr-16,80483,1305.63,MULTI ALARM GB LTD,MUL001
EFDC,26200,OTHER SUPPORT SERVICES (HR),BUILDING MAINTENANCE,1010,06-Apr-16,80484,1136.56,SMART MERCHANTS LTD,SMA002
EFDC,36500,OTHER ACTIVITIES,AGENCY STAFF,0120,06-Apr-16,80486,900.00,BADENOCH & CLARK,BAD001
EFDC,33080,OTHER ACTIVITIES,EQUIPMENT - MAINTENANCE,3030,20-Apr-16,80489,5501.66,SEC-1 LIMITED,SEC002
EFDC,CAPRS,RESOURCES CAPITAL,WORKS- LAND AND BUILDINGS,B040,13-Apr-16,80492,999.62,ALLIED MECHANICAL SERVICES LTD,ALL002
EFDC,26200,OTHER SUPPORT SERVICES (HR),FIXED PLANT MAINTENANCE,1020,13-Apr-16,80493,710.59,ALLIED MECHANICAL SERVICES LTD,ALL002
EFDC,26200,OTHER SUPPORT SERVICES (HR),BUILDING MAINTENANCE,1010,06-Apr-16,80495,720.00,SAVILLE STAINLESS,SAV001
EFDC,37600,PLANNING OTHER,AGENCY STAFF,0120,13-Apr-16,80501,893.00,THE OYSTER PARTNERSHIP LTD,OYS001
EFDC,33080,OTHER ACTIVITIES,PROFESSIONAL FEES,3420,13-Apr-16,80505,2200.00,NORTHGATE PUBLIC SERVICES (UK) LTD,NOR018
EFDC,33080,OTHER ACTIVITIES,ANNUAL SUPPORT /  LICENSES,3872,06-Apr-16,80506,8380.66,ORACLE CORPORATION UK LTD,ORA002
EFDC,CH110,ARTS & MUSEUM,POSTAGE,3510,13-Apr-16,80508,2.59,ROYAL MAIL GROUP PLC,ROY015
EFDC,32030,OTHER SUPPORT SERVICES (HR),POSTAGE,3510,13-Apr-16,80508,9.25,ROYAL MAIL GROUP PLC,ROY015
EFDC,32030,OTHER SUPPORT SERVICES (HR),POSTAGE,3510,13-Apr-16,80508,-2.78,ROYAL MAIL GROUP PLC,ROY015
EFDC,34110,COMMUNITIES SUPPORT SERVICES,POSTAGE,3510,13-Apr-16,80508,-17.56,ROYAL MAIL GROUP PLC,ROY015
EFDC,RE100,ELECTIONS,POSTAGE,3510,13-Apr-16,80508,131.56,ROYAL MAIL GROUP PLC,ROY015
EFDC,35900,ENVIRONMENTAL OTHER,POSTAGE,3510,13-Apr-16,80508,5.22,ROYAL MAIL GROUP PLC,ROY015
EFDC,35900,ENVIRONMENTAL OTHER,POSTAGE,3510,13-Apr-16,80508,17.48,ROYAL MAIL GROUP PLC,ROY015
EFDC,33055,OTHER ACTIVITIES,POSTAGE,3510,13-Apr-16,80508,146.64,ROYAL MAIL GROUP PLC,ROY015
EFDC,33055,OTHER ACTIVITIES,POSTAGE,3510,13-Apr-16,80508,308.17,ROYAL MAIL GROUP PLC,ROY015
EFDC,33075,OTHER ACTIVITIES,POSTAGE,3510,13-Apr-16,80508,16858.45,ROYAL MAIL GROUP PLC,ROY015
EFDC,33075,OTHER ACTIVITIES,POSTAGE,3510,13-Apr-16,80508,167.13,ROYAL MAIL GROUP PLC,ROY015
EFDC,36200,OTHER ACTIVITIES,POSTAGE,3510,13-Apr-16,80508,124.60,ROYAL MAIL GROUP PLC,ROY015
EFDC,37100,PLANNING OTHER,POSTAGE,3510,13-Apr-16,80508,222.14,ROYAL MAIL GROUP PLC,ROY015
EFDC,37100,PLANNING OTHER,POSTAGE,3510,13-Apr-16,80508,-30.84,ROYAL MAIL GROUP PLC,ROY015
EFDC,33080,OTHER ACTIVITIES,ANNUAL SUPPORT /  LICENSES,3872,06-Apr-16,80509,4856.16,ORACLE CORPORATION UK LTD,ORA002
EFDC,32220,OTHER SUPPORT SERVICES (HR),AGENCY STAFF,0120,13-Apr-16,80522,504.00,HAYS SPECIALIST RECRUITMENT LTD,HAY011
EFDC,33060,OTHER ACTIVITIES,AGENCY STAFF,0120,06-Apr-16,80528,1036.00,HAYS SPECIALIST RECRUITMENT LTD,HAY011
EFDC,CH113,ARTS & MUSEUM,PROFESSIONAL FEES,3420,13-Apr-16,80537,920.20,THE MANAGEMENT CENTRE UK LTD,THE005
EFDC,RM100,RESPONSIVE & VOID REPAIRS,BUILDING MAINTENANCE,1010,20-Apr-16,80552,603.21,GRACELANDS COMPLETE MAINTENANCE SERVICES LTD,GRA007
EFDC,RM100,RESPONSIVE & VOID REPAIRS,BUILDING MAINTENANCE,1010,13-Apr-16,80553,3599.90,M & J SERVICES LTD,SER009
EFDC,33080,OTHER ACTIVITIES,EQUIPMENT - MAINTENANCE,3030,20-Apr-16,80554,5903.83,COMPUTER COMPUTER LIMITED,COM002
EFDC,33080,OTHER ACTIVITIES,ANNUAL SUPPORT /  LICENSES,3872,06-Apr-16,80556,1436.07,BYTES SOFTWARE SERVICES LTD,BYT001
EFDC,33080,OTHER ACTIVITIES,ANNUAL SUPPORT /  LICENSES,3872,06-Apr-16,80556,7847.87,BYTES SOFTWARE SERVICES LTD,BYT001
EFDC,33080,OTHER ACTIVITIES,ANNUAL SUPPORT /  LICENSES,3872,06-Apr-16,80556,11550.50,BYTES SOFTWARE SERVICES LTD,BYT001
EFDC,RM100,RESPONSIVE & VOID REPAIRS,BUILDING MAINTENANCE,1010,20-Apr-16,80562,1139.40,GRACELANDS COMPLETE MAINTENANCE SERVICES LTD,GRA007
EFDC,78001,OTHER ACTIVITIES,REFUSE REMOVAL,1640,13-Apr-16,80723,618.80,GBN SERVICES LTD,GBN002
EFDC,CAPNB,NEIGHBOURHOODS CAPITAL,MACHINERY ACQUISITION,C320,20-Apr-16,80724,3995.00,P TUCKWELL LTD,TUC002
EFDC,33080,OTHER ACTIVITIES,EQUIPMENT - NEW,3010,13-Apr-16,80733,1584.52,MISCO,MIS001
EFDC,EP100,OTHER ACTIVITIES,EQUIPMENT - NEW,3010,13-Apr-16,80735,792.26,MISCO,MIS001
EFDC,TO100,LAND & PROPERTY,EQUIPMENT - MAINTENANCE,3030,13-Apr-16,80737,995.00,SNAP-ON DIAGNOSTICS,SNA001
EFDC,35300,ENVIRONMENTAL OTHER,MATERIALS,3080,13-Apr-16,80742,132.30,EURO PLANTS UK LIMITED,EUR004
EFDC,35300,ENVIRONMENTAL OTHER,MATERIALS,3080,13-Apr-16,80742,586.72,EURO PLANTS UK LIMITED,EUR004
EFDC,26200,OTHER SUPPORT SERVICES (HR),BUILDING MAINTENANCE,1010,20-Apr-16,80759,280.00,T B PROPERTY SERVICES (ESSEX) LTD,TBP001
EFDC,26200,OTHER SUPPORT SERVICES (HR),BUILDING MAINTENANCE,1010,20-Apr-16,80759,1152.00,T B PROPERTY SERVICES (ESSEX) LTD,TBP001
EFDC,32115,OTHER SUPPORT SERVICES (HR),CONSULTANTS FEES,3490,20-Apr-16,80762,675.00,TRAINING & COACHING SOLUTIONS LTD,TRA029
EFDC,26200,OTHER SUPPORT SERVICES (HR),BUILDING MAINTENANCE,1010,06-Apr-16,80763,370.00,G A & D PERRY BUILDING CONTRACTORS,PER005
EFDC,26200,OTHER SUPPORT SERVICES (HR),BUILDING MAINTENANCE,1010,06-Apr-16,80763,475.00,G A & D PERRY BUILDING CONTRACTORS,PER005
EFDC,26200,OTHER SUPPORT SERVICES (HR),BUILDING MAINTENANCE,1010,06-Apr-16,80764,25.00,G A & D PERRY BUILDING CONTRACTORS,PER005
EFDC,26200,OTHER SUPPORT SERVICES (HR),BUILDING MAINTENANCE,1010,06-Apr-16,80764,925.00,G A & D PERRY BUILDING CONTRACTORS,PER005
EFDC,CAPRS,RESOURCES CAPITAL,WORKS- LAND AND BUILDINGS,B040,06-Apr-16,80765,150.00,G A & D PERRY BUILDING CONTRACTORS,PER005
EFDC,CAPRS,RESOURCES CAPITAL,WORKS- LAND AND BUILDINGS,B040,06-Apr-16,80765,2350.00,G A & D PERRY BUILDING CONTRACTORS,PER005
EFDC,CAPCM,COMMUNITIES CAPITAL,WORKS- COUNCIL DWELLINGS,A040,20-Apr-16,80777,703.50,TOWER ASPHALT LTD,TOW001
EFDC,35300,ENVIRONMENTAL OTHER,AGENCY STAFF,0120,06-Apr-16,80778,912.24,HL SERVICES (LONDON) LTD,HLS001
EFDC,35300,ENVIRONMENTAL OTHER,AGENCY STAFF,0120,13-Apr-16,80779,517.44,AXIOM PERSONNEL LIMITED,AXI005
EFDC,SC100,WASTE MANAGEMENT,CLEANSING CONTRACTORS,4320,20-Apr-16,80786,1437.50,BIFFA WASTE SERVICES LTD,BIF002
EFDC,33055,OTHER ACTIVITIES,AGENCY STAFF,0120,06-Apr-16,80788,900.00,EDEN BROWN LTD,EDE001
EFDC,33055,OTHER ACTIVITIES,AGENCY STAFF,0120,06-Apr-16,80789,792.00,EDEN BROWN LTD,EDE001
EFDC,36500,OTHER ACTIVITIES,AGENCY STAFF,0120,13-Apr-16,80790,900.00,BADENOCH & CLARK,BAD001
EFDC,33080,OTHER ACTIVITIES,ANNUAL SUPPORT /  LICENSES,3872,06-Apr-16,80796,2160.00,BYTES SOFTWARE SERVICES LTD,BYT001
EFDC,32060,OTHER SUPPORT SERVICES (HR),CONSULTANTS FEES,3490,20-Apr-16,80798,1250.00,MR GORDON MENZIES,MEN005
EFDC,32060,OTHER SUPPORT SERVICES (HR),CONSULTANTS FEES,3490,20-Apr-16,80799,1750.00,MR IAN THOMAS,THO008
EFDC,26200,OTHER SUPPORT SERVICES (HR),BUILDING MAINTENANCE,1010,13-Apr-16,80800,590.06,EMERY ELECTRICAL LTD,EME001
EFDC,26200,OTHER SUPPORT SERVICES (HR),BUILDING MAINTENANCE,1010,13-Apr-16,80803,850.00,EMERY ELECTRICAL LTD,EME001
EFDC,33075,OTHER ACTIVITIES,AGENCY STAFF,0120,13-Apr-16,80807,768.63,BADENOCH & CLARK,BAD001
EFDC,UO120,LAND & PROPERTY,CONSULTANTS FEES,3490,13-Apr-16,80810,56.88,PELLINGS LLP,PEL002
EFDC,UO120,LAND & PROPERTY,CONSULTANTS FEES,3490,13-Apr-16,80810,675.00,PELLINGS LLP,PEL002
EFDC,33080,OTHER ACTIVITIES,ANNUAL SUPPORT /  LICENSES,3872,13-Apr-16,80812,2681.24,BYTES SOFTWARE SERVICES LTD,BYT001
EFDC,DC110,PLANNING REGULATORY SERVICES,PROFESSIONAL FEES,3420,06-Apr-16,80815,2359.50,PHD CHARTERED TOWN PLANNERS,PHD001
EFDC,26200,OTHER SUPPORT SERVICES (HR),FIXED PLANT MAINTENANCE,1020,13-Apr-16,80821,1063.37,SMART MERCHANTS LTD,SMA002
EFDC,CAPRS,RESOURCES CAPITAL,WORKS- LAND AND BUILDINGS,B040,13-Apr-16,80825,2520.00,SMART MERCHANTS LTD,SMA002
EFDC,26200,OTHER SUPPORT SERVICES (HR),BUILDING MAINTENANCE,1010,13-Apr-16,80826,1680.00,SMART MERCHANTS LTD,SMA002
EFDC,HI124,HIGHWAYS,OTHER MAINTENANCE,1050,20-Apr-16,80827,1240.00,SIGNWAY SUPPLIES (DATCHET) LTD,SIG009
EFDC,26200,OTHER SUPPORT SERVICES (HR),BUILDING MAINTENANCE,1010,06-Apr-16,80829,564.00,WEDGE CIVIL ENGINEERING LTD,WED004
EFDC,RS301,NORTH WEALD CENTRE,OTHER MAINTENANCE,1050,13-Apr-16,80831,250.00,M J ANDERSON MAINTENANCE CONTRACTORS LTD,AND003
EFDC,RS301,NORTH WEALD CENTRE,OTHER MAINTENANCE,1050,13-Apr-16,80831,326.31,M J ANDERSON MAINTENANCE CONTRACTORS LTD,AND003
EFDC,32121,OTHER SUPPORT SERVICES (HR),CONSULTANTS FEES,3490,20-Apr-16,80832,1000.00,SOLACE GROUP LTD,SOL010
EFDC,32115,OTHER SUPPORT SERVICES (HR),CONSULTANTS FEES,3490,06-Apr-16,80833,1905.00,CMS TRAINING LTD,CMS001
EFDC,DC110,PLANNING REGULATORY SERVICES,PROFESSIONAL FEES,3420,06-Apr-16,80834,2018.50,PHD CHARTERED TOWN PLANNERS,PHD001
EFDC,35900,ENVIRONMENTAL OTHER,STATIONERY,3320,20-Apr-16,80837,787.23,XMA LIMITED,XMA001
EFDC,32060,OTHER SUPPORT SERVICES (HR),BOOKS & PUBLICATIONS,3350,13-Apr-16,80838,10597.00,LEXISNEXIS,LEX003
EFDC,33080,OTHER ACTIVITIES,PROFESSIONAL FEES,3420,20-Apr-16,80843,1950.00,SWITCHSHOP LIMITED,SWI007
EFDC,35900,ENVIRONMENTAL OTHER,TRAINING EXPENSES,0310,06-Apr-16,80844,520.00,WRITTLE COLLEGE,WRI004
EFDC,RS301,NORTH WEALD CENTRE,FIXED PLANT MAINTENANCE,1020,20-Apr-16,80846,8620.80,RHINO ASPHALT SOLUTIONS LTD,RHI003
EFDC,PS100,CAR PARKING,OTHER MAINTENANCE,1050,20-Apr-16,80847,4440.00,KENSON CONTRACTORS (BENINGTON) LTD,KEN003
EFDC,33060,OTHER ACTIVITIES,AGENCY STAFF,0120,20-Apr-16,80856,1064.00,HAYS SPECIALIST RECRUITMENT LTD,HAY011
EFDC,32220,OTHER SUPPORT SERVICES (HR),AGENCY STAFF,0120,20-Apr-16,80857,504.00,HAYS SPECIALIST RECRUITMENT LTD,HAY011
EFDC,EH155,ENVIRONMENTAL HEALTH,EQUIPMENT - MAINTENANCE,3030,13-Apr-16,80859,547.50,CAMPBELL ASSOCIATES LTD,CAM003
EFDC,CH110,ARTS & MUSEUM,POSTAGE,3510,13-Apr-16,80872,0.72,ROYAL MAIL GROUP PLC,ROY015
EFDC,32030,OTHER SUPPORT SERVICES (HR),POSTAGE,3510,13-Apr-16,80872,334.26,ROYAL MAIL GROUP PLC,ROY015
EFDC,34110,COMMUNITIES SUPPORT SERVICES,POSTAGE,3510,13-Apr-16,80872,86.35,ROYAL MAIL GROUP PLC,ROY015
EFDC,EL100,ELECTIONS,OTHER MISCELLANEOUS EXPENSES,3850,13-Apr-16,80872,16.24,ROYAL MAIL GROUP PLC,ROY015
EFDC,RE100,ELECTIONS,POSTAGE,3510,13-Apr-16,80872,111.65,ROYAL MAIL GROUP PLC,ROY015
EFDC,35900,ENVIRONMENTAL OTHER,POSTAGE,3510,13-Apr-16,80872,280.74,ROYAL MAIL GROUP PLC,ROY015
EFDC,33055,OTHER ACTIVITIES,POSTAGE,3510,13-Apr-16,80872,343.75,ROYAL MAIL GROUP PLC,ROY015
EFDC,33075,OTHER ACTIVITIES,POSTAGE,3510,13-Apr-16,80872,350.49,ROYAL MAIL GROUP PLC,ROY015
EFDC,33075,OTHER ACTIVITIES,POSTAGE,3510,13-Apr-16,80872,147.16,ROYAL MAIL GROUP PLC,ROY015
EFDC,33075,OTHER ACTIVITIES,POSTAGE,3510,13-Apr-16,80872,1172.55,ROYAL MAIL GROUP PLC,ROY015
EFDC,36200,OTHER ACTIVITIES,POSTAGE,3510,13-Apr-16,80872,398.33,ROYAL MAIL GROUP PLC,ROY015
EFDC,DR150,MEMBER ACTIVITIES,POSTAGE,3510,13-Apr-16,80872,10.92,ROYAL MAIL GROUP PLC,ROY015
EFDC,37100,PLANNING OTHER,POSTAGE,3510,13-Apr-16,80872,200.17,ROYAL MAIL GROUP PLC,ROY015
EFDC,CAPCM,COMMUNITIES CAPITAL,WORKS- COUNCIL DWELLINGS,A040,27-Apr-16,80881,1200.00,REACTIVE INTEGRATED SERVICES LTD (RIS LTD),REA001
EFDC,CAPCM,COMMUNITIES CAPITAL,WORKS- COUNCIL DWELLINGS,A040,27-Apr-16,80882,600.00,REACTIVE INTEGRATED SERVICES LTD (RIS LTD),REA001
EFDC,RM200,RESPONSIVE & VOID REPAIRS,BUILDING MAINTENANCE,1010,20-Apr-16,80883,506.97,GRACELANDS COMPLETE MAINTENANCE SERVICES LTD,GRA007
EFDC,CAPCM,COMMUNITIES CAPITAL,VOIDS WORKS,A045,20-Apr-16,80883,2232.45,GRACELANDS COMPLETE MAINTENANCE SERVICES LTD,GRA007
EFDC,CAPCM,COMMUNITIES CAPITAL,VOIDS WORKS,A045,20-Apr-16,80883,1390.76,GRACELANDS COMPLETE MAINTENANCE SERVICES LTD,GRA007
EFDC,RM200,RESPONSIVE & VOID REPAIRS,BUILDING MAINTENANCE,1010,20-Apr-16,80884,1631.65,GRACELANDS COMPLETE MAINTENANCE SERVICES LTD,GRA007
EFDC,CAPCM,COMMUNITIES CAPITAL,VOIDS WORKS,A045,20-Apr-16,80884,4220.19,GRACELANDS COMPLETE MAINTENANCE SERVICES LTD,GRA007
EFDC,CAPCM,COMMUNITIES CAPITAL,VOIDS WORKS,A045,20-Apr-16,80884,1060.23,GRACELANDS COMPLETE MAINTENANCE SERVICES LTD,GRA007
EFDC,RM200,RESPONSIVE & VOID REPAIRS,BUILDING MAINTENANCE,1010,20-Apr-16,80885,482.36,GRACELANDS COMPLETE MAINTENANCE SERVICES LTD,GRA007
EFDC,CAPCM,COMMUNITIES CAPITAL,VOIDS WORKS,A045,20-Apr-16,80885,350.95,GRACELANDS COMPLETE MAINTENANCE SERVICES LTD,GRA007
EFDC,RM200,RESPONSIVE & VOID REPAIRS,BUILDING MAINTENANCE,1010,20-Apr-16,80887,930.45,MEARS LTD,MEA002
EFDC,CAPCM,COMMUNITIES CAPITAL,VOIDS WORKS,A045,20-Apr-16,80887,818.07,MEARS LTD,MEA002
EFDC,CAPCM,COMMUNITIES CAPITAL,VOIDS WORKS,A045,20-Apr-16,80887,970.71,MEARS LTD,MEA002
EFDC,CAPCM,COMMUNITIES CAPITAL,VOIDS WORKS,A045,20-Apr-16,80887,82.58,MEARS LTD,MEA002
EFDC,RM200,RESPONSIVE & VOID REPAIRS,BUILDING MAINTENANCE,1010,20-Apr-16,80888,1124.79,MEARS LTD,MEA002
EFDC,RM200,RESPONSIVE & VOID REPAIRS,BUILDING MAINTENANCE,1010,20-Apr-16,80889,2895.17,MEARS LTD,MEA002
EFDC,CAPCM,COMMUNITIES CAPITAL,VOIDS WORKS,A045,20-Apr-16,80889,2135.41,MEARS LTD,MEA002
EFDC,CAPCM,COMMUNITIES CAPITAL,VOIDS WORKS,A045,20-Apr-16,80889,3418.82,MEARS LTD,MEA002
EFDC,CAPCM,COMMUNITIES CAPITAL,VOIDS WORKS,A045,20-Apr-16,80889,2384.95,MEARS LTD,MEA002
EFDC,RM200,RESPONSIVE & VOID REPAIRS,BUILDING MAINTENANCE,1010,20-Apr-16,80890,3484.41,MEARS LTD,MEA002
EFDC,CAPCM,COMMUNITIES CAPITAL,VOIDS WORKS,A045,20-Apr-16,80890,2267.04,MEARS LTD,MEA002
EFDC,RM200,RESPONSIVE & VOID REPAIRS,BUILDING MAINTENANCE,1010,18-May-16,80891,3359.82,MEARS LTD,MEA002
EFDC,CAPCM,COMMUNITIES CAPITAL,VOIDS WORKS,A045,18-May-16,80891,2084.44,MEARS LTD,MEA002
EFDC,CAPCM,COMMUNITIES CAPITAL,VOIDS WORKS,A045,18-May-16,80891,2951.09,MEARS LTD,MEA002
EFDC,CAPCM,COMMUNITIES CAPITAL,VOIDS WORKS,A045,18-May-16,80891,1078.78,MEARS LTD,MEA002
EFDC,RM200,RESPONSIVE & VOID REPAIRS,BUILDING MAINTENANCE,1010,20-Apr-16,80892,1272.64,MEARS LTD,MEA002
EFDC,RM200,RESPONSIVE & VOID REPAIRS,BUILDING MAINTENANCE,1010,20-Apr-16,80893,1432.39,MEARS LTD,MEA002
EFDC,RM200,RESPONSIVE & VOID REPAIRS,BUILDING MAINTENANCE,1010,04-May-16,80894,506.76,MEARS LTD,MEA002
EFDC,CAPCM,COMMUNITIES CAPITAL,VOIDS WORKS,A045,04-May-16,80894,1043.61,MEARS LTD,MEA002
EFDC,RM200,RESPONSIVE & VOID REPAIRS,BUILDING MAINTENANCE,1010,20-Apr-16,80896,3635.02,MEARS LTD,MEA002
EFDC,CAPCM,COMMUNITIES CAPITAL,VOIDS WORKS,A045,20-Apr-16,80896,2585.14,MEARS LTD,MEA002
EFDC,CAPCM,COMMUNITIES CAPITAL,VOIDS WORKS,A045,20-Apr-16,80896,1872.69,MEARS LTD,MEA002
EFDC,CAPCM,COMMUNITIES CAPITAL,WORKS,E040,13-Apr-16,80898,595.00,RVTV SECURITY LTD,RVT001
EFDC,YB130,SUPERVISION/MANAGEMENT SPECIAL,PROFESSIONAL FEES,3420,06-Apr-16,80914,82.92,BINDER LTD,BIN001
EFDC,YB130,SUPERVISION/MANAGEMENT SPECIAL,PROFESSIONAL FEES,3420,06-Apr-16,80914,82.92,BINDER LTD,BIN001
EFDC,YB130,SUPERVISION/MANAGEMENT SPECIAL,PROFESSIONAL FEES,3420,06-Apr-16,80914,82.92,BINDER LTD,BIN001
EFDC,YB130,SUPERVISION/MANAGEMENT SPECIAL,PROFESSIONAL FEES,3420,06-Apr-16,80914,82.92,BINDER LTD,BIN001
EFDC,YB140,SUPERVISION/MANAGEMENT SPECIAL,PROFESSIONAL FEES,3420,06-Apr-16,80914,162.92,BINDER LTD,BIN001
EFDC,YB140,SUPERVISION/MANAGEMENT SPECIAL,PROFESSIONAL FEES,3420,06-Apr-16,80914,80.42,BINDER LTD,BIN001
EFDC,YB140,SUPERVISION/MANAGEMENT SPECIAL,PROFESSIONAL FEES,3420,06-Apr-16,80914,117.08,BINDER LTD,BIN001
EFDC,YB140,SUPERVISION/MANAGEMENT SPECIAL,PROFESSIONAL FEES,3420,06-Apr-16,80914,117.08,BINDER LTD,BIN001
EFDC,YB140,SUPERVISION/MANAGEMENT SPECIAL,PROFESSIONAL FEES,3420,06-Apr-16,80914,117.08,BINDER LTD,BIN001
EFDC,YB140,SUPERVISION/MANAGEMENT SPECIAL,PROFESSIONAL FEES,3420,06-Apr-16,80914,117.08,BINDER LTD,BIN001
EFDC,YB140,SUPERVISION/MANAGEMENT SPECIAL,PROFESSIONAL FEES,3420,06-Apr-16,80914,80.42,BINDER LTD,BIN001
EFDC,YB140,SUPERVISION/MANAGEMENT SPECIAL,PROFESSIONAL FEES,3420,06-Apr-16,80914,181.23,BINDER LTD,BIN001
EFDC,YB140,SUPERVISION/MANAGEMENT SPECIAL,PROFESSIONAL FEES,3420,06-Apr-16,80914,58.54,BINDER LTD,BIN001
EFDC,YB140,SUPERVISION/MANAGEMENT SPECIAL,PROFESSIONAL FEES,3420,06-Apr-16,80914,117.08,BINDER LTD,BIN001
EFDC,YB140,SUPERVISION/MANAGEMENT SPECIAL,PROFESSIONAL FEES,3420,06-Apr-16,80914,172.08,BINDER LTD,BIN001
EFDC,YB140,SUPERVISION/MANAGEMENT SPECIAL,PROFESSIONAL FEES,3420,06-Apr-16,80914,80.42,BINDER LTD,BIN001
EFDC,YB140,SUPERVISION/MANAGEMENT SPECIAL,PROFESSIONAL FEES,3420,06-Apr-16,80914,117.08,BINDER LTD,BIN001
EFDC,YB140,SUPERVISION/MANAGEMENT SPECIAL,PROFESSIONAL FEES,3420,06-Apr-16,80914,117.08,BINDER LTD,BIN001
EFDC,YB140,SUPERVISION/MANAGEMENT SPECIAL,PROFESSIONAL FEES,3420,06-Apr-16,80914,107.92,BINDER LTD,BIN001
EFDC,YB140,SUPERVISION/MANAGEMENT SPECIAL,OTHER MAINTENANCE,1050,06-Apr-16,80914,90.00,BINDER LTD,BIN001
EFDC,26200,OTHER SUPPORT SERVICES (HR),BUILDING MAINTENANCE,1010,06-Apr-16,80914,82.92,BINDER LTD,BIN001
EFDC,26200,OTHER SUPPORT SERVICES (HR),BUILDING MAINTENANCE,1010,06-Apr-16,80914,82.92,BINDER LTD,BIN001
EFDC,RS301,NORTH WEALD CENTRE,OTHER MAINTENANCE,1050,06-Apr-16,80914,82.92,BINDER LTD,BIN001
EFDC,RS301,NORTH WEALD CENTRE,OTHER MAINTENANCE,1050,06-Apr-16,80914,82.92,BINDER LTD,BIN001
EFDC,RS301,NORTH WEALD CENTRE,OTHER MAINTENANCE,1050,06-Apr-16,80914,162.92,BINDER LTD,BIN001
EFDC,RS301,NORTH WEALD CENTRE,OTHER MAINTENANCE,1050,06-Apr-16,80914,135.42,BINDER LTD,BIN001
EFDC,TO100,LAND & PROPERTY,EQUIPMENT - MAINTENANCE,3030,20-Apr-16,80915,505.63,TECALEMIT GARAGE EQUIPMENT CO LTD,TEC006
EFDC,32220,OTHER SUPPORT SERVICES (HR),AGENCY STAFF,0120,13-Apr-16,80920,2960.00,CAPSTONE PROPERTY RECRUITMENT (INTERIM) LTD,CAP001
EFDC,UO120,LAND & PROPERTY,AGENCY STAFF,0120,13-Apr-16,80921,1176.00,CAPSTONE PROPERTY RECRUITMENT (INTERIM) LTD,CAP001
EFDC,35013,ENVIRONMENTAL OTHER,AGENCY STAFF,0120,06-Apr-16,80922,600.02,REED SPECIALIST RECRUITMENT LTD,REE002
EFDC,35013,ENVIRONMENTAL OTHER,AGENCY STAFF,0120,06-Apr-16,80923,594.13,REED SPECIALIST RECRUITMENT LTD,REE002
EFDC,35013,ENVIRONMENTAL OTHER,AGENCY STAFF,0120,06-Apr-16,80924,629.43,REED SPECIALIST RECRUITMENT LTD,REE002
EFDC,DC110,PLANNING REGULATORY SERVICES,PROFESSIONAL FEES,3420,06-Apr-16,80926,787.50,MR M BEARD,BEA001
EFDC,PP111,FORWARD PLANNING & ECONOMIC,PROFESSIONAL FEES,3420,06-Apr-16,80930,7087.50,MR M BEARD,BEA001
EFDC,32115,OTHER SUPPORT SERVICES (HR),CONSULTANTS FEES,3490,27-Apr-16,80934,2000.00,TRAINING & COACHING SOLUTIONS LTD,TRA029
EFDC,DC110,PLANNING REGULATORY SERVICES,PROFESSIONAL FEES,3420,06-Apr-16,80938,1312.50,MR M BEARD,BEA001
EFDC,78001,OTHER ACTIVITIES,MATERIALS,3080,20-Apr-16,80945,723.00,FAYERS PLUMBING & BUILDING SUPPLIES,FAY001
EFDC,YB140,SUPERVISION/MANAGEMENT SPECIAL,SEWAGE & ENVIRONMENTAL SERVICE,1430,06-Apr-16,80950,7182.00,ENVIRONMENT AGENCY,ENV008
EFDC,DC120,PLANNING REGULATORY SERVICES,PROFESSIONAL FEES,3420,20-Apr-16,80952,4250.00,KIFT CONSULTING LTD,KIF001
EFDC,DC120,PLANNING REGULATORY SERVICES,PROFESSIONAL FEES,3420,20-Apr-16,80953,4500.00,KIFT CONSULTING LTD,KIF001
EFDC,LT110,LOCAL TAXATION,PROFESSIONAL FEES,3420,06-Apr-16,80959,3000.00,WILKS HEAD AND EVE LLP,WIL010
EFDC,26200,OTHER SUPPORT SERVICES (HR),BUILDING MAINTENANCE,1010,13-Apr-16,80960,4247.50,COLLOP CARPETS,COL008
EFDC,33080,OTHER ACTIVITIES,ANNUAL SUPPORT /  LICENSES,3872,06-Apr-16,80962,3210.00,CIPFA BUSINESS LTD,CIP005
EFDC,33080,OTHER ACTIVITIES,ANNUAL SUPPORT /  LICENSES,3872,20-Apr-16,80971,11646.00,VCENTRAL LTD,VCE001
EFDC,33080,OTHER ACTIVITIES,ANNUAL SUPPORT /  LICENSES,3872,20-Apr-16,80972,4308.04,VCENTRAL LTD,VCE001
EFDC,CAPNB,NEIGHBOURHOODS CAPITAL,CDM SUPERVISOR,E191,13-Apr-16,80974,2000.00,JMP COMSULTANTS LTD,JMP001
EFDC,CAPNB,NEIGHBOURHOODS CAPITAL,CDM SUPERVISOR,E191,13-Apr-16,80975,10255.00,JMP COMSULTANTS LTD,JMP001
EFDC,33080,OTHER ACTIVITIES,ANNUAL SUPPORT /  LICENSES,3872,13-Apr-16,80978,2850.77,BYTES SOFTWARE SERVICES LTD,BYT001
EFDC,36600,OTHER ACTIVITIES,RECRUITMENT EXPENSES,0320,13-Apr-16,80981,1528.12,TMP WORLDWIDE LTD,TMP001
EFDC,36500,OTHER ACTIVITIES,RECRUITMENT EXPENSES,0320,13-Apr-16,80984,954.44,TMP WORLDWIDE LTD,TMP001
EFDC,37600,PLANNING OTHER,AGENCY STAFF,0120,20-Apr-16,80987,1054.50,THE OYSTER PARTNERSHIP LTD,OYS001
EFDC,36700,OTHER ACTIVITIES,AGENCY STAFF,0120,20-Apr-16,80989,648.00,MMP CONSULTANCY,MMP001
EFDC,37100,PLANNING OTHER,EQUIPMENT - MAINTENANCE,3030,20-Apr-16,81122,535.47,CANON (UK) LTD,CAN001
EFDC,RM100,RESPONSIVE & VOID REPAIRS,BUILDING MAINTENANCE,1010,20-Apr-16,81131,891.70,GRACELANDS COMPLETE MAINTENANCE SERVICES LTD,GRA007
EFDC,RM100,RESPONSIVE & VOID REPAIRS,BUILDING MAINTENANCE,1010,27-Apr-16,81132,1404.37,GRACELANDS COMPLETE MAINTENANCE SERVICES LTD,GRA007
EFDC,33075,OTHER ACTIVITIES,AGENCY STAFF,0120,13-Apr-16,81133,925.00,MORGAN HUNT UK LTD,MOR001
EFDC,RM100,RESPONSIVE & VOID REPAIRS,BUILDING MAINTENANCE,1010,20-Apr-16,81136,1531.93,TOWER ASPHALT LTD,TOW001
EFDC,RM100,RESPONSIVE & VOID REPAIRS,BUILDING MAINTENANCE,1010,20-Apr-16,81137,1531.93,TOWER ASPHALT LTD,TOW001
EFDC,78001,OTHER ACTIVITIES,MATERIALS,3080,20-Apr-16,81158,534.50,J D PAINTS,JDP001
EFDC,26200,OTHER SUPPORT SERVICES (HR),BUILDING MAINTENANCE,1010,20-Apr-16,81164,1730.91,EMERY ELECTRICAL LTD,EME001
EFDC,26200,OTHER SUPPORT SERVICES (HR),BUILDING MAINTENANCE,1010,20-Apr-16,81170,1700.00,DOOR MAINTENANCE SERVICES (CHELMSFORD) LTD,DOO001
EFDC,26200,OTHER SUPPORT SERVICES (HR),BUILDING MAINTENANCE,1010,20-Apr-16,81170,568.00,DOOR MAINTENANCE SERVICES (CHELMSFORD) LTD,DOO001
EFDC,YB500,SUPERVISION/MANAGEMENT SPECIAL,FURNITURE - NEW,3040,06-Apr-16,81173,666.30,EPPING CARPETS LTD T/A FOREST CARPET CENTRE,EPP042
EFDC,33055,OTHER ACTIVITIES,AGENCY STAFF,0120,04-May-16,81184,900.00,EDEN BROWN LTD,EDE001
EFDC,33075,OTHER ACTIVITIES,AGENCY STAFF,0120,13-Apr-16,81185,583.00,EDEN BROWN LTD,EDE001
EFDC,31120,CORPORATE SUPPORT SERVICES,PROFESSIONAL FEES,3420,06-Apr-16,81187,6765.00,MAZARS LLP,MAZ001
EFDC,35300,ENVIRONMENTAL OTHER,MATERIALS,3080,27-Apr-16,81193,343.31,P TUCKWELL LTD,TUC002
EFDC,35300,ENVIRONMENTAL OTHER,VEHICLE HIRE,2620,27-Apr-16,81193,650.00,P TUCKWELL LTD,TUC002
EFDC,CM120,COMMUNITIES SUPPORT SERVICES,CONSULTANTS FEES,3490,13-Apr-16,81195,1500.00,SAVILLS (UK) LIMITED,SAV004
EFDC,RM100,RESPONSIVE & VOID REPAIRS,BUILDING MAINTENANCE,1010,20-Apr-16,81209,1600.00,ABBEY MAINTENANCE LTD,ABB009
EFDC,32060,OTHER SUPPORT SERVICES (HR),CONSULTANTS FEES,3490,13-Apr-16,81214,1150.00,MS TARA O'LEARY,OLE001
EFDC,DC100,PLANNING REGULATORY SERVICES,PROFESSIONAL FEES,3420,13-Apr-16,81221,2260.00,BRYAN LECOCHE LTD,BRY001
EFDC,OS100,PARKS & GROUNDS,MATERIALS,3080,20-Apr-16,81223,4607.00,PONDS UK - AQUATIC MANAGEMENT LTD,PON001
EFDC,OS100,PARKS & GROUNDS,MATERIALS,3080,20-Apr-16,81223,1200.00,PONDS UK - AQUATIC MANAGEMENT LTD,PON001
EFDC,OS100,PARKS & GROUNDS,GROUNDS MAINTENANCE,1040,20-Apr-16,81223,2021.95,PONDS UK - AQUATIC MANAGEMENT LTD,PON001
EFDC,33060,OTHER ACTIVITIES,AGENCY STAFF,0120,13-Apr-16,81224,1064.00,HAYS SPECIALIST RECRUITMENT LTD,HAY011
EFDC,35300,ENVIRONMENTAL OTHER,AGENCY STAFF,0120,13-Apr-16,81225,677.96,HL SERVICES (LONDON) LTD,HLS001
EFDC,RM100,RESPONSIVE & VOID REPAIRS,BUILDING MAINTENANCE,1010,13-Apr-16,81226,1940.89,EXTERIOR PLAS,EXT001
EFDC,RM100,RESPONSIVE & VOID REPAIRS,BUILDING MAINTENANCE,1010,13-Apr-16,81228,2324.35,EXTERIOR PLAS,EXT001
EFDC,YB620,SUPERVISION/MANAGEMENT SPECIAL,BANKING AND CASH COLLECTION,3440,27-Apr-16,81232,93.73,CONTRACT SECURITY SERVICES LTD,CON033
EFDC,EH160,OTHER ACTIVITIES,BANKING AND CASH COLLECTION,3440,27-Apr-16,81232,80.40,CONTRACT SECURITY SERVICES LTD,CON033
EFDC,34110,COMMUNITIES SUPPORT SERVICES,BANKING AND CASH COLLECTION,3440,27-Apr-16,81232,80.69,CONTRACT SECURITY SERVICES LTD,CON033
EFDC,33020,OTHER ACTIVITIES,BANKING AND CASH COLLECTION,3440,27-Apr-16,81232,1311.69,CONTRACT SECURITY SERVICES LTD,CON033
EFDC,TO100,LAND & PROPERTY,BANKING AND CASH COLLECTION,3440,27-Apr-16,81232,79.65,CONTRACT SECURITY SERVICES LTD,CON033
EFDC,26200,OTHER SUPPORT SERVICES (HR),BUILDING MAINTENANCE,1010,27-Apr-16,81234,530.00,T B PROPERTY SERVICES (ESSEX) LTD,TBP001
EFDC,26200,OTHER SUPPORT SERVICES (HR),BUILDING MAINTENANCE,1010,27-Apr-16,81234,800.00,T B PROPERTY SERVICES (ESSEX) LTD,TBP001
EFDC,26200,OTHER SUPPORT SERVICES (HR),BUILDING MAINTENANCE,1010,27-Apr-16,81234,1000.00,T B PROPERTY SERVICES (ESSEX) LTD,TBP001
EFDC,YB400,SUPERVISION/MANAGEMENT SPECIAL,TREE  MAINTENANCE,1070,27-Apr-16,81236,1600.00,GRISTWOOD & TOMS LTD,GRI001
EFDC,RM100,RESPONSIVE & VOID REPAIRS,BUILDING MAINTENANCE,1010,27-Apr-16,81237,1341.82,ENVIROVENT LTD,ENV006
EFDC,YA100,SUPERVISION/MANAGEMENT GENERAL,PROFESSIONAL FEES,3420,27-Apr-16,81240,10000.00,VALUATION OFFICE AGENCY,VAL002
EFDC,YA180,SUPERVISION/MANAGEMENT GENERAL,AGENCY STAFF,0120,13-Apr-16,81244,906.60,VENN GROUP LTD,VEN004
EFDC,26200,OTHER SUPPORT SERVICES (HR),BUILDING MAINTENANCE,1010,20-Apr-16,81247,1189.12,ROGER AYERS T/A R J SPECIALIST COATINGS,SPE005
EFDC,26200,OTHER SUPPORT SERVICES (HR),BUILDING MAINTENANCE,1010,20-Apr-16,81247,2340.00,ROGER AYERS T/A R J SPECIALIST COATINGS,SPE005
EFDC,CD112,SPORTS DEVELOPMENT & OTHER,TRAINING EXPENSES,0310,20-Apr-16,81249,243.00,BOWN ENTERPRISES LIMITED,BOW006
EFDC,CD112,SPORTS DEVELOPMENT & OTHER,ACTIVITIES,3372,20-Apr-16,81249,372.50,BOWN ENTERPRISES LIMITED,BOW006
EFDC,RS410,SPORTS DEVELOPMENT & OTHER,ACTIVITIES,3372,13-Apr-16,81251,1250.00,PARKRUN LTD,PAR022
EFDC,RS410,SPORTS DEVELOPMENT & OTHER,ACTIVITIES,3372,13-Apr-16,81252,1617.00,HIGH BEECH RIDING SCHOOL,HIG002
EFDC,26200,OTHER SUPPORT SERVICES (HR),BUILDING MAINTENANCE,1010,06-Apr-16,81253,342.00,M J ANDERSON MAINTENANCE CONTRACTORS LTD,AND003
EFDC,26200,OTHER SUPPORT SERVICES (HR),BUILDING MAINTENANCE,1010,06-Apr-16,81253,159.36,M J ANDERSON MAINTENANCE CONTRACTORS LTD,AND003
EFDC,YA140,SUPERVISION/MANAGEMENT GENERAL,CONSULTANTS FEES,3490,20-Apr-16,81256,1567.50,CAPITA BUSINESS SERVICES LTD,CAP004
EFDC,78001,OTHER ACTIVITIES,MATERIALS,3080,27-Apr-16,81258,530.00,HOLLINGTON DOORS LTD,HOL002
EFDC,YB200,SUPERVISION/MANAGEMENT SPECIAL,EQUIPMENT - NEW,3010,27-Apr-16,81259,2470.00,WESTON DIGITAL TECHNOLOGIES LTD,WES004
EFDC,OS110,PARKS & GROUNDS,GROUNDS MAINTENANCE,1040,20-Apr-16,81260,525.20,HUGH PEARL (LAND DRAINAGE) LTD,HUG001
EFDC,26200,OTHER SUPPORT SERVICES (HR),FIXED PLANT MAINTENANCE,1020,27-Apr-16,81261,2617.00,INVATRON BUILDING SERVICES LTD,INV002
EFDC,CAPRS,RESOURCES CAPITAL,WORKS- LAND AND BUILDINGS,B040,27-Apr-16,81264,563.00,INVATRON BUILDING SERVICES LTD,INV002
EFDC,OS110,PARKS & GROUNDS,GROUNDS MAINTENANCE,1040,20-Apr-16,81265,753.54,HUGH PEARL (LAND DRAINAGE) LTD,HUG001
EFDC,CAPRS,RESOURCES CAPITAL,WORKS- LAND AND BUILDINGS,B040,20-Apr-16,81266,3736.00,AIRCRAFT AIR HANDLING LIMITED,AIR004
EFDC,UO120,LAND & PROPERTY,CONSULTANTS FEES,3490,13-Apr-16,81269,26830.00,PELLINGS LLP,PEL002
EFDC,LT120,LOCAL TAXATION,COMPUTER - OTHER,3570,06-Apr-16,81270,1045.00,CAPITA BUSINESS SERVICES LTD,CAP004
EFDC,32030,OTHER SUPPORT SERVICES (HR),POSTAGE,3510,13-Apr-16,81272,60.28,ROYAL MAIL GROUP PLC,ROY015
EFDC,34110,COMMUNITIES SUPPORT SERVICES,POSTAGE,3510,13-Apr-16,81272,38.30,ROYAL MAIL GROUP PLC,ROY015
EFDC,RE100,ELECTIONS,POSTAGE,3510,13-Apr-16,81272,80.60,ROYAL MAIL GROUP PLC,ROY015
EFDC,35900,ENVIRONMENTAL OTHER,POSTAGE,3510,13-Apr-16,81272,39.11,ROYAL MAIL GROUP PLC,ROY015
EFDC,33055,OTHER ACTIVITIES,POSTAGE,3510,13-Apr-16,81272,193.67,ROYAL MAIL GROUP PLC,ROY015
EFDC,33055,OTHER ACTIVITIES,POSTAGE,3510,13-Apr-16,81272,65.00,ROYAL MAIL GROUP PLC,ROY015
EFDC,33075,OTHER ACTIVITIES,POSTAGE,3510,13-Apr-16,81272,1446.91,ROYAL MAIL GROUP PLC,ROY015
EFDC,33075,OTHER ACTIVITIES,POSTAGE,3510,13-Apr-16,81272,867.10,ROYAL MAIL GROUP PLC,ROY015
EFDC,36200,OTHER ACTIVITIES,POSTAGE,3510,13-Apr-16,81272,326.25,ROYAL MAIL GROUP PLC,ROY015
EFDC,37100,PLANNING OTHER,POSTAGE,3510,13-Apr-16,81272,201.16,ROYAL MAIL GROUP PLC,ROY015
EFDC,33080,OTHER ACTIVITIES,EQUIPMENT - MAINTENANCE,3030,27-Apr-16,81275,9075.23,AVR INTERNATIONAL LIMITED,AVR001
EFDC,ED100,FORWARD PLANNING & ECONOMIC,MARKETING & EVENTS,3370,08-Jun-16,81278,987.00,PARTNERS BY DESIGN,PAR005
EFDC,ED100,FORWARD PLANNING & ECONOMIC,MARKETING & EVENTS,3370,08-Jun-16,81278,702.00,PARTNERS BY DESIGN,PAR005
EFDC,DR140,MEMBER ACTIVITIES,OTHER MISCELLANEOUS EXPENSES,3850,13-Apr-16,81288,5169.25,THE SCOUT ASSOCIATION,SCO005
EFDC,36700,OTHER ACTIVITIES,AGENCY STAFF,0120,27-Apr-16,81289,522.00,MMP CONSULTANCY,MMP001
EFDC,35300,ENVIRONMENTAL OTHER,VEHICLE HIRE,2620,13-Apr-16,81292,898.66,ERNEST DOE & SONS LTD,ERN001
EFDC,35300,ENVIRONMENTAL OTHER,VEHICLE HIRE,2620,13-Apr-16,81293,2200.00,ERNEST DOE & SONS LTD,ERN001
EFDC,26200,OTHER SUPPORT SERVICES (HR),BUILDING MAINTENANCE,1010,27-Apr-16,81294,1500.00,VENTILATION SURVEYS AND SERVICES LTD,VEN001
EFDC,33080,OTHER ACTIVITIES,ANNUAL SUPPORT /  LICENSES,3872,27-Apr-16,81296,13000.00,PHOENIX SOFTWARE LTD,PHO002
EFDC,32220,OTHER SUPPORT SERVICES (HR),ANNUAL SUPPORT /  LICENSES,3872,27-Apr-16,81297,645.25,GROSVENOR SYSTEMS LTD,GRO005
EFDC,32220,OTHER SUPPORT SERVICES (HR),TRAINING EXPENSES,0310,27-Apr-16,81297,895.00,GROSVENOR SYSTEMS LTD,GRO005
EFDC,CAPNB,NEIGHBOURHOODS CAPITAL,CAPITAL SOFTWARE,K340,27-Apr-16,81297,4975.00,GROSVENOR SYSTEMS LTD,GRO005
EFDC,RS301,NORTH WEALD CENTRE,FIXED PLANT MAINTENANCE,1020,20-Apr-16,81301,1500.00,C.Q SURFACING,SUR008
EFDC,RS301,NORTH WEALD CENTRE,FIXED PLANT MAINTENANCE,1020,20-Apr-16,81301,6180.00,C.Q SURFACING,SUR008
EFDC,EH150,REGULATORY SERVICES,CRB POLICE CHECK COSTS,0381,11-May-16,81303,836.00,DISCLOSURE & BARRING SERVICE,CRB002
EFDC,36200,OTHER ACTIVITIES,CRB POLICE CHECK COSTS,0381,11-May-16,81303,88.00,DISCLOSURE & BARRING SERVICE,CRB002
EFDC,RS401,SPORTS DEVELOPMENT & OTHER,CRB POLICE CHECK COSTS,0381,11-May-16,81303,44.00,DISCLOSURE & BARRING SERVICE,CRB002
EFDC,37500,PLANNING OTHER,AGENCY STAFF,0120,20-Apr-16,81304,1020.00,SAFFRON BUILDING CONSULTANCY,SAF004
EFDC,78001,OTHER ACTIVITIES,MATERIALS,3080,20-Apr-16,81332,746.40,WALTHAM FOREST FENCING,WAL001
EFDC,EH160,OTHER ACTIVITIES,CONTRACT CLEANING,1630,06-Apr-16,81338,770.00,CORDELL SERVICES,COR002
EFDC,33060,OTHER ACTIVITIES,AGENCY STAFF,0120,27-Apr-16,81339,924.00,HAYS SPECIALIST RECRUITMENT LTD,HAY011
EFDC,CH117,HERITAGE LOTTERY FUND,PRINTING - EXTERNAL,3390,18-May-16,81343,1255.00,MARTIN DANNELL & CO LTD,MAR031
EFDC,YA100,SUPERVISION/MANAGEMENT GENERAL,PUBLICITY,3360,20-Apr-16,81346,2731.00,MOBILE STATIONERY PRINTING CENTRE LTD,MOB002
EFDC,32121,OTHER SUPPORT SERVICES (HR),CONSULTANTS FEES,3490,01-Jun-16,81347,3850.00,MR M BEARD,BEA001
EFDC,32220,OTHER SUPPORT SERVICES (HR),AGENCY STAFF,0120,27-Apr-16,81348,504.00,HAYS SPECIALIST RECRUITMENT LTD,HAY011
EFDC,33065,OTHER ACTIVITIES,PROFESSIONAL FEES,3420,13-Apr-16,81349,16168.00,BDO LLP,BDO001
EFDC,33075,OTHER ACTIVITIES,AGENCY STAFF,0120,20-Apr-16,81350,774.00,BADENOCH & CLARK,BAD001
EFDC,33080,OTHER ACTIVITIES,ANNUAL SUPPORT /  LICENSES,3872,20-Apr-16,81353,1563.81,CAPITA BUSINESS SERVICES LTD,CAP004
EFDC,26200,OTHER SUPPORT SERVICES (HR),FIXED PLANT MAINTENANCE,1020,27-Apr-16,81354,1234.00,ALLIED MECHANICAL SERVICES LTD,ALL002
EFDC,37600,PLANNING OTHER,AGENCY STAFF,0120,27-Apr-16,81356,782.04,THE OYSTER PARTNERSHIP LTD,OYS001
EFDC,RM100,RESPONSIVE & VOID REPAIRS,BUILDING MAINTENANCE,1010,20-Apr-16,81357,625.68,WEDGE CIVIL ENGINEERING LTD,WED004
EFDC,36500,OTHER ACTIVITIES,AGENCY STAFF,0120,20-Apr-16,81362,900.00,BADENOCH & CLARK,BAD001
EFDC,YB350,SUPERVISION/MANAGEMENT SPECIAL,EQUIPMENT - NEW,3010,13-Apr-16,81363,3516.00,GW COMMERCIAL EQUIPMENT LTD,GWC001
EFDC,26200,OTHER SUPPORT SERVICES (HR),BUILDING MAINTENANCE,1010,27-Apr-16,81367,212.97,SMART MERCHANTS LTD,SMA002
EFDC,26200,OTHER SUPPORT SERVICES (HR),BUILDING MAINTENANCE,1010,27-Apr-16,81367,725.00,SMART MERCHANTS LTD,SMA002
EFDC,26200,OTHER SUPPORT SERVICES (HR),BUILDING MAINTENANCE,1010,27-Apr-16,81372,1769.01,SMART MERCHANTS LTD,SMA002
EFDC,78001,OTHER ACTIVITIES,REFUSE REMOVAL,1640,27-Apr-16,81373,566.80,GBN SERVICES LTD,GBN002
EFDC,32121,OTHER SUPPORT SERVICES (HR),CONSULTANTS FEES,3490,13-Apr-16,81375,3470.00,BEVAN BRITTAN LLP CLIENT A/C,BEV002
EFDC,26200,OTHER SUPPORT SERVICES (HR),BUILDING MAINTENANCE,1010,06-Apr-16,81380,912.60,WEDGE CIVIL ENGINEERING LTD,WED004
EFDC,YA140,SUPERVISION/MANAGEMENT GENERAL,CONSULTANTS FEES,3490,13-Apr-16,81382,1045.00,CAPITA BUSINESS SERVICES LTD,CAP004
EFDC,YA140,SUPERVISION/MANAGEMENT GENERAL,CONSULTANTS FEES,3490,13-Apr-16,81383,9405.00,CAPITA BUSINESS SERVICES LTD,CAP004
EFDC,35300,ENVIRONMENTAL OTHER,EQUIPMENT - NEW,3010,27-Apr-16,81384,5800.00,P TUCKWELL LTD,TUC002
EFDC,CAPCM,COMMUNITIES CAPITAL,MANAGEMENT CONSULTANT,E130,20-Apr-16,81386,11.70,JOHN BIGBY HOUSING CONSULTANT LTD,JOH026
EFDC,CAPCM,COMMUNITIES CAPITAL,MANAGEMENT CONSULTANT,E130,20-Apr-16,81386,563.33,JOHN BIGBY HOUSING CONSULTANT LTD,JOH026
EFDC,CAPCM,COMMUNITIES CAPITAL,MANAGEMENT CONSULTANT,E130,20-Apr-16,81386,86.67,JOHN BIGBY HOUSING CONSULTANT LTD,JOH026
EFDC,CAPCM,COMMUNITIES CAPITAL,WORKS- COUNCIL DWELLINGS,A040,20-Apr-16,81389,6741.29,OPENVIEW SECURITY SOLUTIONS LTD,CAR003
EFDC,CAPCM,COMMUNITIES CAPITAL,VOIDS WORKS,A045,20-Apr-16,81392,124.00,GRACELANDS COMPLETE MAINTENANCE SERVICES LTD,GRA007
EFDC,CAPCM,COMMUNITIES CAPITAL,VOIDS WORKS,A045,20-Apr-16,81392,3521.86,GRACELANDS COMPLETE MAINTENANCE SERVICES LTD,GRA007
EFDC,RM100,RESPONSIVE & VOID REPAIRS,BUILDING MAINTENANCE,1010,13-Apr-16,81394,560.00,GRACELANDS COMPLETE MAINTENANCE SERVICES LTD,GRA007
EFDC,78001,OTHER ACTIVITIES,MATERIALS,3080,20-Apr-16,81397,1718.44,CRANBROOK ELECTRICS,CRA001
EFDC,32220,OTHER SUPPORT SERVICES (HR),AGENCY STAFF,0120,20-Apr-16,81403,730.75,HAYS SPECIALIST RECRUITMENT LTD,HAY011
EFDC,PP111,FORWARD PLANNING & ECONOMIC,PROFESSIONAL FEES,3420,27-Apr-16,81416,4000.00,OPINION RESEARCH SERVICES,OPI001
EFDC,26200,OTHER SUPPORT SERVICES (HR),BUILDING MAINTENANCE,1010,20-Apr-16,81421,525.00,PTC SYSTEMS LTD,PTC003
EFDC,33080,OTHER ACTIVITIES,ANNUAL SUPPORT /  LICENSES,3872,27-Apr-16,81422,1000.00,MODERN MINDSET LTD,MOD004
EFDC,33080,OTHER ACTIVITIES,ANNUAL SUPPORT /  LICENSES,3872,27-Apr-16,81422,7010.00,MODERN MINDSET LTD,MOD004
EFDC,SC100,WASTE MANAGEMENT,HIGHWAYS CONTRACTORS,4310,27-Apr-16,81423,11337.93,EASTERN WASTE DISPOSAL LTD,EAS002
EFDC,32060,OTHER SUPPORT SERVICES (HR),BOOKS & PUBLICATIONS,3350,27-Apr-16,81426,5.45,LEXISNEXIS,LEX003
EFDC,32060,OTHER SUPPORT SERVICES (HR),BOOKS & PUBLICATIONS,3350,27-Apr-16,81426,258.53,LEXISNEXIS,LEX003
EFDC,32060,OTHER SUPPORT SERVICES (HR),BOOKS & PUBLICATIONS,3350,27-Apr-16,81426,243.47,LEXISNEXIS,LEX003
EFDC,CAPRS,RESOURCES CAPITAL,CAPITAL SOFTWARE,K340,27-Apr-16,81429,30000.00,NORTHGATE PUBLIC SERVICES (UK) LTD,NOR018
EFDC,27110,ACCOMMODATION,PHOTOCOPYING,3300,27-Apr-16,81430,55.02,CANON (UK) LTD,CAN004
EFDC,32030,OTHER SUPPORT SERVICES (HR),PHOTOCOPYING,3300,27-Apr-16,81430,127.64,CANON (UK) LTD,CAN004
EFDC,32030,OTHER SUPPORT SERVICES (HR),PHOTOCOPYING,3300,27-Apr-16,81430,225.81,CANON (UK) LTD,CAN004
EFDC,34110,COMMUNITIES SUPPORT SERVICES,PHOTOCOPYING,3300,27-Apr-16,81430,86.16,CANON (UK) LTD,CAN004
EFDC,35007,ENVIRONMENTAL OTHER,PHOTOCOPYING,3300,27-Apr-16,81430,150.15,CANON (UK) LTD,CAN004
EFDC,35300,ENVIRONMENTAL OTHER,PHOTOCOPYING,3300,27-Apr-16,81430,107.86,CANON (UK) LTD,CAN004
EFDC,35950,ENVIRONMENTAL OTHER,PHOTOCOPYING,3300,27-Apr-16,81430,54.93,CANON (UK) LTD,CAN004
EFDC,33055,OTHER ACTIVITIES,PHOTOCOPYING,3300,27-Apr-16,81430,59.90,CANON (UK) LTD,CAN004
EFDC,36200,OTHER ACTIVITIES,PHOTOCOPYING,3300,27-Apr-16,81430,86.61,CANON (UK) LTD,CAN004
EFDC,36500,OTHER ACTIVITIES,PHOTOCOPYING,3300,27-Apr-16,81430,81.46,CANON (UK) LTD,CAN004
EFDC,78001,OTHER ACTIVITIES,PHOTOCOPYING,3300,27-Apr-16,81430,76.46,CANON (UK) LTD,CAN004
EFDC,TO100,LAND & PROPERTY,PHOTOCOPYING,3300,27-Apr-16,81430,74.33,CANON (UK) LTD,CAN004
EFDC,31120,CORPORATE SUPPORT SERVICES,PHOTOCOPYING,3300,27-Apr-16,81430,60.03,CANON (UK) LTD,CAN004
EFDC,37100,PLANNING OTHER,PHOTOCOPYING,3300,27-Apr-16,81430,115.55,CANON (UK) LTD,CAN004
EFDC,32200,OTHER SUPPORT SERVICES (HR),EQUIPMENT - HIRED,3020,27-Apr-16,81431,529.13,CANON (UK) LTD,CAN004
EFDC,YA300,SUPERVISION/MANAGEMENT GENERAL,BANKING AND CASH COLLECTION,3440,13-Apr-16,81442,3360.09,ALLPAY.NET.LIMITED,ALL010
EFDC,YA300,SUPERVISION/MANAGEMENT GENERAL,BANKING AND CASH COLLECTION,3440,13-Apr-16,81443,1878.51,ALLPAY.NET.LIMITED,ALL010
EFDC,UO120,LAND & PROPERTY,AGENCY STAFF,0120,13-Apr-16,81448,588.00,CAPSTONE PROPERTY RECRUITMENT (INTERIM) LTD,CAP001
EFDC,32220,OTHER SUPPORT SERVICES (HR),AGENCY STAFF,0120,13-Apr-16,81449,4880.00,CAPSTONE PROPERTY RECRUITMENT (INTERIM) LTD,CAP001
EFDC,LA100,LAA POOLED FUNDS,LAA EXPENDITURE,Y100,13-Apr-16,81450,1200.00,UNCHOSEN,UNC001
EFDC,33080,OTHER ACTIVITIES,ANNUAL SUPPORT /  LICENSES,3872,04-May-16,81451,1175.00,AIT PARTNERSHIP GROUP LTD,AIT001
EFDC,YB620,SUPERVISION/MANAGEMENT SPECIAL,GAS,1110,06-Apr-16,81454,1950.18,CORONA ENERGY RETAIL 4 LTD,COR015
EFDC,27050,ACCOMMODATION,GAS,1110,06-Apr-16,81455,2142.87,CORONA ENERGY RETAIL 4 LTD,COR015
EFDC,YB500,SUPERVISION/MANAGEMENT SPECIAL,GAS,1110,06-Apr-16,81456,1497.49,CORONA ENERGY RETAIL 4 LTD,COR015
EFDC,YB500,SUPERVISION/MANAGEMENT SPECIAL,GAS,1110,06-Apr-16,81457,1176.17,CORONA ENERGY RETAIL 4 LTD,COR015
EFDC,YB350,SUPERVISION/MANAGEMENT SPECIAL,GAS,1110,06-Apr-16,81465,518.08,CORONA ENERGY RETAIL 4 LTD,COR015
EFDC,YB500,SUPERVISION/MANAGEMENT SPECIAL,GAS,1110,06-Apr-16,81466,1589.06,CORONA ENERGY RETAIL 4 LTD,COR015
EFDC,YB500,SUPERVISION/MANAGEMENT SPECIAL,GAS,1110,06-Apr-16,81467,1690.08,CORONA ENERGY RETAIL 4 LTD,COR015
EFDC,YB500,SUPERVISION/MANAGEMENT SPECIAL,GAS,1110,06-Apr-16,81472,619.20,CORONA ENERGY RETAIL 4 LTD,COR015
EFDC,YB500,SUPERVISION/MANAGEMENT SPECIAL,GAS,1110,06-Apr-16,81473,988.29,CORONA ENERGY RETAIL 4 LTD,COR015
EFDC,23170,ACCOMMODATION,GAS,1110,06-Apr-16,81474,1141.54,CORONA ENERGY RETAIL 4 LTD,COR015
EFDC,35300,ENVIRONMENTAL OTHER,GAS,1110,06-Apr-16,81476,701.57,CORONA ENERGY RETAIL 4 LTD,COR015
EFDC,YB500,SUPERVISION/MANAGEMENT SPECIAL,GAS,1110,06-Apr-16,81484,1585.64,CORONA ENERGY RETAIL 4 LTD,COR015
EFDC,YB500,SUPERVISION/MANAGEMENT SPECIAL,GAS,1110,06-Apr-16,81486,1389.33,CORONA ENERGY RETAIL 4 LTD,COR015
EFDC,CH110,ARTS & MUSEUM,TREE  MAINTENANCE,1070,06-Apr-16,81495,596.15,ABSOLUTE MUSEUM & GALLERY PRODUCTS LTD,ABS001
EFDC,CAPCM,COMMUNITIES CAPITAL,WORKS- COUNCIL DWELLINGS,A040,06-Apr-16,81497,15899.36,GRACELANDS COMPLETE MAINTENANCE SERVICES LTD,GRA007
EFDC,CAPCM,COMMUNITIES CAPITAL,WORKS- COUNCIL DWELLINGS,A040,06-Apr-16,81498,980.00,GRACELANDS COMPLETE MAINTENANCE SERVICES LTD,GRA007
EFDC,CAPCM,COMMUNITIES CAPITAL,WORKS- COUNCIL DWELLINGS,A040,06-Apr-16,81498,1737.00,GRACELANDS COMPLETE MAINTENANCE SERVICES LTD,GRA007
EFDC,CAPCM,COMMUNITIES CAPITAL,WORKS- COUNCIL DWELLINGS,A040,06-Apr-16,81498,28057.95,GRACELANDS COMPLETE MAINTENANCE SERVICES LTD,GRA007
EFDC,CAPCM,COMMUNITIES CAPITAL,WORKS- COUNCIL DWELLINGS,A040,06-Apr-16,81499,3999.11,GRACELANDS COMPLETE MAINTENANCE SERVICES LTD,GRA007
EFDC,CAPCM,COMMUNITIES CAPITAL,WORKS- COUNCIL DWELLINGS,A040,06-Apr-16,81499,35229.64,GRACELANDS COMPLETE MAINTENANCE SERVICES LTD,GRA007
EFDC,CAPCM,COMMUNITIES CAPITAL,WORKS- COUNCIL DWELLINGS,A040,06-Apr-16,81499,1300.00,GRACELANDS COMPLETE MAINTENANCE SERVICES LTD,GRA007
EFDC,CAPCM,COMMUNITIES CAPITAL,WORKS- COUNCIL DWELLINGS,A040,06-Apr-16,81500,40648.46,GRACELANDS COMPLETE MAINTENANCE SERVICES LTD,GRA007
EFDC,33080,OTHER ACTIVITIES,EQUIPMENT - NEW,3010,06-Apr-16,81506,1936.00,O2 (UK) LTD,OTW002
EFDC,PS100,CAR PARKING,CONSULTANTS FEES,3490,13-Apr-16,81513,675.00,R.T.A. ASSOCIATES LTD,RTA001
EFDC,CAPCM,COMMUNITIES CAPITAL,Planning and Building Regs,D110,06-Apr-16,81514,1507.50,STACE LLP,STA012
EFDC,HI125,HIGHWAYS,OTHER MAINTENANCE,1050,06-Apr-16,81516,534.00,WEDGE CIVIL ENGINEERING LTD,WED004
EFDC,HI126,HIGHWAYS,OTHER MAINTENANCE,1050,06-Apr-16,81516,225.00,WEDGE CIVIL ENGINEERING LTD,WED004
EFDC,HI131,HIGHWAYS,OTHER MAINTENANCE,1050,06-Apr-16,81516,445.00,WEDGE CIVIL ENGINEERING LTD,WED004
EFDC,CAPRS,RESOURCES CAPITAL,CAPITAL SOFTWARE,K340,06-Apr-16,81517,9750.00,NORTHGATE PUBLIC SERVICES (UK) LTD,NOR018
EFDC,42520,GOVERNANCE SUPPORT SERVICES,TRAINING EXPENSES,0310,06-Apr-16,81519,998.00,LABC,LAB001
EFDC,33080,OTHER ACTIVITIES,LICENCES,3870,06-Apr-16,81520,5086.40,KELWAY UK LTD,KEL002
EFDC,33080,OTHER ACTIVITIES,ANNUAL SUPPORT /  LICENSES,3872,06-Apr-16,81521,7560.00,FIRMSTEP,FIR009
EFDC,33080,OTHER ACTIVITIES,ANNUAL SUPPORT /  LICENSES,3872,06-Apr-16,81522,1500.00,HITEC (LABORATORIES) LTD,HIT001
EFDC,CAPRS,RESOURCES CAPITAL,WORKS- LAND AND BUILDINGS,B040,27-Apr-16,81528,340.00,ALLWAYS AIR-CONDITIONING & VENTILATION,ALL003
EFDC,CAPRS,RESOURCES CAPITAL,WORKS- LAND AND BUILDINGS,B040,27-Apr-16,81528,500.00,ALLWAYS AIR-CONDITIONING & VENTILATION,ALL003
EFDC,CAPRS,RESOURCES CAPITAL,CAPITAL SOFTWARE,K340,20-Apr-16,81529,937.50,TRICOSTAR SOFTWARE LTD,TRI003
EFDC,33080,OTHER ACTIVITIES,EQUIPMENT - NEW,3010,27-Apr-16,81539,976.00,ROBERT M. DONALDSON LTD,ROB005
EFDC,32220,OTHER SUPPORT SERVICES (HR),AGENCY STAFF,0120,13-Apr-16,81540,5040.00,CAPSTONE PROPERTY RECRUITMENT (INTERIM) LTD,CAP001
EFDC,CAPRS,RESOURCES CAPITAL,CAPITAL SOFTWARE,K340,20-Apr-16,81544,20332.29,BYTES SOFTWARE SERVICES LTD,BYT001
EFDC,RS401,SPORTS DEVELOPMENT & OTHER,ACTIVITIES,3372,20-Apr-16,81545,750.00,EPPING FOREST MTB,EPP046
EFDC,RS401,SPORTS DEVELOPMENT & OTHER,ACTIVITIES,3372,20-Apr-16,81546,610.00,EPPING FOREST MTB,EPP046
EFDC,RS401,SPORTS DEVELOPMENT & OTHER,ACTIVITIES,3372,20-Apr-16,81548,600.00,EPPING FOREST MTB,EPP046
EFDC,RS401,SPORTS DEVELOPMENT & OTHER,ACTIVITIES,3372,20-Apr-16,81549,765.00,EPPING FOREST MTB,EPP046
EFDC,RS401,SPORTS DEVELOPMENT & OTHER,ACTIVITIES,3372,20-Apr-16,81550,660.00,EPPING FOREST MTB,EPP046
EFDC,35300,ENVIRONMENTAL OTHER,MATERIALS,3080,04-May-16,81556,1659.40,NOMIX-ENVIRO LTD,NOM001
EFDC,EH112,LAND DRAINAGE/SEWERAGE,OTHER MAINTENANCE,1050,20-Apr-16,81557,3108.22,VEOLIA ES (UK) LTD,VER004
EFDC,WC100,WASTE MANAGEMENT,ADVERTISING,3820,20-Apr-16,81558,503.75,NEWSQUEST MEDIA GROUP,NEW002
EFDC,DC120,PLANNING REGULATORY SERVICES,PUBLICITY,3360,13-Apr-16,81559,595.00,NEWSQUEST MEDIA GROUP,NEW002
EFDC,32180,OTHER SUPPORT SERVICES (HR),SUBSCRIPTIONS,3730,27-Apr-16,81565,690.80,IHS (GLOBAL) LIMITED,IHS001
EFDC,35013,ENVIRONMENTAL OTHER,SUBSCRIPTIONS,3730,27-Apr-16,81565,2504.15,IHS (GLOBAL) LIMITED,IHS001
EFDC,36650,OTHER ACTIVITIES,SUBSCRIPTIONS,3730,27-Apr-16,81565,1899.70,IHS (GLOBAL) LIMITED,IHS001
EFDC,37100,PLANNING OTHER,SUBSCRIPTIONS,3730,27-Apr-16,81565,3540.35,IHS (GLOBAL) LIMITED,IHS001
EFDC,CAPCM,COMMUNITIES CAPITAL,WORKS- COUNCIL DWELLINGS,A040,13-Apr-16,81576,17783.12,ARAN SERVICES LTD,ARA001
EFDC,CAPCM,COMMUNITIES CAPITAL,WORKS- COUNCIL DWELLINGS,A040,06-Apr-16,81577,15663.96,EXTERIOR PLAS,EXT001
EFDC,CAPCM,COMMUNITIES CAPITAL,WORKS- COUNCIL DWELLINGS,A040,06-Apr-16,81577,6728.38,EXTERIOR PLAS,EXT001
EFDC,RM300,PLANNED & CYCLICAL MAINTENANCE,BUILDING MAINTENANCE,1010,06-Apr-16,81578,4343.08,FLOWLINE (BUILDERS) LTD,FLO003
EFDC,CAPCM,COMMUNITIES CAPITAL,WORKS- COUNCIL DWELLINGS,A040,06-Apr-16,81579,2475.30,FLOWLINE (BUILDERS) LTD,FLO003
EFDC,CAPCM,COMMUNITIES CAPITAL,WORKS- COUNCIL DWELLINGS,A040,06-Apr-16,81580,44427.06,GRACELANDS COMPLETE MAINTENANCE SERVICES LTD,GRA007
EFDC,CAPCM,COMMUNITIES CAPITAL,WORKS- COUNCIL DWELLINGS,A040,06-Apr-16,81581,50201.35,GRACELANDS COMPLETE MAINTENANCE SERVICES LTD,GRA007
EFDC,RM300,PLANNED & CYCLICAL MAINTENANCE,BUILDING MAINTENANCE,1010,06-Apr-16,81582,115301.41,GRACELANDS COMPLETE MAINTENANCE SERVICES LTD,GRA007
EFDC,42520,GOVERNANCE SUPPORT SERVICES,EQUIPMENT - NEW,3010,06-Apr-16,81583,1076.99,O2 (UK) LTD,OTW002
EFDC,PT110,OTHER ACTIVITIES,OTHER MISCELLANEOUS EXPENSES,3850,06-Apr-16,81584,4070.00,TRANSPORT TRADING LTD,TRA012
EFDC,RS400,SPORTS DEVELOPMENT & OTHER,ACTIVITIES,3372,06-Apr-16,81585,528.00,O2 (UK) LTD,OTW002
EFDC,33080,OTHER ACTIVITIES,MOBILE PHONE LINE COSTS,3580,06-Apr-16,81587,10.91,O2 (UK) LTD,OTW002
EFDC,33080,OTHER ACTIVITIES,MOBILE PHONE LINE COSTS,3580,06-Apr-16,81587,4017.80,O2 (UK) LTD,OTW002
EFDC,CAPCM,COMMUNITIES CAPITAL,WORKS- COUNCIL DWELLINGS,A040,06-Apr-16,81590,48685.87,M & J SERVICES LTD,SER009
EFDC,YB500,SUPERVISION/MANAGEMENT SPECIAL,WATER CHARGES,1410,06-Apr-16,81591,877.74,THAMES WATER UTILITIES LTD,THA001
EFDC,RM300,PLANNED & CYCLICAL MAINTENANCE,BUILDING MAINTENANCE,1010,06-Apr-16,81600,601.76,WEDGE CIVIL ENGINEERING LTD,WED004
EFDC,RM300,PLANNED & CYCLICAL MAINTENANCE,BUILDING MAINTENANCE,1010,06-Apr-16,81601,3357.16,WEDGE CIVIL ENGINEERING LTD,WED004
EFDC,RM300,PLANNED & CYCLICAL MAINTENANCE,BUILDING MAINTENANCE,1010,06-Apr-16,81602,838.20,WEDGE CIVIL ENGINEERING LTD,WED004
EFDC,RM300,PLANNED & CYCLICAL MAINTENANCE,BUILDING MAINTENANCE,1010,06-Apr-16,81603,4156.57,WEDGE CIVIL ENGINEERING LTD,WED004
EFDC,YB400,SUPERVISION/MANAGEMENT SPECIAL,OTHER MISCELLANEOUS EXPENSES,3850,06-Apr-16,81604,4098.98,WEDGE CIVIL ENGINEERING LTD,WED004
EFDC,CAPCM,COMMUNITIES CAPITAL,WORKS- COUNCIL DWELLINGS,A040,06-Apr-16,81605,19550.95,WEDGE CIVIL ENGINEERING LTD,WED004
EFDC,CAPCM,COMMUNITIES CAPITAL,WORKS- COUNCIL DWELLINGS,A040,06-Apr-16,81606,49590.13,WREKIN WINDOWS,WRE001
EFDC,EH112,LAND DRAINAGE/SEWERAGE,OTHER MAINTENANCE,1050,20-Apr-16,81763,1408.22,VEOLIA ES (UK) LTD,VER004
EFDC,RM400,PLANNED & CYCLICAL MAINTENANCE,BUILDING MAINTENANCE,1010,27-Apr-16,81765,545.00,MULTI ALARM GB LTD,MUL001
EFDC,RM400,PLANNED & CYCLICAL MAINTENANCE,BUILDING MAINTENANCE,1010,27-Apr-16,81767,615.00,MULTI ALARM GB LTD,MUL001
EFDC,RM400,PLANNED & CYCLICAL MAINTENANCE,BUILDING MAINTENANCE,1010,27-Apr-16,81770,514.33,MULTI ALARM GB LTD,MUL001
EFDC,78001,OTHER ACTIVITIES,REFUSE REMOVAL,1640,27-Apr-16,81771,522.00,HEATHERLAND LTD T/A LUNNON PLANT & WASTE SERV,HEA001
EFDC,EH112,LAND DRAINAGE/SEWERAGE,OTHER MAINTENANCE,1050,27-Apr-16,81774,1814.50,ENVIRONMENT AGENCY,ENV008
EFDC,33080,OTHER ACTIVITIES,ANNUAL SUPPORT /  LICENSES,3872,13-Apr-16,81776,1005.00,AUDITWARE SYSTEMS LIMITED,AUD003
EFDC,32060,OTHER SUPPORT SERVICES (HR),CONSULTANTS FEES,3490,13-Apr-16,81779,3876.00,BEVAN BRITTAN LLP CLIENT A/C,BEV002
EFDC,YB400,SUPERVISION/MANAGEMENT SPECIAL,TREE  MAINTENANCE,1070,27-Apr-16,81782,1500.00,GRISTWOOD & TOMS LTD,GRI001
EFDC,33055,OTHER ACTIVITIES,AGENCY STAFF,0120,20-Apr-16,81783,893.75,EDEN BROWN LTD,EDE001
EFDC,33075,OTHER ACTIVITIES,AGENCY STAFF,0120,20-Apr-16,81784,638.00,EDEN BROWN LTD,EDE001
EFDC,RM200,RESPONSIVE & VOID REPAIRS,BUILDING MAINTENANCE,1010,04-May-16,81785,285.68,PYRODEC LTD,PYR001
EFDC,RM200,RESPONSIVE & VOID REPAIRS,BUILDING MAINTENANCE,1010,04-May-16,81785,320.00,PYRODEC LTD,PYR001
EFDC,RM500,OTHER ITEMS,CONSULTANTS FEES,3490,18-May-16,81788,945.00,NPS LONDON LTD,NPS002
EFDC,YA210,SUPERVISION/MANAGEMENT GENERAL,SUBSCRIPTIONS,3730,13-Apr-16,81793,6122.52,HOUSING PARTNERS LTD,HOU007
EFDC,32200,OTHER SUPPORT SERVICES (HR),STOCK ISSUES,3070,27-Apr-16,81794,915.86,HOUND ENVELOPES LTD,HOU003
EFDC,32200,OTHER SUPPORT SERVICES (HR),STOCK ISSUES,3070,04-May-16,81795,515.95,HOUND ENVELOPES LTD,HOU003
EFDC,33075,OTHER ACTIVITIES,AGENCY STAFF,0120,13-Apr-16,81799,628.88,MORGAN HUNT UK LTD,MOR001
EFDC,33075,OTHER ACTIVITIES,AGENCY STAFF,0120,13-Apr-16,81800,925.00,MORGAN HUNT UK LTD,MOR001
EFDC,05245,LEASEHOLDERS ADMIN,BANKING AND CASH COLLECTION,3440,13-Apr-16,81804,641.65,ALLPAY.NET.LIMITED,ALL010
EFDC,32220,OTHER SUPPORT SERVICES (HR),AGENCY STAFF,0120,27-Apr-16,81815,1283.76,HAYS SPECIALIST RECRUITMENT LTD,HAY011
EFDC,35300,ENVIRONMENTAL OTHER,AGENCY STAFF,0120,27-Apr-16,81820,668.00,HL SERVICES (LONDON) LTD,HLS001
EFDC,RS301,NORTH WEALD CENTRE,OTHER MAINTENANCE,1050,20-Apr-16,81821,713.35,EAGLE AUTOMATION SYSTEMS LTD,EAG001
EFDC,WC200,WASTE MANAGEMENT,PUBLICITY,3360,27-Apr-16,81823,6570.00,D & P,D&P001
EFDC,26200,OTHER SUPPORT SERVICES (HR),FIXED PLANT MAINTENANCE,1020,20-Apr-16,81834,784.64,IMPERIAL INSULATIONS,IMP003
EFDC,WC100,WASTE MANAGEMENT,PUBLICITY,3360,01-Jun-16,81835,4040.00,WEIR & CARMICHAEL LTD,WEI002
EFDC,42520,GOVERNANCE SUPPORT SERVICES,TRAINING EXPENSES,0310,20-Apr-16,81837,828.75,MEDIA TRAINING LTD,MED004
EFDC,42520,GOVERNANCE SUPPORT SERVICES,TRAINING EXPENSES,0310,13-Apr-16,81838,1185.00,DIGITAL PR TRAINING LTD,DIG002
EFDC,CD112,SPORTS DEVELOPMENT & OTHER,OTHER TRAVEL EXPENSES,2850,11-May-16,81840,657.06,LAWLOR CAR SERVICE,LAW003
EFDC,RS405,SPORTS DEVELOPMENT & OTHER,ACTIVITIES,3372,20-Apr-16,81844,1465.00,ENJOY FITNESS,ENJ001
EFDC,YB500,SUPERVISION/MANAGEMENT SPECIAL,FURNITURE - NEW,3040,27-Apr-16,81857,754.67,EPPING CARPETS LTD T/A FOREST CARPET CENTRE,EPP042
EFDC,CAPNB,NEIGHBOURHOODS CAPITAL,MACHINERY ACQUISITION,C320,27-Apr-16,81858,63079.00,P TUCKWELL LTD,TUC002
EFDC,41100,OTHER ACTIVITIES,SUBSCRIPTIONS,3730,04-May-16,81859,2399.00,ASSOC. OF RETAINED COUNCIL HOUSING LTD,ASS020
EFDC,RS301,NORTH WEALD CENTRE,OTHER MAINTENANCE,1050,20-Apr-16,81869,1508.00,MCKENZIE ARNOLD GROUP LTD,MCK002
EFDC,FD100,LAND DRAINAGE/SEWERAGE,HIGHWAYS CONTRACTORS,4310,20-Apr-16,81871,1265.50,HUGH PEARL (LAND DRAINAGE) LTD,HUG001
EFDC,YB120,SUPERVISION/MANAGEMENT SPECIAL,FUEL,2330,20-Apr-16,81873,156.71,SHELL U.K. OIL PRODUCTS LIMITED,SHE007
EFDC,78001,OTHER ACTIVITIES,FUEL,2330,20-Apr-16,81873,1857.24,SHELL U.K. OIL PRODUCTS LIMITED,SHE007
EFDC,EH155,ENVIRONMENTAL HEALTH,FUEL,2330,20-Apr-16,81874,41.09,SHELL U.K. OIL PRODUCTS LIMITED,SHE007
EFDC,78001,OTHER ACTIVITIES,FUEL,2330,20-Apr-16,81874,972.85,SHELL U.K. OIL PRODUCTS LIMITED,SHE007
EFDC,35300,ENVIRONMENTAL OTHER,FUEL,2330,20-Apr-16,81875,1570.95,SHELL U.K. OIL PRODUCTS LIMITED,SHE007
EFDC,36900,OTHER ACTIVITIES,AGENCY STAFF,0120,20-Apr-16,81878,536.00,VENN GROUP LTD,VEN004
EFDC,RM100,RESPONSIVE & VOID REPAIRS,BUILDING MAINTENANCE,1010,20-Apr-16,81883,555.00,FIELDWHITE SERVICES LTD,FIE003
EFDC,32030,OTHER SUPPORT SERVICES (HR),POSTAGE,3510,11-May-16,81890,26.52,ROYAL MAIL GROUP PLC,ROY015
EFDC,32030,OTHER SUPPORT SERVICES (HR),POSTAGE,3510,11-May-16,81890,73.63,ROYAL MAIL GROUP PLC,ROY015
EFDC,34110,COMMUNITIES SUPPORT SERVICES,POSTAGE,3510,11-May-16,81890,14.95,ROYAL MAIL GROUP PLC,ROY015
EFDC,EL100,ELECTIONS,OTHER MISCELLANEOUS EXPENSES,3850,11-May-16,81890,2755.02,ROYAL MAIL GROUP PLC,ROY015
EFDC,EL100,ELECTIONS,OTHER MISCELLANEOUS EXPENSES,3850,11-May-16,81890,34.51,ROYAL MAIL GROUP PLC,ROY015
EFDC,RE100,ELECTIONS,POSTAGE,3510,11-May-16,81890,125.94,ROYAL MAIL GROUP PLC,ROY015
EFDC,35900,ENVIRONMENTAL OTHER,POSTAGE,3510,11-May-16,81890,68.51,ROYAL MAIL GROUP PLC,ROY015
EFDC,33055,OTHER ACTIVITIES,POSTAGE,3510,11-May-16,81890,123.76,ROYAL MAIL GROUP PLC,ROY015
EFDC,33055,OTHER ACTIVITIES,POSTAGE,3510,11-May-16,81890,202.31,ROYAL MAIL GROUP PLC,ROY015
EFDC,33075,OTHER ACTIVITIES,POSTAGE,3510,11-May-16,81890,-274.83,ROYAL MAIL GROUP PLC,ROY015
EFDC,33075,OTHER ACTIVITIES,POSTAGE,3510,11-May-16,81890,-566.73,ROYAL MAIL GROUP PLC,ROY015
EFDC,33075,OTHER ACTIVITIES,POSTAGE,3510,11-May-16,81890,607.43,ROYAL MAIL GROUP PLC,ROY015
EFDC,33075,OTHER ACTIVITIES,POSTAGE,3510,11-May-16,81890,200.97,ROYAL MAIL GROUP PLC,ROY015
EFDC,36200,OTHER ACTIVITIES,POSTAGE,3510,11-May-16,81890,399.03,ROYAL MAIL GROUP PLC,ROY015
EFDC,DR150,MEMBER ACTIVITIES,POSTAGE,3510,11-May-16,81890,4.45,ROYAL MAIL GROUP PLC,ROY015
EFDC,37100,PLANNING OTHER,POSTAGE,3510,11-May-16,81890,244.76,ROYAL MAIL GROUP PLC,ROY015
EFDC,CAPRS,RESOURCES CAPITAL,CAPITAL SOFTWARE,K340,20-Apr-16,81895,690.57,BYTES SOFTWARE SERVICES LTD,BYT001
EFDC,32220,OTHER SUPPORT SERVICES (HR),AGENCY STAFF,0120,04-May-16,81902,1066.51,HAYS SPECIALIST RECRUITMENT LTD,HAY011
EFDC,37600,PLANNING OTHER,AGENCY STAFF,0120,04-May-16,81903,912.00,THE OYSTER PARTNERSHIP LTD,OYS001
EFDC,35013,ENVIRONMENTAL OTHER,AGENCY STAFF,0120,27-Apr-16,81906,611.78,REED SPECIALIST RECRUITMENT LTD,REE002
EFDC,33080,OTHER ACTIVITIES,EQUIPMENT - NEW,3010,20-Apr-16,81915,138.48,CCS MEDIA LTD,CCS002
EFDC,RS400,SPORTS DEVELOPMENT & OTHER,ACTIVITIES,3372,20-Apr-16,81915,856.62,CCS MEDIA LTD,CCS002
EFDC,PS100,CAR PARKING,TREE  MAINTENANCE,1070,27-Apr-16,81917,2250.00,D F CLARKE CONTRACTORS LTD,DFC001
EFDC,PP111,FORWARD PLANNING & ECONOMIC,PROFESSIONAL FEES,3420,04-May-16,81933,16833.33,FORTISMERE ASSOCIATES LTD,FOR016
EFDC,27050,ACCOMMODATION,WATER CHARGES,1410,13-Apr-16,81934,752.54,AFFINITY WATER LTD,AFF001
EFDC,GD140,VOLUNTARY SECTOR SUPPORT,GRANTS TO VOLUNTARY ORGS,3710,13-Apr-16,81935,56690.00,EPPING FOREST DISTRICT CITIZEN ADVICE BUREAU,EPP036
EFDC,GD150,VOLUNTARY SECTOR SUPPORT,GRANTS TO VOLUNTARY ORGS,3710,13-Apr-16,81936,19560.00,VOLUNTARY ACTION EPPING FOREST,VOL004
EFDC,RM300,PLANNED & CYCLICAL MAINTENANCE,BUILDING MAINTENANCE,1010,11-May-16,81940,1843.80,SCCI ALPHATRACK LTD,SCC003
EFDC,RS302,NORTH WEALD CENTRE,ELECTRICITY,1120,13-Apr-16,81944,7401.49,EDF ENERGY,EDF001
EFDC,23170,ACCOMMODATION,ELECTRICITY,1120,13-Apr-16,81953,1117.55,EDF ENERGY,EDF001
EFDC,27050,ACCOMMODATION,ELECTRICITY,1120,13-Apr-16,81964,7321.29,EDF ENERGY,EDF001
EFDC,23140,ACCOMMODATION,ELECTRICITY,1120,13-Apr-16,81965,1782.85,EON ENERGY,EON001
EFDC,CAPCM,COMMUNITIES CAPITAL,EQUIPMENT ACQUISITION,C330,04-May-16,81972,5795.00,RAPID VISION SYSTEMS LTD,RAP001
EFDC,CH110,ARTS & MUSEUM,RENTS / HIRE OF HALL,1210,18-May-16,81992,1500.00,ROYAL GUNPOWDER MILLS CO LTD,ROY018
EFDC,78001,OTHER ACTIVITIES,REFUSE REMOVAL,1640,04-May-16,81995,624.00,GBN SERVICES LTD,GBN002
EFDC,32060,OTHER SUPPORT SERVICES (HR),CONSULTANTS FEES,3490,04-May-16,81997,750.00,MISS EMMA DRING,DRI001
EFDC,CAPCM,COMMUNITIES CAPITAL,EQUIPMENT - WIP,E330,27-Apr-16,81999,1399.93,GLS EDUCATIONAL SUPPLIES LTD,GLS001
EFDC,LA100,LAA POOLED FUNDS,LAA EXPENDITURE,Y100,04-May-16,82002,693.00,SHARRONS EVENT CATERING COMPANY LTD,SHA002
EFDC,36700,OTHER ACTIVITIES,AGENCY STAFF,0120,04-May-16,82003,520.56,MMP CONSULTANCY,MMP001
EFDC,CAPCM,COMMUNITIES CAPITAL,WORKS- COUNCIL DWELLINGS,A040,20-Apr-16,82004,4490.00,TOWER ASPHALT LTD,TOW001
EFDC,CAPCM,COMMUNITIES CAPITAL,WORKS- COUNCIL DWELLINGS,A040,20-Apr-16,82005,793.10,TOWER ASPHALT LTD,TOW001
EFDC,CAPCM,COMMUNITIES CAPITAL,WORKS- COUNCIL DWELLINGS,A040,20-Apr-16,82006,2877.00,TOWER ASPHALT LTD,TOW001
EFDC,33080,OTHER ACTIVITIES,ANNUAL SUPPORT /  LICENSES,3872,20-Apr-16,82008,2235.64,BYTES SOFTWARE SERVICES LTD,BYT001
EFDC,CAPRS,RESOURCES CAPITAL,CAPITAL SOFTWARE,K340,20-Apr-16,82008,30379.69,BYTES SOFTWARE SERVICES LTD,BYT001
EFDC,UO120,LAND & PROPERTY,CONSULTANTS FEES,3490,13-Apr-16,82017,8916.50,CROSBY LAND LTD,CRO003
EFDC,OS101,PARKS & GROUNDS,TREE  MAINTENANCE,1070,20-Apr-16,82018,1400.00,J. CURRY & CO LTD,CUR001
EFDC,CAPNB,NEIGHBOURHOODS CAPITAL,LEGAL FEES,E140,13-Apr-16,82019,1250.00,DAC BEACHCROFT LLP,DAC001
EFDC,CAPNB,NEIGHBOURHOODS CAPITAL,PROJECT MANAGER,E131,27-Apr-16,82021,2360.00,J DUNTON ASSOCIATES LTD,DUN001
EFDC,CAPRS,RESOURCES CAPITAL,WORKS- LAND AND BUILDINGS,B040,13-Apr-16,82022,600.00,EMERY ELECTRICAL LTD,EME001
EFDC,CAPRS,RESOURCES CAPITAL,WORKS- LAND AND BUILDINGS,B040,13-Apr-16,82022,1000.00,EMERY ELECTRICAL LTD,EME001
EFDC,CAPRS,RESOURCES CAPITAL,WORKS- LAND AND BUILDINGS,B040,13-Apr-16,82023,1951.14,EMERY ELECTRICAL LTD,EME001
EFDC,32220,OTHER SUPPORT SERVICES (HR),AGENCY STAFF,0120,04-May-16,82024,1526.00,HAYS SPECIALIST RECRUITMENT LTD,HAY011
EFDC,CH110,ARTS & MUSEUM,TREE  MAINTENANCE,1070,20-Apr-16,82026,539.00,THE MOSAIC STUDIO,MOS002
EFDC,CAPNB,NEIGHBOURHOODS CAPITAL,QUANTITY SURVEYORS FEES,E170,13-Apr-16,82027,970.00,RIDGE AND PARTNERS LLP,RID002
EFDC,TO100,LAND & PROPERTY,EQUIPMENT - MAINTENANCE,3030,13-Apr-16,82028,895.00,SNAP-ON DIAGNOSTICS,SNA001
EFDC,CAPNB,NEIGHBOURHOODS CAPITAL,CONSULTANT ENG FEES,E200,13-Apr-16,82036,7339.00,WYG MANAGEMENT SERVICES LTD,WYG002
EFDC,32121,OTHER SUPPORT SERVICES (HR),EMPLOYEES - OTHER PAYMENTS,0191,13-Apr-16,82038,142.84,COMPUTERSHARE VOUCHER SERVICES,BUS009
EFDC,CM105,CORPORATE ACTIVITIES,SUBSCRIPTIONS,3730,27-Apr-16,82039,10450.00,LOCAL GOVERNMENT ASSOCIATION,LOC001
EFDC,RM200,RESPONSIVE & VOID REPAIRS,BUILDING MAINTENANCE,1010,04-May-16,82041,584.58,GRACELANDS COMPLETE MAINTENANCE SERVICES LTD,GRA007
EFDC,CAPCM,COMMUNITIES CAPITAL,VOIDS WORKS,A045,04-May-16,82041,3199.48,GRACELANDS COMPLETE MAINTENANCE SERVICES LTD,GRA007
EFDC,CAPCM,COMMUNITIES CAPITAL,VOIDS WORKS,A045,04-May-16,82041,242.45,GRACELANDS COMPLETE MAINTENANCE SERVICES LTD,GRA007
EFDC,RM200,RESPONSIVE & VOID REPAIRS,BUILDING MAINTENANCE,1010,04-May-16,82042,947.49,GRACELANDS COMPLETE MAINTENANCE SERVICES LTD,GRA007
EFDC,CAPCM,COMMUNITIES CAPITAL,VOIDS WORKS,A045,04-May-16,82042,284.39,GRACELANDS COMPLETE MAINTENANCE SERVICES LTD,GRA007
EFDC,RM200,RESPONSIVE & VOID REPAIRS,BUILDING MAINTENANCE,1010,04-May-16,82043,3386.01,GRACELANDS COMPLETE MAINTENANCE SERVICES LTD,GRA007
EFDC,CAPCM,COMMUNITIES CAPITAL,VOIDS WORKS,A045,04-May-16,82043,2096.60,GRACELANDS COMPLETE MAINTENANCE SERVICES LTD,GRA007
EFDC,CAPCM,COMMUNITIES CAPITAL,VOIDS WORKS,A045,04-May-16,82043,4067.72,GRACELANDS COMPLETE MAINTENANCE SERVICES LTD,GRA007
EFDC,CAPCM,COMMUNITIES CAPITAL,VOIDS WORKS,A045,04-May-16,82043,1952.47,GRACELANDS COMPLETE MAINTENANCE SERVICES LTD,GRA007
EFDC,RM200,RESPONSIVE & VOID REPAIRS,BUILDING MAINTENANCE,1010,04-May-16,82044,1995.97,GRACELANDS COMPLETE MAINTENANCE SERVICES LTD,GRA007
EFDC,CAPCM,COMMUNITIES CAPITAL,VOIDS WORKS,A045,04-May-16,82044,462.36,GRACELANDS COMPLETE MAINTENANCE SERVICES LTD,GRA007
EFDC,RM200,RESPONSIVE & VOID REPAIRS,BUILDING MAINTENANCE,1010,04-May-16,82045,699.08,GRACELANDS COMPLETE MAINTENANCE SERVICES LTD,GRA007
EFDC,CAPCM,COMMUNITIES CAPITAL,VOIDS WORKS,A045,04-May-16,82045,302.24,GRACELANDS COMPLETE MAINTENANCE SERVICES LTD,GRA007
EFDC,RM200,RESPONSIVE & VOID REPAIRS,BUILDING MAINTENANCE,1010,04-May-16,82046,435.79,GRACELANDS COMPLETE MAINTENANCE SERVICES LTD,GRA007
EFDC,CAPCM,COMMUNITIES CAPITAL,VOIDS WORKS,A045,04-May-16,82046,241.30,GRACELANDS COMPLETE MAINTENANCE SERVICES LTD,GRA007
EFDC,RM200,RESPONSIVE & VOID REPAIRS,BUILDING MAINTENANCE,1010,04-May-16,82047,404.23,GRACELANDS COMPLETE MAINTENANCE SERVICES LTD,GRA007
EFDC,CAPCM,COMMUNITIES CAPITAL,VOIDS WORKS,A045,04-May-16,82047,288.51,GRACELANDS COMPLETE MAINTENANCE SERVICES LTD,GRA007
EFDC,RM200,RESPONSIVE & VOID REPAIRS,BUILDING MAINTENANCE,1010,04-May-16,82048,625.39,GRACELANDS COMPLETE MAINTENANCE SERVICES LTD,GRA007
EFDC,CAPCM,COMMUNITIES CAPITAL,VOIDS WORKS,A045,04-May-16,82048,2240.11,GRACELANDS COMPLETE MAINTENANCE SERVICES LTD,GRA007
EFDC,CAPCM,COMMUNITIES CAPITAL,VOIDS WORKS,A045,04-May-16,82048,1248.82,GRACELANDS COMPLETE MAINTENANCE SERVICES LTD,GRA007
EFDC,RM200,RESPONSIVE & VOID REPAIRS,BUILDING MAINTENANCE,1010,04-May-16,82049,1748.60,GRACELANDS COMPLETE MAINTENANCE SERVICES LTD,GRA007
EFDC,CAPCM,COMMUNITIES CAPITAL,VOIDS WORKS,A045,04-May-16,82049,2508.02,GRACELANDS COMPLETE MAINTENANCE SERVICES LTD,GRA007
EFDC,CAPCM,COMMUNITIES CAPITAL,VOIDS WORKS,A045,04-May-16,82049,788.13,GRACELANDS COMPLETE MAINTENANCE SERVICES LTD,GRA007
EFDC,RM200,RESPONSIVE & VOID REPAIRS,BUILDING MAINTENANCE,1010,04-May-16,82050,2729.75,GRACELANDS COMPLETE MAINTENANCE SERVICES LTD,GRA007
EFDC,CAPCM,COMMUNITIES CAPITAL,VOIDS WORKS,A045,04-May-16,82050,2586.29,GRACELANDS COMPLETE MAINTENANCE SERVICES LTD,GRA007
EFDC,CAPCM,COMMUNITIES CAPITAL,VOIDS WORKS,A045,04-May-16,82050,5920.44,GRACELANDS COMPLETE MAINTENANCE SERVICES LTD,GRA007
EFDC,CAPCM,COMMUNITIES CAPITAL,VOIDS WORKS,A045,04-May-16,82050,1637.25,GRACELANDS COMPLETE MAINTENANCE SERVICES LTD,GRA007
EFDC,RM200,RESPONSIVE & VOID REPAIRS,BUILDING MAINTENANCE,1010,04-May-16,82051,1570.14,GRACELANDS COMPLETE MAINTENANCE SERVICES LTD,GRA007
EFDC,CAPCM,COMMUNITIES CAPITAL,VOIDS WORKS,A045,04-May-16,82051,1944.98,GRACELANDS COMPLETE MAINTENANCE SERVICES LTD,GRA007
EFDC,CAPCM,COMMUNITIES CAPITAL,VOIDS WORKS,A045,04-May-16,82051,4088.48,GRACELANDS COMPLETE MAINTENANCE SERVICES LTD,GRA007
EFDC,CAPCM,COMMUNITIES CAPITAL,VOIDS WORKS,A045,04-May-16,82051,2480.48,GRACELANDS COMPLETE MAINTENANCE SERVICES LTD,GRA007
EFDC,RM200,RESPONSIVE & VOID REPAIRS,BUILDING MAINTENANCE,1010,15-Jun-16,82053,1444.91,GRACELANDS COMPLETE MAINTENANCE SERVICES LTD,GRA007
EFDC,CAPCM,COMMUNITIES CAPITAL,VOIDS WORKS,A045,15-Jun-16,82053,4180.59,GRACELANDS COMPLETE MAINTENANCE SERVICES LTD,GRA007
EFDC,CAPCM,COMMUNITIES CAPITAL,VOIDS WORKS,A045,15-Jun-16,82053,1381.05,GRACELANDS COMPLETE MAINTENANCE SERVICES LTD,GRA007
EFDC,RM200,RESPONSIVE & VOID REPAIRS,BUILDING MAINTENANCE,1010,04-May-16,82054,3025.19,GRACELANDS COMPLETE MAINTENANCE SERVICES LTD,GRA007
EFDC,CAPCM,COMMUNITIES CAPITAL,VOIDS WORKS,A045,04-May-16,82054,3317.47,GRACELANDS COMPLETE MAINTENANCE SERVICES LTD,GRA007
EFDC,CAPCM,COMMUNITIES CAPITAL,VOIDS WORKS,A045,04-May-16,82054,4115.48,GRACELANDS COMPLETE MAINTENANCE SERVICES LTD,GRA007
EFDC,CAPCM,COMMUNITIES CAPITAL,VOIDS WORKS,A045,04-May-16,82054,1308.49,GRACELANDS COMPLETE MAINTENANCE SERVICES LTD,GRA007
EFDC,RM200,RESPONSIVE & VOID REPAIRS,BUILDING MAINTENANCE,1010,04-May-16,82055,2365.51,GRACELANDS COMPLETE MAINTENANCE SERVICES LTD,GRA007
EFDC,CAPCM,COMMUNITIES CAPITAL,VOIDS WORKS,A045,04-May-16,82055,3608.53,GRACELANDS COMPLETE MAINTENANCE SERVICES LTD,GRA007
EFDC,CAPCM,COMMUNITIES CAPITAL,VOIDS WORKS,A045,04-May-16,82055,2620.02,GRACELANDS COMPLETE MAINTENANCE SERVICES LTD,GRA007
EFDC,CAPCM,COMMUNITIES CAPITAL,VOIDS WORKS,A045,04-May-16,82055,1870.61,GRACELANDS COMPLETE MAINTENANCE SERVICES LTD,GRA007
EFDC,36200,OTHER ACTIVITIES,TRAINING EXPENSES,0310,04-May-16,82221,600.00,GEOTOM IT CONSULTING LTD,GEO001
EFDC,33055,OTHER ACTIVITIES,AGENCY STAFF,0120,27-Apr-16,82222,792.00,EDEN BROWN LTD,EDE001
EFDC,UO120,LAND & PROPERTY,CONSULTANTS FEES,3490,27-Apr-16,82223,909.00,PELLINGS LLP,PEL002
EFDC,33055,OTHER ACTIVITIES,AGENCY STAFF,0120,27-Apr-16,82224,856.25,EDEN BROWN LTD,EDE001
EFDC,33080,OTHER ACTIVITIES,ANNUAL SUPPORT /  LICENSES,3872,11-May-16,82226,779.60,PHOENIX SOFTWARE LTD,PHO002
EFDC,RM100,RESPONSIVE & VOID REPAIRS,BUILDING MAINTENANCE,1010,27-Apr-16,82229,1820.00,GRACELANDS COMPLETE MAINTENANCE SERVICES LTD,GRA007
EFDC,RM400,PLANNED & CYCLICAL MAINTENANCE,BUILDING MAINTENANCE,1010,11-May-16,82230,3127.50,JACKSON LIFT SERVICES LIMITED,JAC001
EFDC,32200,OTHER SUPPORT SERVICES (HR),EQUIPMENT - MAINTENANCE,3030,11-May-16,82231,1885.00,DUPLO INTERNATIONAL LTD,DUP001
EFDC,26200,OTHER SUPPORT SERVICES (HR),FIXED PLANT MAINTENANCE,1020,11-May-16,82232,695.00,JACKSON LIFT SERVICES LIMITED,JAC001
EFDC,26200,OTHER SUPPORT SERVICES (HR),BUILDING MAINTENANCE,1010,11-May-16,82232,173.75,JACKSON LIFT SERVICES LIMITED,JAC001
EFDC,33060,OTHER ACTIVITIES,AGENCY STAFF,0120,04-May-16,82233,938.00,HAYS SPECIALIST RECRUITMENT LTD,HAY011
EFDC,33075,OTHER ACTIVITIES,AGENCY STAFF,0120,20-Apr-16,82234,774.00,MORGAN HUNT UK LTD,MOR001
EFDC,32200,OTHER SUPPORT SERVICES (HR),STOCK ISSUES,3070,27-Apr-16,82242,896.00,CORBEAU PROCUREMENT SUPPLIES LTD,PAP002
EFDC,78001,OTHER ACTIVITIES,MATERIALS,3080,04-May-16,82246,731.38,FAYERS PLUMBING & BUILDING SUPPLIES,FAY001
EFDC,RM100,RESPONSIVE & VOID REPAIRS,BUILDING MAINTENANCE,1010,27-Apr-16,82247,977.07,GRACELANDS COMPLETE MAINTENANCE SERVICES LTD,GRA007
EFDC,RM100,RESPONSIVE & VOID REPAIRS,BUILDING MAINTENANCE,1010,27-Apr-16,82248,1179.35,GRACELANDS COMPLETE MAINTENANCE SERVICES LTD,GRA007
EFDC,35300,ENVIRONMENTAL OTHER,AGENCY STAFF,0120,04-May-16,82253,517.44,AXIOM PERSONNEL LIMITED,AXI005
EFDC,CM105,CORPORATE ACTIVITIES,SUBSCRIPTIONS,3730,11-May-16,82254,1130.00,ESSEX COUNTY COUNCIL-ESAB,ESS036
EFDC,DC120,PLANNING REGULATORY SERVICES,PUBLICITY,3360,04-May-16,82257,773.50,NEWSQUEST MEDIA GROUP,NEW002
EFDC,DC120,PLANNING REGULATORY SERVICES,PROFESSIONAL FEES,3420,11-May-16,82264,960.00,KIFT CONSULTING LTD,KIF001
EFDC,35300,ENVIRONMENTAL OTHER,AGENCY STAFF,0120,27-Apr-16,82265,787.12,HL SERVICES (LONDON) LTD,HLS001
EFDC,26200,OTHER SUPPORT SERVICES (HR),FIXED PLANT MAINTENANCE,1020,27-Apr-16,82275,2802.50,CTL AUDIOVISUAL SERVICES LTD,CTL001
EFDC,26200,OTHER SUPPORT SERVICES (HR),FIXED PLANT MAINTENANCE,1020,04-May-16,82276,1990.00,NEWFOUND ENERGY LIMITED,NEW015
EFDC,EI131,FORWARD PLANNING & ECONOMIC,CONTRIBUTIONS,3740,27-Apr-16,82279,650.00,JOHN PRICE PHOTOGRAPHY,JOH024
EFDC,CM100,CORPORATE ACTIVITIES,BOOKS & PUBLICATIONS,3350,20-Apr-16,82282,183.95,EPPING NEWS,EPP010
EFDC,CM100,CORPORATE ACTIVITIES,BOOKS & PUBLICATIONS,3350,20-Apr-16,82282,7.80,EPPING NEWS,EPP010
EFDC,32030,OTHER SUPPORT SERVICES (HR),BOOKS & PUBLICATIONS,3350,20-Apr-16,82282,7.80,EPPING NEWS,EPP010
EFDC,32030,OTHER SUPPORT SERVICES (HR),BOOKS & PUBLICATIONS,3350,20-Apr-16,82282,7.80,EPPING NEWS,EPP010
EFDC,32220,OTHER SUPPORT SERVICES (HR),BOOKS & PUBLICATIONS,3350,20-Apr-16,82282,7.80,EPPING NEWS,EPP010
EFDC,34150,COMMUNITIES SUPPORT SERVICES,BOOKS & PUBLICATIONS,3350,20-Apr-16,82282,7.80,EPPING NEWS,EPP010
EFDC,34160,COMMUNITIES SUPPORT SERVICES,BOOKS & PUBLICATIONS,3350,20-Apr-16,82282,283.27,EPPING NEWS,EPP010
EFDC,33010,OTHER ACTIVITIES,BOOKS & PUBLICATIONS,3350,20-Apr-16,82282,7.80,EPPING NEWS,EPP010
EFDC,33010,OTHER ACTIVITIES,BOOKS & PUBLICATIONS,3350,20-Apr-16,82282,7.80,EPPING NEWS,EPP010
EFDC,36200,OTHER ACTIVITIES,BOOKS & PUBLICATIONS,3350,20-Apr-16,82282,143.91,EPPING NEWS,EPP010
EFDC,37100,PLANNING OTHER,BOOKS & PUBLICATIONS,3350,20-Apr-16,82282,49.27,EPPING NEWS,EPP010
EFDC,CY100,SAFER COMMUNITIES,CONTRIBUTIONS,3740,20-Apr-16,82282,1.20,EPPING NEWS,EPP010
EFDC,RM100,RESPONSIVE & VOID REPAIRS,BUILDING MAINTENANCE,1010,04-May-16,82287,5287.33,M & J SERVICES LTD,SER009
EFDC,RM200,RESPONSIVE & VOID REPAIRS,BUILDING MAINTENANCE,1010,04-May-16,82288,4703.49,MEARS LTD,MEA002
EFDC,CAPCM,COMMUNITIES CAPITAL,VOIDS WORKS,A045,04-May-16,82288,3370.07,MEARS LTD,MEA002
EFDC,78001,OTHER ACTIVITIES,ICT SERVICE,5330,27-Apr-16,82289,2420.13,NORTHGATE PUBLIC SERVICES (UK) LTD,NOR018
EFDC,RM200,RESPONSIVE & VOID REPAIRS,BUILDING MAINTENANCE,1010,04-May-16,82292,5302.47,MEARS LTD,MEA002
EFDC,CAPCM,COMMUNITIES CAPITAL,VOIDS WORKS,A045,04-May-16,82292,1952.62,MEARS LTD,MEA002
EFDC,CAPCM,COMMUNITIES CAPITAL,VOIDS WORKS,A045,04-May-16,82292,1872.98,MEARS LTD,MEA002
EFDC,RM200,RESPONSIVE & VOID REPAIRS,BUILDING MAINTENANCE,1010,04-May-16,82293,2647.62,MEARS LTD,MEA002
EFDC,CAPCM,COMMUNITIES CAPITAL,VOIDS WORKS,A045,04-May-16,82293,4348.63,MEARS LTD,MEA002
EFDC,CAPCM,COMMUNITIES CAPITAL,VOIDS WORKS,A045,04-May-16,82293,1905.70,MEARS LTD,MEA002
EFDC,RM200,RESPONSIVE & VOID REPAIRS,BUILDING MAINTENANCE,1010,04-May-16,82294,2548.84,MEARS LTD,MEA002
EFDC,CAPCM,COMMUNITIES CAPITAL,VOIDS WORKS,A045,04-May-16,82294,2661.93,MEARS LTD,MEA002
EFDC,CAPCM,COMMUNITIES CAPITAL,VOIDS WORKS,A045,04-May-16,82294,1593.82,MEARS LTD,MEA002
EFDC,RM200,RESPONSIVE & VOID REPAIRS,BUILDING MAINTENANCE,1010,04-May-16,82295,721.60,MEARS LTD,MEA002
EFDC,CAPCM,COMMUNITIES CAPITAL,VOIDS WORKS,A045,04-May-16,82295,1859.32,MEARS LTD,MEA002
EFDC,RM200,RESPONSIVE & VOID REPAIRS,BUILDING MAINTENANCE,1010,04-May-16,82296,865.55,MEARS LTD,MEA002
EFDC,CAPCM,COMMUNITIES CAPITAL,VOIDS WORKS,A045,04-May-16,82296,199.21,MEARS LTD,MEA002
EFDC,RM200,RESPONSIVE & VOID REPAIRS,BUILDING MAINTENANCE,1010,04-May-16,82297,1786.41,MEARS LTD,MEA002
EFDC,CAPCM,COMMUNITIES CAPITAL,VOIDS WORKS,A045,04-May-16,82297,2186.21,MEARS LTD,MEA002
EFDC,YB400,SUPERVISION/MANAGEMENT SPECIAL,TREE  MAINTENANCE,1070,27-Apr-16,82301,31588.37,GRISTWOOD & TOMS LTD,GRI001
EFDC,PS100,CAR PARKING,TREE  MAINTENANCE,1070,27-Apr-16,82301,4586.83,GRISTWOOD & TOMS LTD,GRI001
EFDC,HI122,HIGHWAYS,TREE  MAINTENANCE,1070,27-Apr-16,82301,16329.91,GRISTWOOD & TOMS LTD,GRI001
EFDC,OS101,PARKS & GROUNDS,TREE  MAINTENANCE,1070,27-Apr-16,82301,14221.68,GRISTWOOD & TOMS LTD,GRI001
EFDC,RS400,SPORTS DEVELOPMENT & OTHER,PRINTING - EXTERNAL,3390,04-May-16,82302,2054.00,MFP,MFP001
EFDC,UO120,LAND & PROPERTY,AGENCY STAFF,0120,27-Apr-16,82304,588.00,CAPSTONE PROPERTY RECRUITMENT (INTERIM) LTD,CAP001
EFDC,42520,GOVERNANCE SUPPORT SERVICES,TRAINING EXPENSES,0310,04-May-16,82305,675.00,ENTERPRISE EVENTS LTD,ENT001
EFDC,RS400,SPORTS DEVELOPMENT & OTHER,RENTS / HIRE OF HALL,1210,11-May-16,82306,1050.00,LOUGHTON BOWLING CLUB LTD,LOU008
EFDC,32030,OTHER SUPPORT SERVICES (HR),POSTAGE,3510,11-May-16,82309,51.68,ROYAL MAIL GROUP PLC,ROY015
EFDC,34110,COMMUNITIES SUPPORT SERVICES,POSTAGE,3510,11-May-16,82309,311.42,ROYAL MAIL GROUP PLC,ROY015
EFDC,EL100,ELECTIONS,OTHER MISCELLANEOUS EXPENSES,3850,11-May-16,82309,131.72,ROYAL MAIL GROUP PLC,ROY015
EFDC,RE100,ELECTIONS,POSTAGE,3510,11-May-16,82309,275.87,ROYAL MAIL GROUP PLC,ROY015
EFDC,35900,ENVIRONMENTAL OTHER,POSTAGE,3510,11-May-16,82309,76.56,ROYAL MAIL GROUP PLC,ROY015
EFDC,35900,ENVIRONMENTAL OTHER,POSTAGE,3510,11-May-16,82309,116.80,ROYAL MAIL GROUP PLC,ROY015
EFDC,33055,OTHER ACTIVITIES,POSTAGE,3510,11-May-16,82309,251.70,ROYAL MAIL GROUP PLC,ROY015
EFDC,33055,OTHER ACTIVITIES,POSTAGE,3510,11-May-16,82309,160.68,ROYAL MAIL GROUP PLC,ROY015
EFDC,33075,OTHER ACTIVITIES,POSTAGE,3510,11-May-16,82309,464.60,ROYAL MAIL GROUP PLC,ROY015
EFDC,36200,OTHER ACTIVITIES,POSTAGE,3510,11-May-16,82309,283.43,ROYAL MAIL GROUP PLC,ROY015
EFDC,37100,PLANNING OTHER,POSTAGE,3510,11-May-16,82309,302.91,ROYAL MAIL GROUP PLC,ROY015
EFDC,37100,PLANNING OTHER,POSTAGE,3510,11-May-16,82309,1.11,ROYAL MAIL GROUP PLC,ROY015
EFDC,CAPCM,COMMUNITIES CAPITAL,WORKS- COUNCIL DWELLINGS,A040,20-Apr-16,82314,550.00,ABBEY MAINTENANCE LTD,ABB009
EFDC,33080,OTHER ACTIVITIES,PROFESSIONAL FEES,3420,11-May-16,82332,1019.23,CDW LTD,CDW001
EFDC,36650,OTHER ACTIVITIES,RECRUITMENT EXPENSES,0320,04-May-16,82336,8315.63,TMP WORLDWIDE LTD,TMP001
EFDC,36900,OTHER ACTIVITIES,AGENCY STAFF,0120,04-May-16,82337,528.00,VENN GROUP LTD,VEN004
EFDC,78001,OTHER ACTIVITIES,MATERIALS,3080,11-May-16,82338,581.52,THE BECK COMPANY LTD,BEC001
EFDC,31140,CORPORATE SUPPORT SERVICES,RENTS / HIRE OF HALL,1210,04-May-16,82343,1444.69,RODING VALLEY HIGH SCHOOL,ROD001
EFDC,RM100,RESPONSIVE & VOID REPAIRS,BUILDING MAINTENANCE,1010,27-Apr-16,82345,1185.00,FIELDWHITE SERVICES LTD,FIE003
EFDC,CH110,ARTS & MUSEUM,RENTS / HIRE OF HALL,1210,11-May-16,82351,2000.00,GRANGEWOOD INVESTMENTS LTD,GRA006
EFDC,CH110,ARTS & MUSEUM,RENTS / HIRE OF HALL,1210,11-May-16,82352,3700.00,GRANGEWOOD INVESTMENTS LTD,GRA006
EFDC,33080,OTHER ACTIVITIES,ANNUAL SUPPORT /  LICENSES,3872,22-Jun-16,82355,1445.00,BANKING AUTOMATION LTD,BAN011
EFDC,35013,ENVIRONMENTAL OTHER,AGENCY STAFF,0120,27-Apr-16,82357,605.90,REED SPECIALIST RECRUITMENT LTD,REE002
EFDC,78001,OTHER ACTIVITIES,LICENCES,3870,04-May-16,82359,3510.50,MEARS LTD,MEA002
EFDC,78001,OTHER ACTIVITIES,CONSULTANTS FEES,3490,20-Apr-16,82360,9198.51,MEARS LTD,MEA002
EFDC,78001,OTHER ACTIVITIES,COMPUTER - OTHER,3570,04-May-16,82361,18302.78,MEARS LTD,MEA002
EFDC,78001,OTHER ACTIVITIES,STATIONERY,3320,04-May-16,82362,3315.79,MEARS LTD,MEA002
EFDC,78001,OTHER ACTIVITIES,STATIONERY,3320,04-May-16,82363,1549.04,MEARS LTD,MEA002
EFDC,78001,OTHER ACTIVITIES,LICENCES,3870,04-May-16,82364,12866.60,MEARS LTD,MEA002
EFDC,32191,OTHER SUPPORT SERVICES (HR),CONSULTANTS FEES,3490,20-Apr-16,82365,2986.35,MEARS LTD,MEA002
EFDC,32220,OTHER SUPPORT SERVICES (HR),AGENCY STAFF,0120,11-May-16,82371,1027.01,HAYS SPECIALIST RECRUITMENT LTD,HAY011
EFDC,33075,OTHER ACTIVITIES,AGENCY STAFF,0120,04-May-16,82376,521.38,BADENOCH & CLARK,BAD001
EFDC,YB500,SUPERVISION/MANAGEMENT SPECIAL,EQUIPMENT - MAINTENANCE,3030,11-May-16,82378,14074.97,TUNSTALL HEALTHCARE (UK) LTD,TUN001
EFDC,YB500,SUPERVISION/MANAGEMENT SPECIAL,EQUIPMENT - MAINTENANCE,3030,11-May-16,82379,41688.77,TUNSTALL HEALTHCARE (UK) LTD,TUN001
EFDC,EI131,FORWARD PLANNING & ECONOMIC,CONTRIBUTIONS,3740,04-May-16,82383,4000.00,ESSEX WILDLIFE TRUST LTD,ESS025
EFDC,35300,ENVIRONMENTAL OTHER,AGENCY STAFF,0120,27-Apr-16,82384,703.50,GRAFTERS RECRUIT LTD,GRA009
EFDC,CAPCM,COMMUNITIES CAPITAL,EQUIPMENT - WIP,E330,08-Jun-16,82388,528.00,ROLAMVALE LTD,ROL001
EFDC,33080,OTHER ACTIVITIES,ANNUAL SUPPORT /  LICENSES,3872,18-May-16,82395,1570.00,HAGUE COMPUTER SUPPLIES LIMITED,HAG001
EFDC,CAPCM,COMMUNITIES CAPITAL,WORKS- COUNCIL DWELLINGS,A040,20-Apr-16,82399,86569.57,AWH UTILITIES SERVICES LTD,AWH001
EFDC,OS101,PARKS & GROUNDS,TREE  MAINTENANCE,1070,20-Apr-16,82406,1600.00,J. CURRY & CO LTD,CUR001
EFDC,EI131,FORWARD PLANNING & ECONOMIC,PROFESSIONAL FEES,3420,20-Apr-16,82407,3200.00,J. CURRY & CO LTD,CUR001
EFDC,CAPNB,NEIGHBOURHOODS CAPITAL,WORKS,E040,20-Apr-16,82408,353314.55,T J EVERS LTD,EVE001
EFDC,RS301,NORTH WEALD CENTRE,OTHER MAINTENANCE,1050,20-Apr-16,82410,1792.00,HUGH PEARL (LAND DRAINAGE) LTD,HUG001
EFDC,GD190,VOLUNTARY SECTOR SUPPORT,GROUNDS MAINTENANCE,1040,20-Apr-16,82411,2382.03,HUGH PEARL (LAND DRAINAGE) LTD,HUG001
EFDC,OS100,PARKS & GROUNDS,GROUNDS MAINTENANCE,1040,20-Apr-16,82412,2452.80,HUGH PEARL (LAND DRAINAGE) LTD,HUG001
EFDC,FD100,LAND DRAINAGE/SEWERAGE,HIGHWAYS CONTRACTORS,4310,20-Apr-16,82414,836.00,HUGH PEARL (LAND DRAINAGE) LTD,HUG001
EFDC,FD100,LAND DRAINAGE/SEWERAGE,CLEANSING CONTRACTORS,4320,20-Apr-16,82415,2982.00,HUGH PEARL (LAND DRAINAGE) LTD,HUG001
EFDC,CAPCM,COMMUNITIES CAPITAL,WORKS,E040,20-Apr-16,82416,82120.09,MULALLEY & CO LTD,MUL003
EFDC,CAPCM,COMMUNITIES CAPITAL,PLANNING SUPERVISOR,E190,20-Apr-16,82417,6332.95,OUTSIDE STUDIOS LTD,OUT002
EFDC,CH110,ARTS & MUSEUM,PUBLICITY,3360,20-Apr-16,82418,800.00,MELISSA V PAGE,PAG004
EFDC,RS401,SPORTS DEVELOPMENT & OTHER,ACTIVITIES,3372,20-Apr-16,82422,1600.00,EPPING UPPER CLAPTON RUGBY FOOTBALL CLUB,UPP001
EFDC,33080,OTHER ACTIVITIES,COMPUTER - OTHER,3570,20-Apr-16,82423,2527.29,VODAFONE LIMITED,VOD002
EFDC,CAPCM,COMMUNITIES CAPITAL,WORKS- COUNCIL DWELLINGS,A040,20-Apr-16,82424,15113.10,WEDGE CIVIL ENGINEERING LTD,WED004
EFDC,CAPCM,COMMUNITIES CAPITAL,WORKS- COUNCIL DWELLINGS,A040,20-Apr-16,82425,113864.35,WREKIN WINDOWS,WRE001
EFDC,RM400,PLANNED & CYCLICAL MAINTENANCE,BUILDING MAINTENANCE,1010,18-May-16,82430,930.00,JACKSON LIFT SERVICES LIMITED,JAC001
EFDC,78001,OTHER ACTIVITIES,REFUSE REMOVAL,1640,11-May-16,82431,561.60,GBN SERVICES LTD,GBN002
EFDC,33080,OTHER ACTIVITIES,FIXED NETWORK LINE COSTS,3520,20-Apr-16,82435,20.00,BRITISH TELECOMMUNICATIONS PLC,BRI002
EFDC,33080,OTHER ACTIVITIES,FIXED NETWORK LINE COSTS,3520,20-Apr-16,82435,23539.07,BRITISH TELECOMMUNICATIONS PLC,BRI002
EFDC,25300,INTERNAL INSURANCE FUND,OTHER MISCELLANEOUS EXPENSES,3850,04-May-16,82436,608.68,GROVE CRASH REPAIRS LLP,GRO001
EFDC,RM100,RESPONSIVE & VOID REPAIRS,BUILDING MAINTENANCE,1010,04-May-16,82438,996.00,STANNAH LIFT SERVICES LTD,STA019
EFDC,CAPCM,COMMUNITIES CAPITAL,WORKS- COUNCIL DWELLINGS,A040,04-May-16,82439,1054.00,STANNAH LIFT SERVICES LTD,STA019
EFDC,RM100,RESPONSIVE & VOID REPAIRS,BUILDING MAINTENANCE,1010,04-May-16,82440,996.00,STANNAH LIFT SERVICES LTD,STA019
EFDC,CAPCM,COMMUNITIES CAPITAL,WORKS- COUNCIL DWELLINGS,A040,04-May-16,82440,4284.00,STANNAH LIFT SERVICES LTD,STA019
EFDC,CAPCM,COMMUNITIES CAPITAL,WORKS- COUNCIL DWELLINGS,A040,20-Apr-16,82454,6500.00,WEDGE CIVIL ENGINEERING LTD,WED004
EFDC,CAPCM,COMMUNITIES CAPITAL,WORKS- COUNCIL DWELLINGS,A040,20-Apr-16,82455,1700.00,WEDGE CIVIL ENGINEERING LTD,WED004
EFDC,36500,OTHER ACTIVITIES,AGENCY STAFF,0120,04-May-16,82456,843.75,BADENOCH & CLARK,BAD001
EFDC,32200,OTHER SUPPORT SERVICES (HR),STOCK ISSUES,3070,27-Apr-16,82467,537.00,FULTON PAPER,FUL001
EFDC,33060,OTHER ACTIVITIES,AGENCY STAFF,0120,11-May-16,82470,1064.00,HAYS SPECIALIST RECRUITMENT LTD,HAY011
EFDC,32220,OTHER SUPPORT SERVICES (HR),AGENCY STAFF,0120,11-May-16,82471,672.00,HAYS SPECIALIST RECRUITMENT LTD,HAY011
EFDC,RM100,RESPONSIVE & VOID REPAIRS,BUILDING MAINTENANCE,1010,27-Apr-16,82477,6818.08,GRACELANDS COMPLETE MAINTENANCE SERVICES LTD,GRA007
EFDC,37100,PLANNING OTHER,EQUIPMENT - HIRED,3020,04-May-16,82480,514.67,CANON (UK) LTD,CAN004
EFDC,37600,PLANNING OTHER,AGENCY STAFF,0120,04-May-16,82482,1073.50,THE OYSTER PARTNERSHIP LTD,OYS001
EFDC,32200,OTHER SUPPORT SERVICES (HR),STOCK ISSUES,3070,18-May-16,82484,659.25,HOUND ENVELOPES LTD,HOU003
EFDC,CH110,ARTS & MUSEUM,PROFESSIONAL FEES,3420,04-May-16,82485,625.00,DDS (INTERNATIONAL) LTD,DDS001
EFDC,YB620,SUPERVISION/MANAGEMENT SPECIAL,GAS,1110,04-May-16,82488,1901.06,CORONA ENERGY RETAIL 4 LTD,COR015
EFDC,27050,ACCOMMODATION,GAS,1110,04-May-16,82489,2089.40,CORONA ENERGY RETAIL 4 LTD,COR015
EFDC,YB500,SUPERVISION/MANAGEMENT SPECIAL,GAS,1110,04-May-16,82490,1454.47,CORONA ENERGY RETAIL 4 LTD,COR015
EFDC,YB500,SUPERVISION/MANAGEMENT SPECIAL,GAS,1110,04-May-16,82491,1188.93,CORONA ENERGY RETAIL 4 LTD,COR015
EFDC,YB350,SUPERVISION/MANAGEMENT SPECIAL,GAS,1110,04-May-16,82497,503.25,CORONA ENERGY RETAIL 4 LTD,COR015
EFDC,YB500,SUPERVISION/MANAGEMENT SPECIAL,GAS,1110,04-May-16,82498,1556.17,CORONA ENERGY RETAIL 4 LTD,COR015
EFDC,YB500,SUPERVISION/MANAGEMENT SPECIAL,GAS,1110,04-May-16,82499,1656.64,CORONA ENERGY RETAIL 4 LTD,COR015
EFDC,YB500,SUPERVISION/MANAGEMENT SPECIAL,GAS,1110,04-May-16,82501,611.33,CORONA ENERGY RETAIL 4 LTD,COR015
EFDC,YB500,SUPERVISION/MANAGEMENT SPECIAL,GAS,1110,04-May-16,82502,993.52,CORONA ENERGY RETAIL 4 LTD,COR015
EFDC,23170,ACCOMMODATION,GAS,1110,04-May-16,82503,1097.00,CORONA ENERGY RETAIL 4 LTD,COR015
EFDC,35300,ENVIRONMENTAL OTHER,GAS,1110,04-May-16,82504,699.96,CORONA ENERGY RETAIL 4 LTD,COR015
EFDC,YB500,SUPERVISION/MANAGEMENT SPECIAL,GAS,1110,04-May-16,82520,1573.94,CORONA ENERGY RETAIL 4 LTD,COR015
EFDC,YB500,SUPERVISION/MANAGEMENT SPECIAL,GAS,1110,04-May-16,82521,1351.09,CORONA ENERGY RETAIL 4 LTD,COR015
EFDC,CAPNB,NEIGHBOURHOODS CAPITAL,LEGAL FEES,E140,04-May-16,82526,5077.00,DAC BEACHCROFT LLP,DAC001
EFDC,CH110,ARTS & MUSEUM,TREE  MAINTENANCE,1070,20-Apr-16,82527,600.00,G J FULLER BUILDERS LTD,FUL003
EFDC,CAPCM,COMMUNITIES CAPITAL,WORKS- COUNCIL DWELLINGS,A040,20-Apr-16,82529,125341.44,M & J SERVICES LTD,SER009
EFDC,CAPCM,COMMUNITIES CAPITAL,WORKS- COUNCIL DWELLINGS,A040,20-Apr-16,82531,4984.43,VSN ENTERPRISES LTD,VSN001
EFDC,CAPCM,COMMUNITIES CAPITAL,WORKS- COUNCIL DWELLINGS,A040,20-Apr-16,82531,4700.00,VSN ENTERPRISES LTD,VSN001
EFDC,CAPCM,COMMUNITIES CAPITAL,WORKS- COUNCIL DWELLINGS,A040,20-Apr-16,82532,360.00,VSN ENTERPRISES LTD,VSN001
EFDC,CAPCM,COMMUNITIES CAPITAL,WORKS- COUNCIL DWELLINGS,A040,20-Apr-16,82532,450.00,VSN ENTERPRISES LTD,VSN001
EFDC,YR800,CHARGES SERVICES & FACILITIES,MISC. INCOME,9340,20-Apr-16,82533,-8679.73,BROADWAY CONSTRUCTION LTD,BRO004
EFDC,CAPCM,COMMUNITIES CAPITAL,WORKS,E040,20-Apr-16,82533,50617.73,BROADWAY CONSTRUCTION LTD,BRO004
EFDC,CAPCM,COMMUNITIES CAPITAL,WORKS,E040,20-Apr-16,82533,35599.04,BROADWAY CONSTRUCTION LTD,BRO004
EFDC,CAPCM,COMMUNITIES CAPITAL,WORKS,E040,20-Apr-16,82533,74087.87,BROADWAY CONSTRUCTION LTD,BRO004
EFDC,CAPCM,COMMUNITIES CAPITAL,WORKS,E040,20-Apr-16,82533,32732.12,BROADWAY CONSTRUCTION LTD,BRO004
EFDC,CG200,CAPITAL GRANTS & CONT HRA,OTHER CONTRIBUTIONS,7850,20-Apr-16,82533,-10608.55,BROADWAY CONSTRUCTION LTD,BRO004
EFDC,25300,INTERNAL INSURANCE FUND,OTHER MISCELLANEOUS EXPENSES,3850,20-Apr-16,82536,56296.00,MUNICIPAL MUTUAL INSURANCE LTD,MUN001
EFDC,RM300,PLANNED & CYCLICAL MAINTENANCE,BUILDING MAINTENANCE,1010,20-Apr-16,82542,-2914.20,FLOWLINE (BUILDERS) LTD,FLO003
EFDC,RM300,PLANNED & CYCLICAL MAINTENANCE,BUILDING MAINTENANCE,1010,20-Apr-16,82542,60374.55,FLOWLINE (BUILDERS) LTD,FLO003
EFDC,CAPCM,COMMUNITIES CAPITAL,WORKS- COUNCIL DWELLINGS,A040,20-Apr-16,82544,59623.03,FLOWLINE (BUILDERS) LTD,FLO003
EFDC,27050,ACCOMMODATION,CONTRACT CLEANING,1630,04-May-16,82546,568.75,ASTRAL HYGIENE,AST002
EFDC,CAPCM,COMMUNITIES CAPITAL,WORKS- COUNCIL DWELLINGS,A040,20-Apr-16,82547,20778.57,GRACELANDS COMPLETE MAINTENANCE SERVICES LTD,GRA007
EFDC,CAPCM,COMMUNITIES CAPITAL,WORKS- COUNCIL DWELLINGS,A040,11-May-16,82549,1534.00,STANNAH LIFT SERVICES LTD,STA019
EFDC,RM100,RESPONSIVE & VOID REPAIRS,BUILDING MAINTENANCE,1010,11-May-16,82550,996.00,STANNAH LIFT SERVICES LTD,STA019
EFDC,CAPCM,COMMUNITIES CAPITAL,WORKS- COUNCIL DWELLINGS,A040,20-Apr-16,82551,12950.00,VSN ENTERPRISES LTD,VSN001
EFDC,CAPCM,COMMUNITIES CAPITAL,WORKS- COUNCIL DWELLINGS,A040,20-Apr-16,82551,12000.00,VSN ENTERPRISES LTD,VSN001
EFDC,YA100,SUPERVISION/MANAGEMENT GENERAL,PUBLICITY,3360,27-Apr-16,82739,1200.00,BLUE PIG CREATIVE PARTNERSHIP,BLU001
EFDC,CAPCM,COMMUNITIES CAPITAL,VOIDS WORKS,A045,25-May-16,82740,126.00,GRACELANDS COMPLETE MAINTENANCE SERVICES LTD,GRA007
EFDC,CAPCM,COMMUNITIES CAPITAL,VOIDS WORKS,A045,25-May-16,82740,4818.56,GRACELANDS COMPLETE MAINTENANCE SERVICES LTD,GRA007
EFDC,YB120,SUPERVISION/MANAGEMENT SPECIAL,EQUIPMENT - NEW,3010,04-May-16,82763,560.00,S & F ELECTRICS,ELE002
EFDC,EH120,PRIVATE SECTOR HOUSING,OTHER MISCELLANEOUS EXPENSES,3850,27-Apr-16,82766,1980.00,EXTREME ENVIRONMENTAL SERVICES LTD,EXT002
EFDC,32060,OTHER SUPPORT SERVICES (HR),CONSULTANTS FEES,3490,18-May-16,82767,920.00,ANDREW TROLLOPE QC CHAMBERS ACCOUNT NO.2,AND001
EFDC,32060,OTHER SUPPORT SERVICES (HR),CONSULTANTS FEES,3490,18-May-16,82768,750.00,MR NICK OSTROWSKI,OST002
EFDC,32220,OTHER SUPPORT SERVICES (HR),AGENCY STAFF,0120,04-May-16,82776,5560.00,CAPSTONE PROPERTY RECRUITMENT (INTERIM) LTD,CAP001
EFDC,33055,OTHER ACTIVITIES,AGENCY STAFF,0120,04-May-16,82777,900.00,EDEN BROWN LTD,EDE001
EFDC,33075,OTHER ACTIVITIES,AGENCY STAFF,0120,04-May-16,82778,792.00,EDEN BROWN LTD,EDE001
EFDC,33075,OTHER ACTIVITIES,AGENCY STAFF,0120,27-Apr-16,82782,774.00,MORGAN HUNT UK LTD,MOR001
EFDC,YB400,SUPERVISION/MANAGEMENT SPECIAL,GROUNDS MAINTENANCE,1040,27-Apr-16,82784,40000.00,VOLUNTARY ACTION EPPING FOREST,VOL004
EFDC,36700,OTHER ACTIVITIES,AGENCY STAFF,0120,18-May-16,82804,648.00,MMP CONSULTANCY,MMP001
EFDC,26200,OTHER SUPPORT SERVICES (HR),FIXED PLANT MAINTENANCE,1020,11-May-16,82805,507.00,TYCO FIRE & INTEGRATED SOLUTIONS (UK) LTD,TYC001
EFDC,LA100,LAA POOLED FUNDS,LAA EXPENDITURE,Y100,27-Apr-16,82806,11000.00,VOLUNTARY ACTION EPPING FOREST,VOL004
EFDC,LA100,LAA POOLED FUNDS,LAA EXPENDITURE,Y100,18-May-16,82810,15000.00,VOLUNTARY ACTION EPPING FOREST,VOL007
EFDC,35300,ENVIRONMENTAL OTHER,STOCK ISSUES,3070,11-May-16,82811,949.50,FARGRO LTD,FAR005
EFDC,78001,OTHER ACTIVITIES,MATERIALS,3080,11-May-16,82812,550.00,HOLLINGTON DOORS LTD,HOL002
EFDC,RM200,RESPONSIVE & VOID REPAIRS,BUILDING MAINTENANCE,1010,18-May-16,82826,940.64,GRACELANDS COMPLETE MAINTENANCE SERVICES LTD,GRA007
EFDC,CAPCM,COMMUNITIES CAPITAL,VOIDS WORKS,A045,18-May-16,82826,1916.71,GRACELANDS COMPLETE MAINTENANCE SERVICES LTD,GRA007
EFDC,CAPCM,COMMUNITIES CAPITAL,VOIDS WORKS,A045,18-May-16,82826,3560.70,GRACELANDS COMPLETE MAINTENANCE SERVICES LTD,GRA007
EFDC,CAPCM,COMMUNITIES CAPITAL,VOIDS WORKS,A045,18-May-16,82826,2407.90,GRACELANDS COMPLETE MAINTENANCE SERVICES LTD,GRA007
EFDC,RM200,RESPONSIVE & VOID REPAIRS,BUILDING MAINTENANCE,1010,18-May-16,82828,1844.90,GRACELANDS COMPLETE MAINTENANCE SERVICES LTD,GRA007
EFDC,CAPCM,COMMUNITIES CAPITAL,VOIDS WORKS,A045,18-May-16,82828,2846.56,GRACELANDS COMPLETE MAINTENANCE SERVICES LTD,GRA007
EFDC,CAPCM,COMMUNITIES CAPITAL,VOIDS WORKS,A045,18-May-16,82828,951.56,GRACELANDS COMPLETE MAINTENANCE SERVICES LTD,GRA007
EFDC,RM200,RESPONSIVE & VOID REPAIRS,BUILDING MAINTENANCE,1010,18-May-16,82829,1043.18,GRACELANDS COMPLETE MAINTENANCE SERVICES LTD,GRA007
EFDC,CAPCM,COMMUNITIES CAPITAL,VOIDS WORKS,A045,18-May-16,82829,3184.60,GRACELANDS COMPLETE MAINTENANCE SERVICES LTD,GRA007
EFDC,CAPCM,COMMUNITIES CAPITAL,VOIDS WORKS,A045,18-May-16,82829,929.36,GRACELANDS COMPLETE MAINTENANCE SERVICES LTD,GRA007
EFDC,RM200,RESPONSIVE & VOID REPAIRS,BUILDING MAINTENANCE,1010,18-May-16,82830,1393.09,GRACELANDS COMPLETE MAINTENANCE SERVICES LTD,GRA007
EFDC,CAPCM,COMMUNITIES CAPITAL,VOIDS WORKS,A045,18-May-16,82830,2084.65,GRACELANDS COMPLETE MAINTENANCE SERVICES LTD,GRA007
EFDC,CAPCM,COMMUNITIES CAPITAL,VOIDS WORKS,A045,18-May-16,82830,4137.86,GRACELANDS COMPLETE MAINTENANCE SERVICES LTD,GRA007
EFDC,CAPCM,COMMUNITIES CAPITAL,VOIDS WORKS,A045,18-May-16,82830,1672.28,GRACELANDS COMPLETE MAINTENANCE SERVICES LTD,GRA007
EFDC,RM100,RESPONSIVE & VOID REPAIRS,BUILDING MAINTENANCE,1010,18-May-16,82832,880.00,GRACELANDS COMPLETE MAINTENANCE SERVICES LTD,GRA007
EFDC,RM200,RESPONSIVE & VOID REPAIRS,BUILDING MAINTENANCE,1010,18-May-16,82833,1855.02,GRACELANDS COMPLETE MAINTENANCE SERVICES LTD,GRA007
EFDC,CAPCM,COMMUNITIES CAPITAL,VOIDS WORKS,A045,18-May-16,82833,2132.79,GRACELANDS COMPLETE MAINTENANCE SERVICES LTD,GRA007
EFDC,CAPCM,COMMUNITIES CAPITAL,VOIDS WORKS,A045,18-May-16,82833,299.68,GRACELANDS COMPLETE MAINTENANCE SERVICES LTD,GRA007
EFDC,YB400,SUPERVISION/MANAGEMENT SPECIAL,CLEANSING CONTRACTORS,4320,18-May-16,82834,1510.00,PRINCIPAL TREES LTD,PRI017
EFDC,OS101,PARKS & GROUNDS,TREE  MAINTENANCE,1070,18-May-16,82835,1120.00,PRINCIPAL TREES LTD,PRI017
EFDC,YB400,SUPERVISION/MANAGEMENT SPECIAL,GROUNDS MAINTENANCE,1040,18-May-16,82837,965.00,PRINCIPAL TREES LTD,PRI017
EFDC,YA300,SUPERVISION/MANAGEMENT GENERAL,BANKING AND CASH COLLECTION,3440,18-May-16,82838,1053.15,NORTHERN HOUSING CONSORTIUM LTD,NOR008
EFDC,32030,OTHER SUPPORT SERVICES (HR),POSTAGE,3510,11-May-16,82846,113.54,ROYAL MAIL GROUP PLC,ROY015
EFDC,34110,COMMUNITIES SUPPORT SERVICES,POSTAGE,3510,11-May-16,82846,140.49,ROYAL MAIL GROUP PLC,ROY015
EFDC,EL100,ELECTIONS,OTHER MISCELLANEOUS EXPENSES,3850,11-May-16,82846,168.49,ROYAL MAIL GROUP PLC,ROY015
EFDC,RE100,ELECTIONS,POSTAGE,3510,11-May-16,82846,244.56,ROYAL MAIL GROUP PLC,ROY015
EFDC,35900,ENVIRONMENTAL OTHER,POSTAGE,3510,11-May-16,82846,91.51,ROYAL MAIL GROUP PLC,ROY015
EFDC,33055,OTHER ACTIVITIES,POSTAGE,3510,11-May-16,82846,135.20,ROYAL MAIL GROUP PLC,ROY015
EFDC,33055,OTHER ACTIVITIES,POSTAGE,3510,11-May-16,82846,265.90,ROYAL MAIL GROUP PLC,ROY015
EFDC,33075,OTHER ACTIVITIES,POSTAGE,3510,11-May-16,82846,378.28,ROYAL MAIL GROUP PLC,ROY015
EFDC,33075,OTHER ACTIVITIES,POSTAGE,3510,11-May-16,82846,906.68,ROYAL MAIL GROUP PLC,ROY015
EFDC,36200,OTHER ACTIVITIES,POSTAGE,3510,11-May-16,82846,217.37,ROYAL MAIL GROUP PLC,ROY015
EFDC,DR150,MEMBER ACTIVITIES,POSTAGE,3510,11-May-16,82846,1.11,ROYAL MAIL GROUP PLC,ROY015
EFDC,37100,PLANNING OTHER,POSTAGE,3510,11-May-16,82846,217.66,ROYAL MAIL GROUP PLC,ROY015
EFDC,YA100,SUPERVISION/MANAGEMENT GENERAL,PUBLICITY,3360,18-May-16,82849,1796.90,MOBILE STATIONERY PRINTING CENTRE LTD,MOB002
EFDC,YB400,SUPERVISION/MANAGEMENT SPECIAL,GROUNDS MAINTENANCE,1040,18-May-16,82855,2152.40,WICKSTEED LEISURE LTD,WIC001
EFDC,RM200,RESPONSIVE & VOID REPAIRS,BUILDING MAINTENANCE,1010,25-May-16,82866,6377.79,MEARS LTD,MEA002
EFDC,CAPCM,COMMUNITIES CAPITAL,VOIDS WORKS,A045,25-May-16,82866,2877.12,MEARS LTD,MEA002
EFDC,CAPCM,COMMUNITIES CAPITAL,VOIDS WORKS,A045,25-May-16,82866,4710.02,MEARS LTD,MEA002
EFDC,CAPCM,COMMUNITIES CAPITAL,VOIDS WORKS,A045,25-May-16,82866,2166.21,MEARS LTD,MEA002
EFDC,RM200,RESPONSIVE & VOID REPAIRS,BUILDING MAINTENANCE,1010,25-May-16,82868,2336.92,MEARS LTD,MEA002
EFDC,CAPCM,COMMUNITIES CAPITAL,VOIDS WORKS,A045,25-May-16,82868,3289.98,MEARS LTD,MEA002
EFDC,CAPCM,COMMUNITIES CAPITAL,VOIDS WORKS,A045,25-May-16,82868,1853.26,MEARS LTD,MEA002
EFDC,CAPRS,RESOURCES CAPITAL,CAPITAL SOFTWARE,K340,04-May-16,82869,3000.00,BYTES SOFTWARE SERVICES LTD,BYT001
EFDC,33010,OTHER ACTIVITIES,SUBSCRIPTIONS,3730,18-May-16,82871,17000.00,EGS GROUP HOLDINGS LIIMITED,GOV001
EFDC,33060,OTHER ACTIVITIES,SUBSCRIPTIONS,3730,27-Apr-16,82873,4785.00,CIPFA BUSINESS LTD,CIP005
EFDC,CAPRS,RESOURCES CAPITAL,WORKS- LAND AND BUILDINGS,B040,18-May-16,82874,4279.01,SMART MERCHANTS LTD,SMA002
EFDC,26200,OTHER SUPPORT SERVICES (HR),FIXED PLANT MAINTENANCE,1020,18-May-16,82877,642.65,SMART MERCHANTS LTD,SMA002
EFDC,CAPCM,COMMUNITIES CAPITAL,WORKS- COUNCIL DWELLINGS,A040,18-May-16,82884,1108.00,REACTIVE INTEGRATED SERVICES LTD (RIS LTD),REA001
EFDC,78001,OTHER ACTIVITIES,MATERIALS,3080,18-May-16,82885,2256.00,CRANBROOK ELECTRICS,CRA001
EFDC,78001,OTHER ACTIVITIES,MATERIALS,3080,18-May-16,82886,4104.20,CRANBROOK ELECTRICS,CRA001
EFDC,37600,PLANNING OTHER,AGENCY STAFF,0120,18-May-16,82889,1007.00,THE OYSTER PARTNERSHIP LTD,OYS001
EFDC,26200,OTHER SUPPORT SERVICES (HR),BUILDING MAINTENANCE,1010,04-May-16,82893,780.00,DISCREET PEST CONTROL LTD,DIS004
EFDC,33010,OTHER ACTIVITIES,SUBSCRIPTIONS,3730,04-May-16,82894,1470.00,CIPFA BUSINESS LTD,CIP005
EFDC,32200,OTHER SUPPORT SERVICES (HR),STOCK ISSUES,3070,18-May-16,82898,784.35,HOUND ENVELOPES LTD,HOU003
EFDC,35300,ENVIRONMENTAL OTHER,AGENCY STAFF,0120,11-May-16,82900,882.00,GRAFTERS RECRUIT LTD,GRA009
EFDC,35300,ENVIRONMENTAL OTHER,AGENCY STAFF,0120,11-May-16,82901,882.00,GRAFTERS RECRUIT LTD,GRA009
EFDC,33075,OTHER ACTIVITIES,AGENCY STAFF,0120,11-May-16,82903,677.25,BADENOCH & CLARK,BAD001
EFDC,RM300,PLANNED & CYCLICAL MAINTENANCE,BUILDING MAINTENANCE,1010,04-May-16,82914,4244.00,DDS (INTERNATIONAL) LTD,DDS001
EFDC,CAPCM,COMMUNITIES CAPITAL,CONSTRUCTION,D030,04-May-16,82915,1527.50,STACE LLP,STA012
EFDC,RM200,RESPONSIVE & VOID REPAIRS,BUILDING MAINTENANCE,1010,18-May-16,82916,3458.93,GRACELANDS COMPLETE MAINTENANCE SERVICES LTD,GRA007
EFDC,CAPCM,COMMUNITIES CAPITAL,VOIDS WORKS,A045,18-May-16,82916,931.17,GRACELANDS COMPLETE MAINTENANCE SERVICES LTD,GRA007
EFDC,RM200,RESPONSIVE & VOID REPAIRS,BUILDING MAINTENANCE,1010,18-May-16,82917,915.47,GRACELANDS COMPLETE MAINTENANCE SERVICES LTD,GRA007
EFDC,CAPCM,COMMUNITIES CAPITAL,VOIDS WORKS,A045,18-May-16,82917,359.59,GRACELANDS COMPLETE MAINTENANCE SERVICES LTD,GRA007
EFDC,RM200,RESPONSIVE & VOID REPAIRS,BUILDING MAINTENANCE,1010,18-May-16,82918,5286.52,GRACELANDS COMPLETE MAINTENANCE SERVICES LTD,GRA007
EFDC,CAPCM,COMMUNITIES CAPITAL,VOIDS WORKS,A045,18-May-16,82918,552.40,GRACELANDS COMPLETE MAINTENANCE SERVICES LTD,GRA007
EFDC,RM200,RESPONSIVE & VOID REPAIRS,BUILDING MAINTENANCE,1010,18-May-16,82919,2362.57,GRACELANDS COMPLETE MAINTENANCE SERVICES LTD,GRA007
EFDC,CAPCM,COMMUNITIES CAPITAL,VOIDS WORKS,A045,18-May-16,82919,216.04,GRACELANDS COMPLETE MAINTENANCE SERVICES LTD,GRA007
EFDC,RM100,RESPONSIVE & VOID REPAIRS,BUILDING MAINTENANCE,1010,18-May-16,82920,800.00,GRACELANDS COMPLETE MAINTENANCE SERVICES LTD,GRA007
EFDC,33080,OTHER ACTIVITIES,PROFESSIONAL FEES,3420,25-May-16,82924,1200.00,AIT PARTNERSHIP GROUP LTD,AIT001
EFDC,CAPRS,RESOURCES CAPITAL,EQUIPMENT ACQUISITION,C330,25-May-16,82926,2331.60,INSPIRED TECHNOLOGY SERVICES LTD,INS001
EFDC,42520,GOVERNANCE SUPPORT SERVICES,STATIONERY,3320,18-May-16,82928,859.32,CANON (UK) LTD,CAN001
EFDC,34160,COMMUNITIES SUPPORT SERVICES,EQUIPMENT - NEW,3010,04-May-16,82930,765.00,FOREST CASUAL & SCHOOLWEAR,FOR002
EFDC,35013,ENVIRONMENTAL OTHER,AGENCY STAFF,0120,11-May-16,82931,576.49,REED SPECIALIST RECRUITMENT LTD,REE002
EFDC,36200,OTHER ACTIVITIES,CONFERENCE EXPENSES,3620,04-May-16,82937,865.00,OCEAN MEDIA GROUP LTD,OCE003
EFDC,27050,ACCOMMODATION,Security Contract,1650,11-May-16,82940,5125.30,T.S.S. (TOTAL SECURITY SERVICES) LTD,TSS001
EFDC,YB350,SUPERVISION/MANAGEMENT SPECIAL,ELECTRICITY,1120,27-Apr-16,82945,268.83,BRITISH GAS,BRI040
EFDC,YB620,SUPERVISION/MANAGEMENT SPECIAL,ELECTRICITY,1120,27-Apr-16,82945,1405.68,BRITISH GAS,BRI040
EFDC,YB500,SUPERVISION/MANAGEMENT SPECIAL,ELECTRICITY,1120,27-Apr-16,82945,-16.02,BRITISH GAS,BRI040
EFDC,YB500,SUPERVISION/MANAGEMENT SPECIAL,ELECTRICITY,1120,27-Apr-16,82945,-15.64,BRITISH GAS,BRI040
EFDC,YB500,SUPERVISION/MANAGEMENT SPECIAL,ELECTRICITY,1120,27-Apr-16,82945,-15.70,BRITISH GAS,BRI040
EFDC,YB500,SUPERVISION/MANAGEMENT SPECIAL,ELECTRICITY,1120,27-Apr-16,82945,6.56,BRITISH GAS,BRI040
EFDC,YB500,SUPERVISION/MANAGEMENT SPECIAL,ELECTRICITY,1120,27-Apr-16,82945,28.62,BRITISH GAS,BRI040
EFDC,YB500,SUPERVISION/MANAGEMENT SPECIAL,ELECTRICITY,1120,27-Apr-16,82945,7.20,BRITISH GAS,BRI040
EFDC,YB500,SUPERVISION/MANAGEMENT SPECIAL,ELECTRICITY,1120,27-Apr-16,82945,94.94,BRITISH GAS,BRI040
EFDC,YB500,SUPERVISION/MANAGEMENT SPECIAL,ELECTRICITY,1120,27-Apr-16,82945,16.34,BRITISH GAS,BRI040
EFDC,YB500,SUPERVISION/MANAGEMENT SPECIAL,ELECTRICITY,1120,27-Apr-16,82945,5.67,BRITISH GAS,BRI040
EFDC,YB500,SUPERVISION/MANAGEMENT SPECIAL,ELECTRICITY,1120,27-Apr-16,82945,53.16,BRITISH GAS,BRI040
EFDC,YB500,SUPERVISION/MANAGEMENT SPECIAL,ELECTRICITY,1120,27-Apr-16,82945,245.49,BRITISH GAS,BRI040
EFDC,YB500,SUPERVISION/MANAGEMENT SPECIAL,ELECTRICITY,1120,27-Apr-16,82945,74.32,BRITISH GAS,BRI040
EFDC,YB500,SUPERVISION/MANAGEMENT SPECIAL,ELECTRICITY,1120,27-Apr-16,82945,8.41,BRITISH GAS,BRI040
EFDC,YB500,SUPERVISION/MANAGEMENT SPECIAL,ELECTRICITY,1120,27-Apr-16,82945,15.16,BRITISH GAS,BRI040
EFDC,YB500,SUPERVISION/MANAGEMENT SPECIAL,ELECTRICITY,1120,27-Apr-16,82945,306.33,BRITISH GAS,BRI040
EFDC,YB500,SUPERVISION/MANAGEMENT SPECIAL,ELECTRICITY,1120,27-Apr-16,82945,629.07,BRITISH GAS,BRI040
EFDC,YB500,SUPERVISION/MANAGEMENT SPECIAL,ELECTRICITY,1120,27-Apr-16,82945,7.49,BRITISH GAS,BRI040
EFDC,YB500,SUPERVISION/MANAGEMENT SPECIAL,ELECTRICITY,1120,27-Apr-16,82945,648.25,BRITISH GAS,BRI040
EFDC,YB500,SUPERVISION/MANAGEMENT SPECIAL,ELECTRICITY,1120,27-Apr-16,82945,476.52,BRITISH GAS,BRI040
EFDC,YB500,SUPERVISION/MANAGEMENT SPECIAL,ELECTRICITY,1120,27-Apr-16,82945,117.03,BRITISH GAS,BRI040
EFDC,YB500,SUPERVISION/MANAGEMENT SPECIAL,ELECTRICITY,1120,27-Apr-16,82945,197.06,BRITISH GAS,BRI040
EFDC,YB500,SUPERVISION/MANAGEMENT SPECIAL,ELECTRICITY,1120,27-Apr-16,82945,399.78,BRITISH GAS,BRI040
EFDC,YB500,SUPERVISION/MANAGEMENT SPECIAL,ELECTRICITY,1120,27-Apr-16,82945,11.11,BRITISH GAS,BRI040
EFDC,YB500,SUPERVISION/MANAGEMENT SPECIAL,ELECTRICITY,1120,27-Apr-16,82945,9.59,BRITISH GAS,BRI040
EFDC,YB500,SUPERVISION/MANAGEMENT SPECIAL,ELECTRICITY,1120,27-Apr-16,82945,10.57,BRITISH GAS,BRI040
EFDC,YB500,SUPERVISION/MANAGEMENT SPECIAL,ELECTRICITY,1120,27-Apr-16,82945,7.37,BRITISH GAS,BRI040
EFDC,YB500,SUPERVISION/MANAGEMENT SPECIAL,ELECTRICITY,1120,27-Apr-16,82945,15.27,BRITISH GAS,BRI040
EFDC,YB500,SUPERVISION/MANAGEMENT SPECIAL,ELECTRICITY,1120,27-Apr-16,82945,8.05,BRITISH GAS,BRI040
EFDC,YB500,SUPERVISION/MANAGEMENT SPECIAL,ELECTRICITY,1120,27-Apr-16,82945,8.94,BRITISH GAS,BRI040
EFDC,YB500,SUPERVISION/MANAGEMENT SPECIAL,ELECTRICITY,1120,27-Apr-16,82945,7.52,BRITISH GAS,BRI040
EFDC,YB500,SUPERVISION/MANAGEMENT SPECIAL,ELECTRICITY,1120,27-Apr-16,82945,14.07,BRITISH GAS,BRI040
EFDC,YB500,SUPERVISION/MANAGEMENT SPECIAL,ELECTRICITY,1120,27-Apr-16,82945,-15.61,BRITISH GAS,BRI040
EFDC,YB500,SUPERVISION/MANAGEMENT SPECIAL,ELECTRICITY,1120,27-Apr-16,82945,-14.51,BRITISH GAS,BRI040
EFDC,YB500,SUPERVISION/MANAGEMENT SPECIAL,ELECTRICITY,1120,27-Apr-16,82945,-14.07,BRITISH GAS,BRI040
EFDC,YB500,SUPERVISION/MANAGEMENT SPECIAL,ELECTRICITY,1120,27-Apr-16,82945,11.62,BRITISH GAS,BRI040
EFDC,YB500,SUPERVISION/MANAGEMENT SPECIAL,ELECTRICITY,1120,27-Apr-16,82945,36.71,BRITISH GAS,BRI040
EFDC,YB500,SUPERVISION/MANAGEMENT SPECIAL,ELECTRICITY,1120,27-Apr-16,82945,14.09,BRITISH GAS,BRI040
EFDC,YB500,SUPERVISION/MANAGEMENT SPECIAL,ELECTRICITY,1120,27-Apr-16,82945,14.74,BRITISH GAS,BRI040
EFDC,YB500,SUPERVISION/MANAGEMENT SPECIAL,ELECTRICITY,1120,27-Apr-16,82945,14.52,BRITISH GAS,BRI040
EFDC,YB500,SUPERVISION/MANAGEMENT SPECIAL,ELECTRICITY,1120,27-Apr-16,82945,11.93,BRITISH GAS,BRI040
EFDC,YB500,SUPERVISION/MANAGEMENT SPECIAL,ELECTRICITY,1120,27-Apr-16,82945,11.38,BRITISH GAS,BRI040
EFDC,YB500,SUPERVISION/MANAGEMENT SPECIAL,ELECTRICITY,1120,27-Apr-16,82945,10.49,BRITISH GAS,BRI040
EFDC,YB500,SUPERVISION/MANAGEMENT SPECIAL,ELECTRICITY,1120,27-Apr-16,82945,11.02,BRITISH GAS,BRI040
EFDC,YB500,SUPERVISION/MANAGEMENT SPECIAL,ELECTRICITY,1120,27-Apr-16,82945,10.73,BRITISH GAS,BRI040
EFDC,YB500,SUPERVISION/MANAGEMENT SPECIAL,ELECTRICITY,1120,27-Apr-16,82945,8.77,BRITISH GAS,BRI040
EFDC,YB500,SUPERVISION/MANAGEMENT SPECIAL,ELECTRICITY,1120,27-Apr-16,82945,9.84,BRITISH GAS,BRI040
EFDC,YB500,SUPERVISION/MANAGEMENT SPECIAL,ELECTRICITY,1120,27-Apr-16,82945,-15.23,BRITISH GAS,BRI040
EFDC,YB500,SUPERVISION/MANAGEMENT SPECIAL,ELECTRICITY,1120,27-Apr-16,82945,-14.28,BRITISH GAS,BRI040
EFDC,YB500,SUPERVISION/MANAGEMENT SPECIAL,ELECTRICITY,1120,27-Apr-16,82945,-17.76,BRITISH GAS,BRI040
EFDC,YB520,SUPERVISION/MANAGEMENT SPECIAL,ELECTRICITY,1120,27-Apr-16,82945,129.29,BRITISH GAS,BRI040
EFDC,YB520,SUPERVISION/MANAGEMENT SPECIAL,ELECTRICITY,1120,27-Apr-16,82945,180.97,BRITISH GAS,BRI040
EFDC,YB520,SUPERVISION/MANAGEMENT SPECIAL,ELECTRICITY,1120,27-Apr-16,82945,143.11,BRITISH GAS,BRI040
EFDC,YB520,SUPERVISION/MANAGEMENT SPECIAL,ELECTRICITY,1120,27-Apr-16,82945,65.64,BRITISH GAS,BRI040
EFDC,YB520,SUPERVISION/MANAGEMENT SPECIAL,ELECTRICITY,1120,27-Apr-16,82945,61.79,BRITISH GAS,BRI040
EFDC,YB110,SUPERVISION/MANAGEMENT SPECIAL,ELECTRICITY,1120,27-Apr-16,82945,16.18,BRITISH GAS,BRI040
EFDC,YB110,SUPERVISION/MANAGEMENT SPECIAL,ELECTRICITY,1120,27-Apr-16,82945,14.64,BRITISH GAS,BRI040
EFDC,YB110,SUPERVISION/MANAGEMENT SPECIAL,ELECTRICITY,1120,27-Apr-16,82945,14.63,BRITISH GAS,BRI040
EFDC,YB110,SUPERVISION/MANAGEMENT SPECIAL,ELECTRICITY,1120,27-Apr-16,82945,25.08,BRITISH GAS,BRI040
EFDC,YB110,SUPERVISION/MANAGEMENT SPECIAL,ELECTRICITY,1120,27-Apr-16,82945,14.31,BRITISH GAS,BRI040
EFDC,YB110,SUPERVISION/MANAGEMENT SPECIAL,ELECTRICITY,1120,27-Apr-16,82945,11.47,BRITISH GAS,BRI040
EFDC,YB110,SUPERVISION/MANAGEMENT SPECIAL,ELECTRICITY,1120,27-Apr-16,82945,16.69,BRITISH GAS,BRI040
EFDC,YB110,SUPERVISION/MANAGEMENT SPECIAL,ELECTRICITY,1120,27-Apr-16,82945,7.02,BRITISH GAS,BRI040
EFDC,YB110,SUPERVISION/MANAGEMENT SPECIAL,ELECTRICITY,1120,27-Apr-16,82945,5.62,BRITISH GAS,BRI040
EFDC,YB110,SUPERVISION/MANAGEMENT SPECIAL,ELECTRICITY,1120,27-Apr-16,82945,37.15,BRITISH GAS,BRI040
EFDC,YB110,SUPERVISION/MANAGEMENT SPECIAL,ELECTRICITY,1120,27-Apr-16,82945,11.66,BRITISH GAS,BRI040
EFDC,YB110,SUPERVISION/MANAGEMENT SPECIAL,ELECTRICITY,1120,27-Apr-16,82945,13.81,BRITISH GAS,BRI040
EFDC,YB110,SUPERVISION/MANAGEMENT SPECIAL,ELECTRICITY,1120,27-Apr-16,82945,12.43,BRITISH GAS,BRI040
EFDC,YB110,SUPERVISION/MANAGEMENT SPECIAL,ELECTRICITY,1120,27-Apr-16,82945,15.01,BRITISH GAS,BRI040
EFDC,YB110,SUPERVISION/MANAGEMENT SPECIAL,ELECTRICITY,1120,27-Apr-16,82945,11.51,BRITISH GAS,BRI040
EFDC,YB110,SUPERVISION/MANAGEMENT SPECIAL,ELECTRICITY,1120,27-Apr-16,82945,11.64,BRITISH GAS,BRI040
EFDC,YB110,SUPERVISION/MANAGEMENT SPECIAL,ELECTRICITY,1120,27-Apr-16,82945,12.84,BRITISH GAS,BRI040
EFDC,YB110,SUPERVISION/MANAGEMENT SPECIAL,ELECTRICITY,1120,27-Apr-16,82945,25.08,BRITISH GAS,BRI040
EFDC,YB110,SUPERVISION/MANAGEMENT SPECIAL,ELECTRICITY,1120,27-Apr-16,82945,20.74,BRITISH GAS,BRI040
EFDC,YB110,SUPERVISION/MANAGEMENT SPECIAL,ELECTRICITY,1120,27-Apr-16,82945,7.90,BRITISH GAS,BRI040
EFDC,YB110,SUPERVISION/MANAGEMENT SPECIAL,ELECTRICITY,1120,27-Apr-16,82945,9.74,BRITISH GAS,BRI040
EFDC,YB110,SUPERVISION/MANAGEMENT SPECIAL,ELECTRICITY,1120,27-Apr-16,82945,9.68,BRITISH GAS,BRI040
EFDC,YB110,SUPERVISION/MANAGEMENT SPECIAL,ELECTRICITY,1120,27-Apr-16,82945,-11.28,BRITISH GAS,BRI040
EFDC,YB110,SUPERVISION/MANAGEMENT SPECIAL,ELECTRICITY,1120,27-Apr-16,82945,-10.96,BRITISH GAS,BRI040
EFDC,YB110,SUPERVISION/MANAGEMENT SPECIAL,ELECTRICITY,1120,27-Apr-16,82945,30.28,BRITISH GAS,BRI040
EFDC,YB110,SUPERVISION/MANAGEMENT SPECIAL,ELECTRICITY,1120,27-Apr-16,82945,35.92,BRITISH GAS,BRI040
EFDC,YB110,SUPERVISION/MANAGEMENT SPECIAL,ELECTRICITY,1120,27-Apr-16,82945,7.49,BRITISH GAS,BRI040
EFDC,YB110,SUPERVISION/MANAGEMENT SPECIAL,ELECTRICITY,1120,27-Apr-16,82945,25.20,BRITISH GAS,BRI040
EFDC,YB110,SUPERVISION/MANAGEMENT SPECIAL,ELECTRICITY,1120,27-Apr-16,82945,26.07,BRITISH GAS,BRI040
EFDC,YB110,SUPERVISION/MANAGEMENT SPECIAL,ELECTRICITY,1120,27-Apr-16,82945,37.01,BRITISH GAS,BRI040
EFDC,YB110,SUPERVISION/MANAGEMENT SPECIAL,ELECTRICITY,1120,27-Apr-16,82945,7.49,BRITISH GAS,BRI040
EFDC,YB110,SUPERVISION/MANAGEMENT SPECIAL,ELECTRICITY,1120,27-Apr-16,82945,7.49,BRITISH GAS,BRI040
EFDC,YB110,SUPERVISION/MANAGEMENT SPECIAL,ELECTRICITY,1120,27-Apr-16,82945,30.29,BRITISH GAS,BRI040
EFDC,YB110,SUPERVISION/MANAGEMENT SPECIAL,ELECTRICITY,1120,27-Apr-16,82945,14.78,BRITISH GAS,BRI040
EFDC,YB110,SUPERVISION/MANAGEMENT SPECIAL,ELECTRICITY,1120,27-Apr-16,82945,7.49,BRITISH GAS,BRI040
EFDC,YB110,SUPERVISION/MANAGEMENT SPECIAL,ELECTRICITY,1120,27-Apr-16,82945,7.49,BRITISH GAS,BRI040
EFDC,YB110,SUPERVISION/MANAGEMENT SPECIAL,ELECTRICITY,1120,27-Apr-16,82945,46.38,BRITISH GAS,BRI040
EFDC,YB110,SUPERVISION/MANAGEMENT SPECIAL,ELECTRICITY,1120,27-Apr-16,82945,14.74,BRITISH GAS,BRI040
EFDC,YB110,SUPERVISION/MANAGEMENT SPECIAL,ELECTRICITY,1120,27-Apr-16,82945,14.72,BRITISH GAS,BRI040
EFDC,YB110,SUPERVISION/MANAGEMENT SPECIAL,ELECTRICITY,1120,27-Apr-16,82945,12.15,BRITISH GAS,BRI040
EFDC,YB110,SUPERVISION/MANAGEMENT SPECIAL,ELECTRICITY,1120,27-Apr-16,82945,11.82,BRITISH GAS,BRI040
EFDC,YB110,SUPERVISION/MANAGEMENT SPECIAL,ELECTRICITY,1120,27-Apr-16,82945,-12.53,BRITISH GAS,BRI040
EFDC,YB110,SUPERVISION/MANAGEMENT SPECIAL,ELECTRICITY,1120,27-Apr-16,82945,-12.21,BRITISH GAS,BRI040
EFDC,YB110,SUPERVISION/MANAGEMENT SPECIAL,ELECTRICITY,1120,27-Apr-16,82945,11.95,BRITISH GAS,BRI040
EFDC,YB110,SUPERVISION/MANAGEMENT SPECIAL,ELECTRICITY,1120,27-Apr-16,82945,26.74,BRITISH GAS,BRI040
EFDC,YB110,SUPERVISION/MANAGEMENT SPECIAL,ELECTRICITY,1120,27-Apr-16,82945,18.03,BRITISH GAS,BRI040
EFDC,YB110,SUPERVISION/MANAGEMENT SPECIAL,ELECTRICITY,1120,27-Apr-16,82945,12.80,BRITISH GAS,BRI040
EFDC,YB110,SUPERVISION/MANAGEMENT SPECIAL,ELECTRICITY,1120,27-Apr-16,82945,9.88,BRITISH GAS,BRI040
EFDC,YB110,SUPERVISION/MANAGEMENT SPECIAL,ELECTRICITY,1120,27-Apr-16,82945,9.85,BRITISH GAS,BRI040
EFDC,YB110,SUPERVISION/MANAGEMENT SPECIAL,ELECTRICITY,1120,27-Apr-16,82945,10.12,BRITISH GAS,BRI040
EFDC,YB110,SUPERVISION/MANAGEMENT SPECIAL,ELECTRICITY,1120,27-Apr-16,82945,8.78,BRITISH GAS,BRI040
EFDC,YB110,SUPERVISION/MANAGEMENT SPECIAL,ELECTRICITY,1120,27-Apr-16,82945,8.74,BRITISH GAS,BRI040
EFDC,YB110,SUPERVISION/MANAGEMENT SPECIAL,ELECTRICITY,1120,27-Apr-16,82945,-12.14,BRITISH GAS,BRI040
EFDC,YB110,SUPERVISION/MANAGEMENT SPECIAL,ELECTRICITY,1120,27-Apr-16,82945,33.29,BRITISH GAS,BRI040
EFDC,YB110,SUPERVISION/MANAGEMENT SPECIAL,ELECTRICITY,1120,27-Apr-16,82945,14.46,BRITISH GAS,BRI040
EFDC,YB110,SUPERVISION/MANAGEMENT SPECIAL,ELECTRICITY,1120,27-Apr-16,82945,15.66,BRITISH GAS,BRI040
EFDC,YB110,SUPERVISION/MANAGEMENT SPECIAL,ELECTRICITY,1120,27-Apr-16,82945,15.29,BRITISH GAS,BRI040
EFDC,YB110,SUPERVISION/MANAGEMENT SPECIAL,ELECTRICITY,1120,27-Apr-16,82945,14.64,BRITISH GAS,BRI040
EFDC,YB110,SUPERVISION/MANAGEMENT SPECIAL,ELECTRICITY,1120,27-Apr-16,82945,-11.76,BRITISH GAS,BRI040
EFDC,YB110,SUPERVISION/MANAGEMENT SPECIAL,ELECTRICITY,1120,27-Apr-16,82945,-11.45,BRITISH GAS,BRI040
EFDC,YB110,SUPERVISION/MANAGEMENT SPECIAL,ELECTRICITY,1120,27-Apr-16,82945,-11.14,BRITISH GAS,BRI040
EFDC,YB110,SUPERVISION/MANAGEMENT SPECIAL,ELECTRICITY,1120,27-Apr-16,82945,8.98,BRITISH GAS,BRI040
EFDC,YB110,SUPERVISION/MANAGEMENT SPECIAL,ELECTRICITY,1120,27-Apr-16,82945,7.45,BRITISH GAS,BRI040
EFDC,YB110,SUPERVISION/MANAGEMENT SPECIAL,ELECTRICITY,1120,27-Apr-16,82945,-11.44,BRITISH GAS,BRI040
EFDC,YB110,SUPERVISION/MANAGEMENT SPECIAL,ELECTRICITY,1120,27-Apr-16,82945,15.95,BRITISH GAS,BRI040
EFDC,YB110,SUPERVISION/MANAGEMENT SPECIAL,ELECTRICITY,1120,27-Apr-16,82945,9.75,BRITISH GAS,BRI040
EFDC,YB110,SUPERVISION/MANAGEMENT SPECIAL,ELECTRICITY,1120,27-Apr-16,82945,-12.57,BRITISH GAS,BRI040
EFDC,YB110,SUPERVISION/MANAGEMENT SPECIAL,ELECTRICITY,1120,27-Apr-16,82945,15.61,BRITISH GAS,BRI040
EFDC,YB110,SUPERVISION/MANAGEMENT SPECIAL,ELECTRICITY,1120,27-Apr-16,82945,9.75,BRITISH GAS,BRI040
EFDC,YB110,SUPERVISION/MANAGEMENT SPECIAL,ELECTRICITY,1120,27-Apr-16,82945,10.01,BRITISH GAS,BRI040
EFDC,YB110,SUPERVISION/MANAGEMENT SPECIAL,ELECTRICITY,1120,27-Apr-16,82945,10.45,BRITISH GAS,BRI040
EFDC,YB110,SUPERVISION/MANAGEMENT SPECIAL,ELECTRICITY,1120,27-Apr-16,82945,-12.31,BRITISH GAS,BRI040
EFDC,YB110,SUPERVISION/MANAGEMENT SPECIAL,ELECTRICITY,1120,27-Apr-16,82945,-11.80,BRITISH GAS,BRI040
EFDC,YB110,SUPERVISION/MANAGEMENT SPECIAL,ELECTRICITY,1120,27-Apr-16,82945,-11.60,BRITISH GAS,BRI040
EFDC,YB110,SUPERVISION/MANAGEMENT SPECIAL,ELECTRICITY,1120,27-Apr-16,82945,27.14,BRITISH GAS,BRI040
EFDC,YB110,SUPERVISION/MANAGEMENT SPECIAL,ELECTRICITY,1120,27-Apr-16,82945,64.13,BRITISH GAS,BRI040
EFDC,YB110,SUPERVISION/MANAGEMENT SPECIAL,ELECTRICITY,1120,27-Apr-16,82945,11.44,BRITISH GAS,BRI040
EFDC,YB110,SUPERVISION/MANAGEMENT SPECIAL,ELECTRICITY,1120,27-Apr-16,82945,11.41,BRITISH GAS,BRI040
EFDC,YB110,SUPERVISION/MANAGEMENT SPECIAL,ELECTRICITY,1120,27-Apr-16,82945,11.26,BRITISH GAS,BRI040
EFDC,YB110,SUPERVISION/MANAGEMENT SPECIAL,ELECTRICITY,1120,27-Apr-16,82945,12.00,BRITISH GAS,BRI040
EFDC,YB110,SUPERVISION/MANAGEMENT SPECIAL,ELECTRICITY,1120,27-Apr-16,82945,11.78,BRITISH GAS,BRI040
EFDC,YB110,SUPERVISION/MANAGEMENT SPECIAL,ELECTRICITY,1120,27-Apr-16,82945,14.09,BRITISH GAS,BRI040
EFDC,YB110,SUPERVISION/MANAGEMENT SPECIAL,ELECTRICITY,1120,27-Apr-16,82945,14.18,BRITISH GAS,BRI040
EFDC,YB110,SUPERVISION/MANAGEMENT SPECIAL,ELECTRICITY,1120,27-Apr-16,82945,7.94,BRITISH GAS,BRI040
EFDC,YB110,SUPERVISION/MANAGEMENT SPECIAL,ELECTRICITY,1120,27-Apr-16,82945,7.20,BRITISH GAS,BRI040
EFDC,YB110,SUPERVISION/MANAGEMENT SPECIAL,ELECTRICITY,1120,27-Apr-16,82945,10.01,BRITISH GAS,BRI040
EFDC,YB110,SUPERVISION/MANAGEMENT SPECIAL,ELECTRICITY,1120,27-Apr-16,82945,48.57,BRITISH GAS,BRI040
EFDC,YB110,SUPERVISION/MANAGEMENT SPECIAL,ELECTRICITY,1120,27-Apr-16,82945,9.80,BRITISH GAS,BRI040
EFDC,YB110,SUPERVISION/MANAGEMENT SPECIAL,ELECTRICITY,1120,27-Apr-16,82945,10.19,BRITISH GAS,BRI040
EFDC,YB110,SUPERVISION/MANAGEMENT SPECIAL,ELECTRICITY,1120,27-Apr-16,82945,14.92,BRITISH GAS,BRI040
EFDC,YB110,SUPERVISION/MANAGEMENT SPECIAL,ELECTRICITY,1120,27-Apr-16,82945,13.78,BRITISH GAS,BRI040
EFDC,YB110,SUPERVISION/MANAGEMENT SPECIAL,ELECTRICITY,1120,27-Apr-16,82945,10.21,BRITISH GAS,BRI040
EFDC,YB110,SUPERVISION/MANAGEMENT SPECIAL,ELECTRICITY,1120,27-Apr-16,82945,19.75,BRITISH GAS,BRI040
EFDC,YB110,SUPERVISION/MANAGEMENT SPECIAL,ELECTRICITY,1120,27-Apr-16,82945,30.92,BRITISH GAS,BRI040
EFDC,YB110,SUPERVISION/MANAGEMENT SPECIAL,ELECTRICITY,1120,27-Apr-16,82945,11.04,BRITISH GAS,BRI040
EFDC,YB110,SUPERVISION/MANAGEMENT SPECIAL,ELECTRICITY,1120,27-Apr-16,82945,25.90,BRITISH GAS,BRI040
EFDC,YB110,SUPERVISION/MANAGEMENT SPECIAL,ELECTRICITY,1120,27-Apr-16,82945,17.67,BRITISH GAS,BRI040
EFDC,YB110,SUPERVISION/MANAGEMENT SPECIAL,ELECTRICITY,1120,27-Apr-16,82945,19.28,BRITISH GAS,BRI040
EFDC,YB110,SUPERVISION/MANAGEMENT SPECIAL,ELECTRICITY,1120,27-Apr-16,82945,13.06,BRITISH GAS,BRI040
EFDC,YB110,SUPERVISION/MANAGEMENT SPECIAL,ELECTRICITY,1120,27-Apr-16,82945,17.01,BRITISH GAS,BRI040
EFDC,YB110,SUPERVISION/MANAGEMENT SPECIAL,ELECTRICITY,1120,27-Apr-16,82945,13.39,BRITISH GAS,BRI040
EFDC,YB110,SUPERVISION/MANAGEMENT SPECIAL,ELECTRICITY,1120,27-Apr-16,82945,10.09,BRITISH GAS,BRI040
EFDC,YB110,SUPERVISION/MANAGEMENT SPECIAL,ELECTRICITY,1120,27-Apr-16,82945,9.65,BRITISH GAS,BRI040
EFDC,YB110,SUPERVISION/MANAGEMENT SPECIAL,ELECTRICITY,1120,27-Apr-16,82945,12.42,BRITISH GAS,BRI040
EFDC,YB110,SUPERVISION/MANAGEMENT SPECIAL,ELECTRICITY,1120,27-Apr-16,82945,13.23,BRITISH GAS,BRI040
EFDC,YB110,SUPERVISION/MANAGEMENT SPECIAL,ELECTRICITY,1120,27-Apr-16,82945,14.88,BRITISH GAS,BRI040
EFDC,YB110,SUPERVISION/MANAGEMENT SPECIAL,ELECTRICITY,1120,27-Apr-16,82945,16.48,BRITISH GAS,BRI040
EFDC,YB110,SUPERVISION/MANAGEMENT SPECIAL,ELECTRICITY,1120,27-Apr-16,82945,14.19,BRITISH GAS,BRI040
EFDC,YB110,SUPERVISION/MANAGEMENT SPECIAL,ELECTRICITY,1120,27-Apr-16,82945,11.48,BRITISH GAS,BRI040
EFDC,YB110,SUPERVISION/MANAGEMENT SPECIAL,ELECTRICITY,1120,27-Apr-16,82945,11.32,BRITISH GAS,BRI040
EFDC,YB110,SUPERVISION/MANAGEMENT SPECIAL,ELECTRICITY,1120,27-Apr-16,82945,12.59,BRITISH GAS,BRI040
EFDC,YB110,SUPERVISION/MANAGEMENT SPECIAL,ELECTRICITY,1120,27-Apr-16,82945,26.66,BRITISH GAS,BRI040
EFDC,YB110,SUPERVISION/MANAGEMENT SPECIAL,ELECTRICITY,1120,27-Apr-16,82945,12.06,BRITISH GAS,BRI040
EFDC,YB110,SUPERVISION/MANAGEMENT SPECIAL,ELECTRICITY,1120,27-Apr-16,82945,21.41,BRITISH GAS,BRI040
EFDC,YB110,SUPERVISION/MANAGEMENT SPECIAL,ELECTRICITY,1120,27-Apr-16,82945,18.46,BRITISH GAS,BRI040
EFDC,YB110,SUPERVISION/MANAGEMENT SPECIAL,ELECTRICITY,1120,27-Apr-16,82945,13.07,BRITISH GAS,BRI040
EFDC,YB110,SUPERVISION/MANAGEMENT SPECIAL,ELECTRICITY,1120,27-Apr-16,82945,10.91,BRITISH GAS,BRI040
EFDC,YB110,SUPERVISION/MANAGEMENT SPECIAL,ELECTRICITY,1120,27-Apr-16,82945,11.54,BRITISH GAS,BRI040
EFDC,YB110,SUPERVISION/MANAGEMENT SPECIAL,ELECTRICITY,1120,27-Apr-16,82945,23.02,BRITISH GAS,BRI040
EFDC,YB110,SUPERVISION/MANAGEMENT SPECIAL,ELECTRICITY,1120,27-Apr-16,82945,26.00,BRITISH GAS,BRI040
EFDC,YB110,SUPERVISION/MANAGEMENT SPECIAL,ELECTRICITY,1120,27-Apr-16,82945,22.59,BRITISH GAS,BRI040
EFDC,YB110,SUPERVISION/MANAGEMENT SPECIAL,ELECTRICITY,1120,27-Apr-16,82945,18.10,BRITISH GAS,BRI040
EFDC,YB110,SUPERVISION/MANAGEMENT SPECIAL,ELECTRICITY,1120,27-Apr-16,82945,39.34,BRITISH GAS,BRI040
EFDC,YB110,SUPERVISION/MANAGEMENT SPECIAL,ELECTRICITY,1120,27-Apr-16,82945,-1589.21,BRITISH GAS,BRI040
EFDC,YB110,SUPERVISION/MANAGEMENT SPECIAL,ELECTRICITY,1120,27-Apr-16,82945,-1354.86,BRITISH GAS,BRI040
EFDC,YB110,SUPERVISION/MANAGEMENT SPECIAL,ELECTRICITY,1120,27-Apr-16,82945,-1315.58,BRITISH GAS,BRI040
EFDC,YB110,SUPERVISION/MANAGEMENT SPECIAL,ELECTRICITY,1120,27-Apr-16,82945,-915.73,BRITISH GAS,BRI040
EFDC,YB110,SUPERVISION/MANAGEMENT SPECIAL,ELECTRICITY,1120,27-Apr-16,82945,-730.91,BRITISH GAS,BRI040
EFDC,YB110,SUPERVISION/MANAGEMENT SPECIAL,ELECTRICITY,1120,27-Apr-16,82945,-789.80,BRITISH GAS,BRI040
EFDC,YB110,SUPERVISION/MANAGEMENT SPECIAL,ELECTRICITY,1120,27-Apr-16,82945,9.27,BRITISH GAS,BRI040
EFDC,YB110,SUPERVISION/MANAGEMENT SPECIAL,ELECTRICITY,1120,27-Apr-16,82945,13.87,BRITISH GAS,BRI040
EFDC,YB110,SUPERVISION/MANAGEMENT SPECIAL,ELECTRICITY,1120,27-Apr-16,82945,18.04,BRITISH GAS,BRI040
EFDC,YB110,SUPERVISION/MANAGEMENT SPECIAL,ELECTRICITY,1120,27-Apr-16,82945,1047.73,BRITISH GAS,BRI040
EFDC,YB110,SUPERVISION/MANAGEMENT SPECIAL,ELECTRICITY,1120,27-Apr-16,82945,379.10,BRITISH GAS,BRI040
EFDC,YB110,SUPERVISION/MANAGEMENT SPECIAL,ELECTRICITY,1120,27-Apr-16,82945,-42.31,BRITISH GAS,BRI040
EFDC,YB110,SUPERVISION/MANAGEMENT SPECIAL,ELECTRICITY,1120,27-Apr-16,82945,-39.66,BRITISH GAS,BRI040
EFDC,YB110,SUPERVISION/MANAGEMENT SPECIAL,ELECTRICITY,1120,27-Apr-16,82945,-37.94,BRITISH GAS,BRI040
EFDC,YB110,SUPERVISION/MANAGEMENT SPECIAL,ELECTRICITY,1120,27-Apr-16,82945,-33.30,BRITISH GAS,BRI040
EFDC,YB110,SUPERVISION/MANAGEMENT SPECIAL,ELECTRICITY,1120,27-Apr-16,82945,-30.60,BRITISH GAS,BRI040
EFDC,YB110,SUPERVISION/MANAGEMENT SPECIAL,ELECTRICITY,1120,27-Apr-16,82945,-25.42,BRITISH GAS,BRI040
EFDC,YB110,SUPERVISION/MANAGEMENT SPECIAL,ELECTRICITY,1120,27-Apr-16,82945,-26.78,BRITISH GAS,BRI040
EFDC,YB110,SUPERVISION/MANAGEMENT SPECIAL,ELECTRICITY,1120,27-Apr-16,82945,-27.71,BRITISH GAS,BRI040
EFDC,YB110,SUPERVISION/MANAGEMENT SPECIAL,ELECTRICITY,1120,27-Apr-16,82945,-29.61,BRITISH GAS,BRI040
EFDC,YB110,SUPERVISION/MANAGEMENT SPECIAL,ELECTRICITY,1120,27-Apr-16,82945,-38.42,BRITISH GAS,BRI040
EFDC,YB110,SUPERVISION/MANAGEMENT SPECIAL,ELECTRICITY,1120,27-Apr-16,82945,-36.29,BRITISH GAS,BRI040
EFDC,YB110,SUPERVISION/MANAGEMENT SPECIAL,ELECTRICITY,1120,27-Apr-16,82945,-175.92,BRITISH GAS,BRI040
EFDC,YB110,SUPERVISION/MANAGEMENT SPECIAL,ELECTRICITY,1120,27-Apr-16,82945,-284.58,BRITISH GAS,BRI040
EFDC,YB110,SUPERVISION/MANAGEMENT SPECIAL,ELECTRICITY,1120,27-Apr-16,82945,54.68,BRITISH GAS,BRI040
EFDC,YB110,SUPERVISION/MANAGEMENT SPECIAL,ELECTRICITY,1120,27-Apr-16,82945,30.66,BRITISH GAS,BRI040
EFDC,YB110,SUPERVISION/MANAGEMENT SPECIAL,ELECTRICITY,1120,27-Apr-16,82945,15.38,BRITISH GAS,BRI040
EFDC,YB110,SUPERVISION/MANAGEMENT SPECIAL,ELECTRICITY,1120,27-Apr-16,82945,14.10,BRITISH GAS,BRI040
EFDC,YB110,SUPERVISION/MANAGEMENT SPECIAL,ELECTRICITY,1120,27-Apr-16,82945,14.45,BRITISH GAS,BRI040
EFDC,YB110,SUPERVISION/MANAGEMENT SPECIAL,ELECTRICITY,1120,27-Apr-16,82945,17.92,BRITISH GAS,BRI040
EFDC,YB110,SUPERVISION/MANAGEMENT SPECIAL,ELECTRICITY,1120,27-Apr-16,82945,10.63,BRITISH GAS,BRI040
EFDC,YB110,SUPERVISION/MANAGEMENT SPECIAL,ELECTRICITY,1120,27-Apr-16,82945,13.23,BRITISH GAS,BRI040
EFDC,YB110,SUPERVISION/MANAGEMENT SPECIAL,ELECTRICITY,1120,27-Apr-16,82945,12.71,BRITISH GAS,BRI040
EFDC,YB110,SUPERVISION/MANAGEMENT SPECIAL,ELECTRICITY,1120,27-Apr-16,82945,12.12,BRITISH GAS,BRI040
EFDC,YB110,SUPERVISION/MANAGEMENT SPECIAL,ELECTRICITY,1120,27-Apr-16,82945,11.72,BRITISH GAS,BRI040
EFDC,YB110,SUPERVISION/MANAGEMENT SPECIAL,ELECTRICITY,1120,27-Apr-16,82945,8.46,BRITISH GAS,BRI040
EFDC,YB110,SUPERVISION/MANAGEMENT SPECIAL,ELECTRICITY,1120,27-Apr-16,82945,15.35,BRITISH GAS,BRI040
EFDC,YB110,SUPERVISION/MANAGEMENT SPECIAL,ELECTRICITY,1120,27-Apr-16,82945,-13.44,BRITISH GAS,BRI040
EFDC,YB110,SUPERVISION/MANAGEMENT SPECIAL,ELECTRICITY,1120,27-Apr-16,82945,-11.85,BRITISH GAS,BRI040
EFDC,YB110,SUPERVISION/MANAGEMENT SPECIAL,ELECTRICITY,1120,27-Apr-16,82945,14.21,BRITISH GAS,BRI040
EFDC,YB110,SUPERVISION/MANAGEMENT SPECIAL,ELECTRICITY,1120,27-Apr-16,82945,10.07,BRITISH GAS,BRI040
EFDC,YB110,SUPERVISION/MANAGEMENT SPECIAL,ELECTRICITY,1120,27-Apr-16,82945,86.20,BRITISH GAS,BRI040
EFDC,YB110,SUPERVISION/MANAGEMENT SPECIAL,ELECTRICITY,1120,27-Apr-16,82945,-6.57,BRITISH GAS,BRI040
EFDC,YB110,SUPERVISION/MANAGEMENT SPECIAL,ELECTRICITY,1120,27-Apr-16,82945,-8.58,BRITISH GAS,BRI040
EFDC,YB110,SUPERVISION/MANAGEMENT SPECIAL,ELECTRICITY,1120,27-Apr-16,82945,-6.85,BRITISH GAS,BRI040
EFDC,YB110,SUPERVISION/MANAGEMENT SPECIAL,ELECTRICITY,1120,27-Apr-16,82945,-7.43,BRITISH GAS,BRI040
EFDC,YB110,SUPERVISION/MANAGEMENT SPECIAL,ELECTRICITY,1120,27-Apr-16,82945,-14.62,BRITISH GAS,BRI040
EFDC,YB110,SUPERVISION/MANAGEMENT SPECIAL,ELECTRICITY,1120,27-Apr-16,82945,-7.71,BRITISH GAS,BRI040
EFDC,YB110,SUPERVISION/MANAGEMENT SPECIAL,ELECTRICITY,1120,27-Apr-16,82945,-7.13,BRITISH GAS,BRI040
EFDC,YB110,SUPERVISION/MANAGEMENT SPECIAL,ELECTRICITY,1120,27-Apr-16,82945,-31.40,BRITISH GAS,BRI040
EFDC,YB110,SUPERVISION/MANAGEMENT SPECIAL,ELECTRICITY,1120,27-Apr-16,82945,12.12,BRITISH GAS,BRI040
EFDC,YB110,SUPERVISION/MANAGEMENT SPECIAL,ELECTRICITY,1120,27-Apr-16,82945,21.63,BRITISH GAS,BRI040
EFDC,YB110,SUPERVISION/MANAGEMENT SPECIAL,ELECTRICITY,1120,27-Apr-16,82945,15.68,BRITISH GAS,BRI040
EFDC,YB110,SUPERVISION/MANAGEMENT SPECIAL,ELECTRICITY,1120,27-Apr-16,82945,14.80,BRITISH GAS,BRI040
EFDC,YB110,SUPERVISION/MANAGEMENT SPECIAL,ELECTRICITY,1120,27-Apr-16,82945,12.26,BRITISH GAS,BRI040
EFDC,YB110,SUPERVISION/MANAGEMENT SPECIAL,ELECTRICITY,1120,27-Apr-16,82945,179.01,BRITISH GAS,BRI040
EFDC,YB110,SUPERVISION/MANAGEMENT SPECIAL,ELECTRICITY,1120,27-Apr-16,82945,-12.90,BRITISH GAS,BRI040
EFDC,YB110,SUPERVISION/MANAGEMENT SPECIAL,ELECTRICITY,1120,27-Apr-16,82945,-275.13,BRITISH GAS,BRI040
EFDC,YB110,SUPERVISION/MANAGEMENT SPECIAL,ELECTRICITY,1120,27-Apr-16,82945,-11.08,BRITISH GAS,BRI040
EFDC,YB110,SUPERVISION/MANAGEMENT SPECIAL,ELECTRICITY,1120,27-Apr-16,82945,-158.96,BRITISH GAS,BRI040
EFDC,YB110,SUPERVISION/MANAGEMENT SPECIAL,ELECTRICITY,1120,27-Apr-16,82945,18.38,BRITISH GAS,BRI040
EFDC,YB110,SUPERVISION/MANAGEMENT SPECIAL,ELECTRICITY,1120,27-Apr-16,82945,18.66,BRITISH GAS,BRI040
EFDC,YB110,SUPERVISION/MANAGEMENT SPECIAL,ELECTRICITY,1120,27-Apr-16,82945,10.32,BRITISH GAS,BRI040
EFDC,YB110,SUPERVISION/MANAGEMENT SPECIAL,ELECTRICITY,1120,27-Apr-16,82945,15.34,BRITISH GAS,BRI040
EFDC,YB110,SUPERVISION/MANAGEMENT SPECIAL,ELECTRICITY,1120,27-Apr-16,82945,13.51,BRITISH GAS,BRI040
EFDC,YB110,SUPERVISION/MANAGEMENT SPECIAL,ELECTRICITY,1120,27-Apr-16,82945,13.75,BRITISH GAS,BRI040
EFDC,YB110,SUPERVISION/MANAGEMENT SPECIAL,ELECTRICITY,1120,27-Apr-16,82945,25.55,BRITISH GAS,BRI040
EFDC,YB110,SUPERVISION/MANAGEMENT SPECIAL,ELECTRICITY,1120,27-Apr-16,82945,31.44,BRITISH GAS,BRI040
EFDC,YB110,SUPERVISION/MANAGEMENT SPECIAL,ELECTRICITY,1120,27-Apr-16,82945,-99.15,BRITISH GAS,BRI040
EFDC,YB110,SUPERVISION/MANAGEMENT SPECIAL,ELECTRICITY,1120,27-Apr-16,82945,19.21,BRITISH GAS,BRI040
EFDC,YB110,SUPERVISION/MANAGEMENT SPECIAL,ELECTRICITY,1120,27-Apr-16,82945,13.27,BRITISH GAS,BRI040
EFDC,YB110,SUPERVISION/MANAGEMENT SPECIAL,ELECTRICITY,1120,27-Apr-16,82945,12.33,BRITISH GAS,BRI040
EFDC,YB110,SUPERVISION/MANAGEMENT SPECIAL,ELECTRICITY,1120,27-Apr-16,82945,13.94,BRITISH GAS,BRI040
EFDC,YB110,SUPERVISION/MANAGEMENT SPECIAL,ELECTRICITY,1120,27-Apr-16,82945,13.25,BRITISH GAS,BRI040
EFDC,YB110,SUPERVISION/MANAGEMENT SPECIAL,ELECTRICITY,1120,27-Apr-16,82945,13.56,BRITISH GAS,BRI040
EFDC,YB110,SUPERVISION/MANAGEMENT SPECIAL,ELECTRICITY,1120,27-Apr-16,82945,82.36,BRITISH GAS,BRI040
EFDC,YB110,SUPERVISION/MANAGEMENT SPECIAL,ELECTRICITY,1120,27-Apr-16,82945,11.38,BRITISH GAS,BRI040
EFDC,YB110,SUPERVISION/MANAGEMENT SPECIAL,ELECTRICITY,1120,27-Apr-16,82945,43.67,BRITISH GAS,BRI040
EFDC,YB110,SUPERVISION/MANAGEMENT SPECIAL,ELECTRICITY,1120,27-Apr-16,82945,14.04,BRITISH GAS,BRI040
EFDC,YB110,SUPERVISION/MANAGEMENT SPECIAL,ELECTRICITY,1120,27-Apr-16,82945,48.34,BRITISH GAS,BRI040
EFDC,YB110,SUPERVISION/MANAGEMENT SPECIAL,ELECTRICITY,1120,27-Apr-16,82945,35.03,BRITISH GAS,BRI040
EFDC,YB110,SUPERVISION/MANAGEMENT SPECIAL,ELECTRICITY,1120,27-Apr-16,82945,17.00,BRITISH GAS,BRI040
EFDC,YB110,SUPERVISION/MANAGEMENT SPECIAL,ELECTRICITY,1120,27-Apr-16,82945,17.23,BRITISH GAS,BRI040
EFDC,YB110,SUPERVISION/MANAGEMENT SPECIAL,ELECTRICITY,1120,27-Apr-16,82945,18.39,BRITISH GAS,BRI040
EFDC,YB110,SUPERVISION/MANAGEMENT SPECIAL,ELECTRICITY,1120,27-Apr-16,82945,19.55,BRITISH GAS,BRI040
EFDC,YB110,SUPERVISION/MANAGEMENT SPECIAL,ELECTRICITY,1120,27-Apr-16,82945,30.99,BRITISH GAS,BRI040
EFDC,YB110,SUPERVISION/MANAGEMENT SPECIAL,ELECTRICITY,1120,27-Apr-16,82945,31.66,BRITISH GAS,BRI040
EFDC,YB110,SUPERVISION/MANAGEMENT SPECIAL,ELECTRICITY,1120,27-Apr-16,82945,23.30,BRITISH GAS,BRI040
EFDC,YB110,SUPERVISION/MANAGEMENT SPECIAL,ELECTRICITY,1120,27-Apr-16,82945,26.34,BRITISH GAS,BRI040
EFDC,YB110,SUPERVISION/MANAGEMENT SPECIAL,ELECTRICITY,1120,27-Apr-16,82945,21.44,BRITISH GAS,BRI040
EFDC,YB110,SUPERVISION/MANAGEMENT SPECIAL,ELECTRICITY,1120,27-Apr-16,82945,19.13,BRITISH GAS,BRI040
EFDC,YB110,SUPERVISION/MANAGEMENT SPECIAL,ELECTRICITY,1120,27-Apr-16,82945,32.76,BRITISH GAS,BRI040
EFDC,YB110,SUPERVISION/MANAGEMENT SPECIAL,ELECTRICITY,1120,27-Apr-16,82945,27.71,BRITISH GAS,BRI040
EFDC,YB110,SUPERVISION/MANAGEMENT SPECIAL,ELECTRICITY,1120,27-Apr-16,82945,11.69,BRITISH GAS,BRI040
EFDC,YB110,SUPERVISION/MANAGEMENT SPECIAL,ELECTRICITY,1120,27-Apr-16,82945,11.89,BRITISH GAS,BRI040
EFDC,YB110,SUPERVISION/MANAGEMENT SPECIAL,ELECTRICITY,1120,27-Apr-16,82945,12.51,BRITISH GAS,BRI040
EFDC,YB110,SUPERVISION/MANAGEMENT SPECIAL,ELECTRICITY,1120,27-Apr-16,82945,10.52,BRITISH GAS,BRI040
EFDC,YB110,SUPERVISION/MANAGEMENT SPECIAL,ELECTRICITY,1120,27-Apr-16,82945,12.97,BRITISH GAS,BRI040
EFDC,YB110,SUPERVISION/MANAGEMENT SPECIAL,ELECTRICITY,1120,27-Apr-16,82945,9.88,BRITISH GAS,BRI040
EFDC,YB110,SUPERVISION/MANAGEMENT SPECIAL,ELECTRICITY,1120,27-Apr-16,82945,12.94,BRITISH GAS,BRI040
EFDC,YB110,SUPERVISION/MANAGEMENT SPECIAL,ELECTRICITY,1120,27-Apr-16,82945,10.28,BRITISH GAS,BRI040
EFDC,YB110,SUPERVISION/MANAGEMENT SPECIAL,ELECTRICITY,1120,27-Apr-16,82945,11.94,BRITISH GAS,BRI040
EFDC,YB110,SUPERVISION/MANAGEMENT SPECIAL,ELECTRICITY,1120,27-Apr-16,82945,8.55,BRITISH GAS,BRI040
EFDC,YB110,SUPERVISION/MANAGEMENT SPECIAL,ELECTRICITY,1120,27-Apr-16,82945,16.07,BRITISH GAS,BRI040
EFDC,YB110,SUPERVISION/MANAGEMENT SPECIAL,ELECTRICITY,1120,27-Apr-16,82945,15.43,BRITISH GAS,BRI040
EFDC,YB110,SUPERVISION/MANAGEMENT SPECIAL,ELECTRICITY,1120,27-Apr-16,82945,10.85,BRITISH GAS,BRI040
EFDC,YB110,SUPERVISION/MANAGEMENT SPECIAL,ELECTRICITY,1120,27-Apr-16,82945,11.10,BRITISH GAS,BRI040
EFDC,YB110,SUPERVISION/MANAGEMENT SPECIAL,ELECTRICITY,1120,27-Apr-16,82945,16.17,BRITISH GAS,BRI040
EFDC,YB110,SUPERVISION/MANAGEMENT SPECIAL,ELECTRICITY,1120,27-Apr-16,82945,9.09,BRITISH GAS,BRI040
EFDC,YB110,SUPERVISION/MANAGEMENT SPECIAL,ELECTRICITY,1120,27-Apr-16,82945,9.93,BRITISH GAS,BRI040
EFDC,YB110,SUPERVISION/MANAGEMENT SPECIAL,ELECTRICITY,1120,27-Apr-16,82945,-94.43,BRITISH GAS,BRI040
EFDC,YB110,SUPERVISION/MANAGEMENT SPECIAL,ELECTRICITY,1120,27-Apr-16,82945,-93.07,BRITISH GAS,BRI040
EFDC,YB110,SUPERVISION/MANAGEMENT SPECIAL,ELECTRICITY,1120,27-Apr-16,82945,9.03,BRITISH GAS,BRI040
EFDC,YB110,SUPERVISION/MANAGEMENT SPECIAL,ELECTRICITY,1120,27-Apr-16,82945,10.17,BRITISH GAS,BRI040
EFDC,YB110,SUPERVISION/MANAGEMENT SPECIAL,ELECTRICITY,1120,27-Apr-16,82945,18.18,BRITISH GAS,BRI040
EFDC,YB110,SUPERVISION/MANAGEMENT SPECIAL,ELECTRICITY,1120,27-Apr-16,82945,10.86,BRITISH GAS,BRI040
EFDC,YB110,SUPERVISION/MANAGEMENT SPECIAL,ELECTRICITY,1120,27-Apr-16,82945,3.84,BRITISH GAS,BRI040
EFDC,YB110,SUPERVISION/MANAGEMENT SPECIAL,ELECTRICITY,1120,27-Apr-16,82945,15.50,BRITISH GAS,BRI040
EFDC,YB110,SUPERVISION/MANAGEMENT SPECIAL,ELECTRICITY,1120,27-Apr-16,82945,20.28,BRITISH GAS,BRI040
EFDC,YB110,SUPERVISION/MANAGEMENT SPECIAL,ELECTRICITY,1120,27-Apr-16,82945,15.90,BRITISH GAS,BRI040
EFDC,YB110,SUPERVISION/MANAGEMENT SPECIAL,ELECTRICITY,1120,27-Apr-16,82945,16.98,BRITISH GAS,BRI040
EFDC,YB110,SUPERVISION/MANAGEMENT SPECIAL,ELECTRICITY,1120,27-Apr-16,82945,14.63,BRITISH GAS,BRI040
EFDC,YB110,SUPERVISION/MANAGEMENT SPECIAL,ELECTRICITY,1120,27-Apr-16,82945,59708.15,BRITISH GAS,BRI040
EFDC,YB110,SUPERVISION/MANAGEMENT SPECIAL,ELECTRICITY,1120,27-Apr-16,82945,14.24,BRITISH GAS,BRI040
EFDC,YB110,SUPERVISION/MANAGEMENT SPECIAL,ELECTRICITY,1120,27-Apr-16,82945,32.35,BRITISH GAS,BRI040
EFDC,YB110,SUPERVISION/MANAGEMENT SPECIAL,ELECTRICITY,1120,27-Apr-16,82945,36.64,BRITISH GAS,BRI040
EFDC,YB110,SUPERVISION/MANAGEMENT SPECIAL,ELECTRICITY,1120,27-Apr-16,82945,37.28,BRITISH GAS,BRI040
EFDC,YB110,SUPERVISION/MANAGEMENT SPECIAL,ELECTRICITY,1120,27-Apr-16,82945,29.37,BRITISH GAS,BRI040
EFDC,YB110,SUPERVISION/MANAGEMENT SPECIAL,ELECTRICITY,1120,27-Apr-16,82945,56.04,BRITISH GAS,BRI040
EFDC,YB110,SUPERVISION/MANAGEMENT SPECIAL,ELECTRICITY,1120,27-Apr-16,82945,36.62,BRITISH GAS,BRI040
EFDC,YB110,SUPERVISION/MANAGEMENT SPECIAL,ELECTRICITY,1120,27-Apr-16,82945,36.18,BRITISH GAS,BRI040
EFDC,YB110,SUPERVISION/MANAGEMENT SPECIAL,ELECTRICITY,1120,27-Apr-16,82945,24.58,BRITISH GAS,BRI040
EFDC,YB110,SUPERVISION/MANAGEMENT SPECIAL,ELECTRICITY,1120,27-Apr-16,82945,6.02,BRITISH GAS,BRI040
EFDC,YB110,SUPERVISION/MANAGEMENT SPECIAL,ELECTRICITY,1120,27-Apr-16,82945,18.96,BRITISH GAS,BRI040
EFDC,YB110,SUPERVISION/MANAGEMENT SPECIAL,ELECTRICITY,1120,27-Apr-16,82945,14.02,BRITISH GAS,BRI040
EFDC,YB110,SUPERVISION/MANAGEMENT SPECIAL,ELECTRICITY,1120,27-Apr-16,82945,6.91,BRITISH GAS,BRI040
EFDC,YB110,SUPERVISION/MANAGEMENT SPECIAL,ELECTRICITY,1120,27-Apr-16,82945,13.57,BRITISH GAS,BRI040
EFDC,YB110,SUPERVISION/MANAGEMENT SPECIAL,ELECTRICITY,1120,27-Apr-16,82945,15.24,BRITISH GAS,BRI040
EFDC,YB110,SUPERVISION/MANAGEMENT SPECIAL,ELECTRICITY,1120,27-Apr-16,82945,9.85,BRITISH GAS,BRI040
EFDC,YB110,SUPERVISION/MANAGEMENT SPECIAL,ELECTRICITY,1120,27-Apr-16,82945,9.94,BRITISH GAS,BRI040
EFDC,YB110,SUPERVISION/MANAGEMENT SPECIAL,ELECTRICITY,1120,27-Apr-16,82945,10.53,BRITISH GAS,BRI040
EFDC,YB110,SUPERVISION/MANAGEMENT SPECIAL,ELECTRICITY,1120,27-Apr-16,82945,12.49,BRITISH GAS,BRI040
EFDC,YB110,SUPERVISION/MANAGEMENT SPECIAL,ELECTRICITY,1120,27-Apr-16,82945,12.42,BRITISH GAS,BRI040
EFDC,YB110,SUPERVISION/MANAGEMENT SPECIAL,ELECTRICITY,1120,27-Apr-16,82945,10.79,BRITISH GAS,BRI040
EFDC,YB110,SUPERVISION/MANAGEMENT SPECIAL,ELECTRICITY,1120,27-Apr-16,82945,11.33,BRITISH GAS,BRI040
EFDC,YB110,SUPERVISION/MANAGEMENT SPECIAL,ELECTRICITY,1120,27-Apr-16,82945,14.13,BRITISH GAS,BRI040
EFDC,YB110,SUPERVISION/MANAGEMENT SPECIAL,ELECTRICITY,1120,27-Apr-16,82945,21.12,BRITISH GAS,BRI040
EFDC,YB110,SUPERVISION/MANAGEMENT SPECIAL,ELECTRICITY,1120,27-Apr-16,82945,13.26,BRITISH GAS,BRI040
EFDC,YB110,SUPERVISION/MANAGEMENT SPECIAL,ELECTRICITY,1120,27-Apr-16,82945,12.48,BRITISH GAS,BRI040
EFDC,YB110,SUPERVISION/MANAGEMENT SPECIAL,ELECTRICITY,1120,27-Apr-16,82945,15.75,BRITISH GAS,BRI040
EFDC,YB110,SUPERVISION/MANAGEMENT SPECIAL,ELECTRICITY,1120,27-Apr-16,82945,8.27,BRITISH GAS,BRI040
EFDC,YB110,SUPERVISION/MANAGEMENT SPECIAL,ELECTRICITY,1120,27-Apr-16,82945,13.55,BRITISH GAS,BRI040
EFDC,YB110,SUPERVISION/MANAGEMENT SPECIAL,ELECTRICITY,1120,27-Apr-16,82945,29.69,BRITISH GAS,BRI040
EFDC,YB110,SUPERVISION/MANAGEMENT SPECIAL,ELECTRICITY,1120,27-Apr-16,82945,10.06,BRITISH GAS,BRI040
EFDC,YB110,SUPERVISION/MANAGEMENT SPECIAL,ELECTRICITY,1120,27-Apr-16,82945,15.95,BRITISH GAS,BRI040
EFDC,YB110,SUPERVISION/MANAGEMENT SPECIAL,ELECTRICITY,1120,27-Apr-16,82945,11.12,BRITISH GAS,BRI040
EFDC,YB110,SUPERVISION/MANAGEMENT SPECIAL,ELECTRICITY,1120,27-Apr-16,82945,8.11,BRITISH GAS,BRI040
EFDC,YB110,SUPERVISION/MANAGEMENT SPECIAL,ELECTRICITY,1120,27-Apr-16,82945,52.82,BRITISH GAS,BRI040
EFDC,YB110,SUPERVISION/MANAGEMENT SPECIAL,ELECTRICITY,1120,27-Apr-16,82945,67.55,BRITISH GAS,BRI040
EFDC,YB110,SUPERVISION/MANAGEMENT SPECIAL,ELECTRICITY,1120,27-Apr-16,82945,268.67,BRITISH GAS,BRI040
EFDC,YB110,SUPERVISION/MANAGEMENT SPECIAL,ELECTRICITY,1120,27-Apr-16,82945,14.13,BRITISH GAS,BRI040
EFDC,YB110,SUPERVISION/MANAGEMENT SPECIAL,ELECTRICITY,1120,27-Apr-16,82945,14.19,BRITISH GAS,BRI040
EFDC,YB110,SUPERVISION/MANAGEMENT SPECIAL,ELECTRICITY,1120,27-Apr-16,82945,62.44,BRITISH GAS,BRI040
EFDC,YB110,SUPERVISION/MANAGEMENT SPECIAL,ELECTRICITY,1120,27-Apr-16,82945,15.70,BRITISH GAS,BRI040
EFDC,YB110,SUPERVISION/MANAGEMENT SPECIAL,ELECTRICITY,1120,27-Apr-16,82945,23.95,BRITISH GAS,BRI040
EFDC,YB110,SUPERVISION/MANAGEMENT SPECIAL,ELECTRICITY,1120,27-Apr-16,82945,22.08,BRITISH GAS,BRI040
EFDC,YB110,SUPERVISION/MANAGEMENT SPECIAL,ELECTRICITY,1120,27-Apr-16,82945,13.05,BRITISH GAS,BRI040
EFDC,YB110,SUPERVISION/MANAGEMENT SPECIAL,ELECTRICITY,1120,27-Apr-16,82945,24.61,BRITISH GAS,BRI040
EFDC,YB110,SUPERVISION/MANAGEMENT SPECIAL,ELECTRICITY,1120,27-Apr-16,82945,13.80,BRITISH GAS,BRI040
EFDC,YB110,SUPERVISION/MANAGEMENT SPECIAL,ELECTRICITY,1120,27-Apr-16,82945,14.82,BRITISH GAS,BRI040
EFDC,YB110,SUPERVISION/MANAGEMENT SPECIAL,ELECTRICITY,1120,27-Apr-16,82945,11.81,BRITISH GAS,BRI040
EFDC,YB110,SUPERVISION/MANAGEMENT SPECIAL,ELECTRICITY,1120,27-Apr-16,82945,11.17,BRITISH GAS,BRI040
EFDC,YB110,SUPERVISION/MANAGEMENT SPECIAL,ELECTRICITY,1120,27-Apr-16,82945,15.95,BRITISH GAS,BRI040
EFDC,YB110,SUPERVISION/MANAGEMENT SPECIAL,ELECTRICITY,1120,27-Apr-16,82945,154.02,BRITISH GAS,BRI040
EFDC,YB110,SUPERVISION/MANAGEMENT SPECIAL,ELECTRICITY,1120,27-Apr-16,82945,28.51,BRITISH GAS,BRI040
EFDC,YB110,SUPERVISION/MANAGEMENT SPECIAL,ELECTRICITY,1120,27-Apr-16,82945,11.65,BRITISH GAS,BRI040
EFDC,YB110,SUPERVISION/MANAGEMENT SPECIAL,ELECTRICITY,1120,27-Apr-16,82945,42.09,BRITISH GAS,BRI040
EFDC,YB110,SUPERVISION/MANAGEMENT SPECIAL,ELECTRICITY,1120,27-Apr-16,82945,25.47,BRITISH GAS,BRI040
EFDC,YB110,SUPERVISION/MANAGEMENT SPECIAL,ELECTRICITY,1120,27-Apr-16,82945,-29.66,BRITISH GAS,BRI040
EFDC,YB110,SUPERVISION/MANAGEMENT SPECIAL,ELECTRICITY,1120,27-Apr-16,82945,-27.29,BRITISH GAS,BRI040
EFDC,YB110,SUPERVISION/MANAGEMENT SPECIAL,ELECTRICITY,1120,27-Apr-16,82945,-31.35,BRITISH GAS,BRI040
EFDC,YB110,SUPERVISION/MANAGEMENT SPECIAL,ELECTRICITY,1120,27-Apr-16,82945,12.61,BRITISH GAS,BRI040
EFDC,YB110,SUPERVISION/MANAGEMENT SPECIAL,ELECTRICITY,1120,27-Apr-16,82945,11.56,BRITISH GAS,BRI040
EFDC,YB110,SUPERVISION/MANAGEMENT SPECIAL,ELECTRICITY,1120,27-Apr-16,82945,-50.25,BRITISH GAS,BRI040
EFDC,YB110,SUPERVISION/MANAGEMENT SPECIAL,ELECTRICITY,1120,27-Apr-16,82945,13.87,BRITISH GAS,BRI040
EFDC,YB110,SUPERVISION/MANAGEMENT SPECIAL,ELECTRICITY,1120,27-Apr-16,82945,12.82,BRITISH GAS,BRI040
EFDC,YB110,SUPERVISION/MANAGEMENT SPECIAL,ELECTRICITY,1120,27-Apr-16,82945,7.26,BRITISH GAS,BRI040
EFDC,YB110,SUPERVISION/MANAGEMENT SPECIAL,ELECTRICITY,1120,27-Apr-16,82945,11.17,BRITISH GAS,BRI040
EFDC,YB110,SUPERVISION/MANAGEMENT SPECIAL,ELECTRICITY,1120,27-Apr-16,82945,42.91,BRITISH GAS,BRI040
EFDC,YB110,SUPERVISION/MANAGEMENT SPECIAL,ELECTRICITY,1120,27-Apr-16,82945,5.59,BRITISH GAS,BRI040
EFDC,YB110,SUPERVISION/MANAGEMENT SPECIAL,ELECTRICITY,1120,27-Apr-16,82945,10.44,BRITISH GAS,BRI040
EFDC,YB110,SUPERVISION/MANAGEMENT SPECIAL,ELECTRICITY,1120,27-Apr-16,82945,24.53,BRITISH GAS,BRI040
EFDC,YB110,SUPERVISION/MANAGEMENT SPECIAL,ELECTRICITY,1120,27-Apr-16,82945,7.26,BRITISH GAS,BRI040
EFDC,YB110,SUPERVISION/MANAGEMENT SPECIAL,ELECTRICITY,1120,27-Apr-16,82945,11.27,BRITISH GAS,BRI040
EFDC,YB110,SUPERVISION/MANAGEMENT SPECIAL,ELECTRICITY,1120,27-Apr-16,82945,39.12,BRITISH GAS,BRI040
EFDC,YB110,SUPERVISION/MANAGEMENT SPECIAL,ELECTRICITY,1120,27-Apr-16,82945,13.26,BRITISH GAS,BRI040
EFDC,YB110,SUPERVISION/MANAGEMENT SPECIAL,ELECTRICITY,1120,27-Apr-16,82945,13.23,BRITISH GAS,BRI040
EFDC,YB110,SUPERVISION/MANAGEMENT SPECIAL,ELECTRICITY,1120,27-Apr-16,82945,14.28,BRITISH GAS,BRI040
EFDC,YB110,SUPERVISION/MANAGEMENT SPECIAL,ELECTRICITY,1120,27-Apr-16,82945,14.57,BRITISH GAS,BRI040
EFDC,YB110,SUPERVISION/MANAGEMENT SPECIAL,ELECTRICITY,1120,27-Apr-16,82945,49.16,BRITISH GAS,BRI040
EFDC,YB110,SUPERVISION/MANAGEMENT SPECIAL,ELECTRICITY,1120,27-Apr-16,82945,64.28,BRITISH GAS,BRI040
EFDC,YB110,SUPERVISION/MANAGEMENT SPECIAL,ELECTRICITY,1120,27-Apr-16,82945,64.27,BRITISH GAS,BRI040
EFDC,YB110,SUPERVISION/MANAGEMENT SPECIAL,ELECTRICITY,1120,27-Apr-16,82945,123.67,BRITISH GAS,BRI040
EFDC,YB110,SUPERVISION/MANAGEMENT SPECIAL,ELECTRICITY,1120,27-Apr-16,82945,12.71,BRITISH GAS,BRI040
EFDC,YB110,SUPERVISION/MANAGEMENT SPECIAL,ELECTRICITY,1120,27-Apr-16,82945,84.70,BRITISH GAS,BRI040
EFDC,YB110,SUPERVISION/MANAGEMENT SPECIAL,ELECTRICITY,1120,27-Apr-16,82945,11.96,BRITISH GAS,BRI040
EFDC,YB110,SUPERVISION/MANAGEMENT SPECIAL,ELECTRICITY,1120,27-Apr-16,82945,7.46,BRITISH GAS,BRI040
EFDC,YB110,SUPERVISION/MANAGEMENT SPECIAL,ELECTRICITY,1120,27-Apr-16,82945,7.45,BRITISH GAS,BRI040
EFDC,YB110,SUPERVISION/MANAGEMENT SPECIAL,ELECTRICITY,1120,27-Apr-16,82945,81.10,BRITISH GAS,BRI040
EFDC,YB110,SUPERVISION/MANAGEMENT SPECIAL,ELECTRICITY,1120,27-Apr-16,82945,14.30,BRITISH GAS,BRI040
EFDC,YB110,SUPERVISION/MANAGEMENT SPECIAL,ELECTRICITY,1120,27-Apr-16,82945,73.81,BRITISH GAS,BRI040
EFDC,YB110,SUPERVISION/MANAGEMENT SPECIAL,ELECTRICITY,1120,27-Apr-16,82945,69.47,BRITISH GAS,BRI040
EFDC,YB110,SUPERVISION/MANAGEMENT SPECIAL,ELECTRICITY,1120,27-Apr-16,82945,10.81,BRITISH GAS,BRI040
EFDC,YB110,SUPERVISION/MANAGEMENT SPECIAL,ELECTRICITY,1120,27-Apr-16,82945,6.74,BRITISH GAS,BRI040
EFDC,YB110,SUPERVISION/MANAGEMENT SPECIAL,ELECTRICITY,1120,27-Apr-16,82945,14.00,BRITISH GAS,BRI040
EFDC,YB110,SUPERVISION/MANAGEMENT SPECIAL,ELECTRICITY,1120,27-Apr-16,82945,14.92,BRITISH GAS,BRI040
EFDC,YB110,SUPERVISION/MANAGEMENT SPECIAL,ELECTRICITY,1120,27-Apr-16,82945,12.98,BRITISH GAS,BRI040
EFDC,YB110,SUPERVISION/MANAGEMENT SPECIAL,ELECTRICITY,1120,27-Apr-16,82945,26.87,BRITISH GAS,BRI040
EFDC,YB110,SUPERVISION/MANAGEMENT SPECIAL,ELECTRICITY,1120,27-Apr-16,82945,28.15,BRITISH GAS,BRI040
EFDC,YB110,SUPERVISION/MANAGEMENT SPECIAL,ELECTRICITY,1120,27-Apr-16,82945,14.03,BRITISH GAS,BRI040
EFDC,YB110,SUPERVISION/MANAGEMENT SPECIAL,ELECTRICITY,1120,27-Apr-16,82945,32.72,BRITISH GAS,BRI040
EFDC,YB110,SUPERVISION/MANAGEMENT SPECIAL,ELECTRICITY,1120,27-Apr-16,82945,13.32,BRITISH GAS,BRI040
EFDC,YB110,SUPERVISION/MANAGEMENT SPECIAL,ELECTRICITY,1120,27-Apr-16,82945,11.57,BRITISH GAS,BRI040
EFDC,YB110,SUPERVISION/MANAGEMENT SPECIAL,ELECTRICITY,1120,27-Apr-16,82945,30.33,BRITISH GAS,BRI040
EFDC,YB110,SUPERVISION/MANAGEMENT SPECIAL,ELECTRICITY,1120,27-Apr-16,82945,10.51,BRITISH GAS,BRI040
EFDC,YB110,SUPERVISION/MANAGEMENT SPECIAL,ELECTRICITY,1120,27-Apr-16,82945,10.50,BRITISH GAS,BRI040
EFDC,YB110,SUPERVISION/MANAGEMENT SPECIAL,ELECTRICITY,1120,27-Apr-16,82945,20.00,BRITISH GAS,BRI040
EFDC,YB110,SUPERVISION/MANAGEMENT SPECIAL,ELECTRICITY,1120,27-Apr-16,82945,7.12,BRITISH GAS,BRI040
EFDC,YB110,SUPERVISION/MANAGEMENT SPECIAL,ELECTRICITY,1120,27-Apr-16,82945,5.95,BRITISH GAS,BRI040
EFDC,YB110,SUPERVISION/MANAGEMENT SPECIAL,ELECTRICITY,1120,27-Apr-16,82945,8.90,BRITISH GAS,BRI040
EFDC,YB110,SUPERVISION/MANAGEMENT SPECIAL,ELECTRICITY,1120,27-Apr-16,82945,6.86,BRITISH GAS,BRI040
EFDC,YB110,SUPERVISION/MANAGEMENT SPECIAL,ELECTRICITY,1120,27-Apr-16,82945,7.02,BRITISH GAS,BRI040
EFDC,YB110,SUPERVISION/MANAGEMENT SPECIAL,ELECTRICITY,1120,27-Apr-16,82945,7.49,BRITISH GAS,BRI040
EFDC,YB110,SUPERVISION/MANAGEMENT SPECIAL,ELECTRICITY,1120,27-Apr-16,82945,6.62,BRITISH GAS,BRI040
EFDC,YB110,SUPERVISION/MANAGEMENT SPECIAL,ELECTRICITY,1120,27-Apr-16,82945,7.83,BRITISH GAS,BRI040
EFDC,YB110,SUPERVISION/MANAGEMENT SPECIAL,ELECTRICITY,1120,27-Apr-16,82945,6.19,BRITISH GAS,BRI040
EFDC,YB110,SUPERVISION/MANAGEMENT SPECIAL,ELECTRICITY,1120,27-Apr-16,82945,7.12,BRITISH GAS,BRI040
EFDC,YB110,SUPERVISION/MANAGEMENT SPECIAL,ELECTRICITY,1120,27-Apr-16,82945,8.92,BRITISH GAS,BRI040
EFDC,YB110,SUPERVISION/MANAGEMENT SPECIAL,ELECTRICITY,1120,27-Apr-16,82945,7.52,BRITISH GAS,BRI040
EFDC,YB110,SUPERVISION/MANAGEMENT SPECIAL,ELECTRICITY,1120,27-Apr-16,82945,-79.23,BRITISH GAS,BRI040
EFDC,YB110,SUPERVISION/MANAGEMENT SPECIAL,ELECTRICITY,1120,27-Apr-16,82945,-107.07,BRITISH GAS,BRI040
EFDC,YB110,SUPERVISION/MANAGEMENT SPECIAL,ELECTRICITY,1120,27-Apr-16,82945,-41.55,BRITISH GAS,BRI040
EFDC,YB110,SUPERVISION/MANAGEMENT SPECIAL,ELECTRICITY,1120,27-Apr-16,82945,-91.96,BRITISH GAS,BRI040
EFDC,YB110,SUPERVISION/MANAGEMENT SPECIAL,ELECTRICITY,1120,27-Apr-16,82945,-105.56,BRITISH GAS,BRI040
EFDC,YB110,SUPERVISION/MANAGEMENT SPECIAL,ELECTRICITY,1120,27-Apr-16,82945,-81.34,BRITISH GAS,BRI040
EFDC,YB110,SUPERVISION/MANAGEMENT SPECIAL,ELECTRICITY,1120,27-Apr-16,82945,38.91,BRITISH GAS,BRI040
EFDC,YB110,SUPERVISION/MANAGEMENT SPECIAL,ELECTRICITY,1120,27-Apr-16,82945,-96.80,BRITISH GAS,BRI040
EFDC,YB110,SUPERVISION/MANAGEMENT SPECIAL,ELECTRICITY,1120,27-Apr-16,82945,-88.30,BRITISH GAS,BRI040
EFDC,YB110,SUPERVISION/MANAGEMENT SPECIAL,ELECTRICITY,1120,27-Apr-16,82945,-94.80,BRITISH GAS,BRI040
EFDC,YB110,SUPERVISION/MANAGEMENT SPECIAL,ELECTRICITY,1120,27-Apr-16,82945,-87.61,BRITISH GAS,BRI040
EFDC,YB110,SUPERVISION/MANAGEMENT SPECIAL,ELECTRICITY,1120,27-Apr-16,82945,-28.19,BRITISH GAS,BRI040
EFDC,YB110,SUPERVISION/MANAGEMENT SPECIAL,ELECTRICITY,1120,27-Apr-16,82945,11.82,BRITISH GAS,BRI040
EFDC,YB110,SUPERVISION/MANAGEMENT SPECIAL,ELECTRICITY,1120,27-Apr-16,82945,18.35,BRITISH GAS,BRI040
EFDC,YB110,SUPERVISION/MANAGEMENT SPECIAL,ELECTRICITY,1120,27-Apr-16,82945,26.41,BRITISH GAS,BRI040
EFDC,YB110,SUPERVISION/MANAGEMENT SPECIAL,ELECTRICITY,1120,27-Apr-16,82945,11.60,BRITISH GAS,BRI040
EFDC,YB110,SUPERVISION/MANAGEMENT SPECIAL,ELECTRICITY,1120,27-Apr-16,82945,12.38,BRITISH GAS,BRI040
EFDC,YB110,SUPERVISION/MANAGEMENT SPECIAL,ELECTRICITY,1120,27-Apr-16,82945,9.88,BRITISH GAS,BRI040
EFDC,YB110,SUPERVISION/MANAGEMENT SPECIAL,ELECTRICITY,1120,27-Apr-16,82945,12.93,BRITISH GAS,BRI040
EFDC,YB110,SUPERVISION/MANAGEMENT SPECIAL,ELECTRICITY,1120,27-Apr-16,82945,14.40,BRITISH GAS,BRI040
EFDC,YB110,SUPERVISION/MANAGEMENT SPECIAL,ELECTRICITY,1120,27-Apr-16,82945,12.47,BRITISH GAS,BRI040
EFDC,YB110,SUPERVISION/MANAGEMENT SPECIAL,ELECTRICITY,1120,27-Apr-16,82945,10.62,BRITISH GAS,BRI040
EFDC,YB110,SUPERVISION/MANAGEMENT SPECIAL,ELECTRICITY,1120,27-Apr-16,82945,15.98,BRITISH GAS,BRI040
EFDC,YB110,SUPERVISION/MANAGEMENT SPECIAL,ELECTRICITY,1120,27-Apr-16,82945,10.16,BRITISH GAS,BRI040
EFDC,YB110,SUPERVISION/MANAGEMENT SPECIAL,ELECTRICITY,1120,27-Apr-16,82945,11.91,BRITISH GAS,BRI040
EFDC,YB110,SUPERVISION/MANAGEMENT SPECIAL,ELECTRICITY,1120,27-Apr-16,82945,16.49,BRITISH GAS,BRI040
EFDC,YB110,SUPERVISION/MANAGEMENT SPECIAL,ELECTRICITY,1120,27-Apr-16,82945,13.30,BRITISH GAS,BRI040
EFDC,YB110,SUPERVISION/MANAGEMENT SPECIAL,ELECTRICITY,1120,27-Apr-16,82945,7.26,BRITISH GAS,BRI040
EFDC,YB110,SUPERVISION/MANAGEMENT SPECIAL,ELECTRICITY,1120,27-Apr-16,82945,15.54,BRITISH GAS,BRI040
EFDC,YB110,SUPERVISION/MANAGEMENT SPECIAL,ELECTRICITY,1120,27-Apr-16,82945,14.71,BRITISH GAS,BRI040
EFDC,YB110,SUPERVISION/MANAGEMENT SPECIAL,ELECTRICITY,1120,27-Apr-16,82945,17.22,BRITISH GAS,BRI040
EFDC,YB110,SUPERVISION/MANAGEMENT SPECIAL,ELECTRICITY,1120,27-Apr-16,82945,14.85,BRITISH GAS,BRI040
EFDC,YB110,SUPERVISION/MANAGEMENT SPECIAL,ELECTRICITY,1120,27-Apr-16,82945,14.38,BRITISH GAS,BRI040
EFDC,YB110,SUPERVISION/MANAGEMENT SPECIAL,ELECTRICITY,1120,27-Apr-16,82945,17.49,BRITISH GAS,BRI040
EFDC,YB110,SUPERVISION/MANAGEMENT SPECIAL,ELECTRICITY,1120,27-Apr-16,82945,16.92,BRITISH GAS,BRI040
EFDC,YB110,SUPERVISION/MANAGEMENT SPECIAL,ELECTRICITY,1120,27-Apr-16,82945,22.15,BRITISH GAS,BRI040
EFDC,YB110,SUPERVISION/MANAGEMENT SPECIAL,ELECTRICITY,1120,27-Apr-16,82945,14.15,BRITISH GAS,BRI040
EFDC,YB110,SUPERVISION/MANAGEMENT SPECIAL,ELECTRICITY,1120,27-Apr-16,82945,17.18,BRITISH GAS,BRI040
EFDC,YB110,SUPERVISION/MANAGEMENT SPECIAL,ELECTRICITY,1120,27-Apr-16,82945,16.05,BRITISH GAS,BRI040
EFDC,YB110,SUPERVISION/MANAGEMENT SPECIAL,ELECTRICITY,1120,27-Apr-16,82945,17.39,BRITISH GAS,BRI040
EFDC,YB110,SUPERVISION/MANAGEMENT SPECIAL,ELECTRICITY,1120,27-Apr-16,82945,16.33,BRITISH GAS,BRI040
EFDC,YB110,SUPERVISION/MANAGEMENT SPECIAL,ELECTRICITY,1120,27-Apr-16,82945,16.78,BRITISH GAS,BRI040
EFDC,YB110,SUPERVISION/MANAGEMENT SPECIAL,ELECTRICITY,1120,27-Apr-16,82945,14.44,BRITISH GAS,BRI040
EFDC,YB110,SUPERVISION/MANAGEMENT SPECIAL,ELECTRICITY,1120,27-Apr-16,82945,17.48,BRITISH GAS,BRI040
EFDC,YB110,SUPERVISION/MANAGEMENT SPECIAL,ELECTRICITY,1120,27-Apr-16,82945,11.23,BRITISH GAS,BRI040
EFDC,YB110,SUPERVISION/MANAGEMENT SPECIAL,ELECTRICITY,1120,27-Apr-16,82945,13.91,BRITISH GAS,BRI040
EFDC,YB110,SUPERVISION/MANAGEMENT SPECIAL,ELECTRICITY,1120,27-Apr-16,82945,11.81,BRITISH GAS,BRI040
EFDC,YB110,SUPERVISION/MANAGEMENT SPECIAL,ELECTRICITY,1120,27-Apr-16,82945,12.34,BRITISH GAS,BRI040
EFDC,YB110,SUPERVISION/MANAGEMENT SPECIAL,ELECTRICITY,1120,27-Apr-16,82945,13.85,BRITISH GAS,BRI040
EFDC,YB110,SUPERVISION/MANAGEMENT SPECIAL,ELECTRICITY,1120,27-Apr-16,82945,18.19,BRITISH GAS,BRI040
EFDC,YB110,SUPERVISION/MANAGEMENT SPECIAL,ELECTRICITY,1120,27-Apr-16,82945,10.24,BRITISH GAS,BRI040
EFDC,YB110,SUPERVISION/MANAGEMENT SPECIAL,ELECTRICITY,1120,27-Apr-16,82945,8.67,BRITISH GAS,BRI040
EFDC,YB110,SUPERVISION/MANAGEMENT SPECIAL,ELECTRICITY,1120,27-Apr-16,82945,6.09,BRITISH GAS,BRI040
EFDC,YB110,SUPERVISION/MANAGEMENT SPECIAL,ELECTRICITY,1120,27-Apr-16,82945,17.13,BRITISH GAS,BRI040
EFDC,YB110,SUPERVISION/MANAGEMENT SPECIAL,ELECTRICITY,1120,27-Apr-16,82945,12.35,BRITISH GAS,BRI040
EFDC,YB110,SUPERVISION/MANAGEMENT SPECIAL,ELECTRICITY,1120,27-Apr-16,82945,15.77,BRITISH GAS,BRI040
EFDC,YB110,SUPERVISION/MANAGEMENT SPECIAL,ELECTRICITY,1120,27-Apr-16,82945,10.34,BRITISH GAS,BRI040
EFDC,YB110,SUPERVISION/MANAGEMENT SPECIAL,ELECTRICITY,1120,27-Apr-16,82945,13.08,BRITISH GAS,BRI040
EFDC,YB110,SUPERVISION/MANAGEMENT SPECIAL,ELECTRICITY,1120,27-Apr-16,82945,14.18,BRITISH GAS,BRI040
EFDC,YB110,SUPERVISION/MANAGEMENT SPECIAL,ELECTRICITY,1120,27-Apr-16,82945,11.63,BRITISH GAS,BRI040
EFDC,YB110,SUPERVISION/MANAGEMENT SPECIAL,ELECTRICITY,1120,27-Apr-16,82945,12.98,BRITISH GAS,BRI040
EFDC,YB110,SUPERVISION/MANAGEMENT SPECIAL,ELECTRICITY,1120,27-Apr-16,82945,6.56,BRITISH GAS,BRI040
EFDC,YB110,SUPERVISION/MANAGEMENT SPECIAL,ELECTRICITY,1120,27-Apr-16,82945,121.00,BRITISH GAS,BRI040
EFDC,YB110,SUPERVISION/MANAGEMENT SPECIAL,ELECTRICITY,1120,27-Apr-16,82945,6.56,BRITISH GAS,BRI040
EFDC,YB110,SUPERVISION/MANAGEMENT SPECIAL,ELECTRICITY,1120,27-Apr-16,82945,6.56,BRITISH GAS,BRI040
EFDC,YB110,SUPERVISION/MANAGEMENT SPECIAL,ELECTRICITY,1120,27-Apr-16,82945,16.80,BRITISH GAS,BRI040
EFDC,YB110,SUPERVISION/MANAGEMENT SPECIAL,ELECTRICITY,1120,27-Apr-16,82945,11.08,BRITISH GAS,BRI040
EFDC,YB110,SUPERVISION/MANAGEMENT SPECIAL,ELECTRICITY,1120,27-Apr-16,82945,13.35,BRITISH GAS,BRI040
EFDC,YB110,SUPERVISION/MANAGEMENT SPECIAL,ELECTRICITY,1120,27-Apr-16,82945,13.17,BRITISH GAS,BRI040
EFDC,YB110,SUPERVISION/MANAGEMENT SPECIAL,ELECTRICITY,1120,27-Apr-16,82945,12.56,BRITISH GAS,BRI040
EFDC,YB110,SUPERVISION/MANAGEMENT SPECIAL,ELECTRICITY,1120,27-Apr-16,82945,32.21,BRITISH GAS,BRI040
EFDC,YB110,SUPERVISION/MANAGEMENT SPECIAL,ELECTRICITY,1120,27-Apr-16,82945,35.31,BRITISH GAS,BRI040
EFDC,YB110,SUPERVISION/MANAGEMENT SPECIAL,ELECTRICITY,1120,27-Apr-16,82945,14.79,BRITISH GAS,BRI040
EFDC,YB110,SUPERVISION/MANAGEMENT SPECIAL,ELECTRICITY,1120,27-Apr-16,82945,20.29,BRITISH GAS,BRI040
EFDC,YB110,SUPERVISION/MANAGEMENT SPECIAL,ELECTRICITY,1120,27-Apr-16,82945,65.70,BRITISH GAS,BRI040
EFDC,YB110,SUPERVISION/MANAGEMENT SPECIAL,ELECTRICITY,1120,27-Apr-16,82945,11.54,BRITISH GAS,BRI040
EFDC,YB110,SUPERVISION/MANAGEMENT SPECIAL,ELECTRICITY,1120,27-Apr-16,82945,20.74,BRITISH GAS,BRI040
EFDC,YB110,SUPERVISION/MANAGEMENT SPECIAL,ELECTRICITY,1120,27-Apr-16,82945,23.05,BRITISH GAS,BRI040
EFDC,YB110,SUPERVISION/MANAGEMENT SPECIAL,ELECTRICITY,1120,27-Apr-16,82945,12.18,BRITISH GAS,BRI040
EFDC,YB110,SUPERVISION/MANAGEMENT SPECIAL,ELECTRICITY,1120,27-Apr-16,82945,14.83,BRITISH GAS,BRI040
EFDC,YB110,SUPERVISION/MANAGEMENT SPECIAL,ELECTRICITY,1120,27-Apr-16,82945,13.29,BRITISH GAS,BRI040
EFDC,YB110,SUPERVISION/MANAGEMENT SPECIAL,ELECTRICITY,1120,27-Apr-16,82945,15.60,BRITISH GAS,BRI040
EFDC,YB110,SUPERVISION/MANAGEMENT SPECIAL,ELECTRICITY,1120,27-Apr-16,82945,10.95,BRITISH GAS,BRI040
EFDC,YB110,SUPERVISION/MANAGEMENT SPECIAL,ELECTRICITY,1120,27-Apr-16,82945,10.89,BRITISH GAS,BRI040
EFDC,YB110,SUPERVISION/MANAGEMENT SPECIAL,ELECTRICITY,1120,27-Apr-16,82945,11.54,BRITISH GAS,BRI040
EFDC,YB110,SUPERVISION/MANAGEMENT SPECIAL,ELECTRICITY,1120,27-Apr-16,82945,11.17,BRITISH GAS,BRI040
EFDC,YB110,SUPERVISION/MANAGEMENT SPECIAL,ELECTRICITY,1120,27-Apr-16,82945,15.94,BRITISH GAS,BRI040
EFDC,YB110,SUPERVISION/MANAGEMENT SPECIAL,ELECTRICITY,1120,27-Apr-16,82945,18.37,BRITISH GAS,BRI040
EFDC,YB110,SUPERVISION/MANAGEMENT SPECIAL,ELECTRICITY,1120,27-Apr-16,82945,50.77,BRITISH GAS,BRI040
EFDC,YB110,SUPERVISION/MANAGEMENT SPECIAL,ELECTRICITY,1120,27-Apr-16,82945,6.37,BRITISH GAS,BRI040
EFDC,YB110,SUPERVISION/MANAGEMENT SPECIAL,ELECTRICITY,1120,27-Apr-16,82945,13.38,BRITISH GAS,BRI040
EFDC,YB110,SUPERVISION/MANAGEMENT SPECIAL,ELECTRICITY,1120,27-Apr-16,82945,12.89,BRITISH GAS,BRI040
EFDC,YB110,SUPERVISION/MANAGEMENT SPECIAL,ELECTRICITY,1120,27-Apr-16,82945,21.27,BRITISH GAS,BRI040
EFDC,YB110,SUPERVISION/MANAGEMENT SPECIAL,ELECTRICITY,1120,27-Apr-16,82945,28.37,BRITISH GAS,BRI040
EFDC,YB110,SUPERVISION/MANAGEMENT SPECIAL,ELECTRICITY,1120,27-Apr-16,82945,-96.34,BRITISH GAS,BRI040
EFDC,YB110,SUPERVISION/MANAGEMENT SPECIAL,ELECTRICITY,1120,27-Apr-16,82945,-128.48,BRITISH GAS,BRI040
EFDC,YB110,SUPERVISION/MANAGEMENT SPECIAL,ELECTRICITY,1120,27-Apr-16,82945,-99.66,BRITISH GAS,BRI040
EFDC,YB110,SUPERVISION/MANAGEMENT SPECIAL,ELECTRICITY,1120,27-Apr-16,82945,-132.93,BRITISH GAS,BRI040
EFDC,YB110,SUPERVISION/MANAGEMENT SPECIAL,ELECTRICITY,1120,27-Apr-16,82945,-100.72,BRITISH GAS,BRI040
EFDC,YB110,SUPERVISION/MANAGEMENT SPECIAL,ELECTRICITY,1120,27-Apr-16,82945,-134.33,BRITISH GAS,BRI040
EFDC,YB110,SUPERVISION/MANAGEMENT SPECIAL,ELECTRICITY,1120,27-Apr-16,82945,-98.04,BRITISH GAS,BRI040
EFDC,YB110,SUPERVISION/MANAGEMENT SPECIAL,ELECTRICITY,1120,27-Apr-16,82945,-130.75,BRITISH GAS,BRI040
EFDC,YB110,SUPERVISION/MANAGEMENT SPECIAL,ELECTRICITY,1120,27-Apr-16,82945,-106.68,BRITISH GAS,BRI040
EFDC,YB110,SUPERVISION/MANAGEMENT SPECIAL,ELECTRICITY,1120,27-Apr-16,82945,-142.28,BRITISH GAS,BRI040
EFDC,YB110,SUPERVISION/MANAGEMENT SPECIAL,ELECTRICITY,1120,27-Apr-16,82945,-93.64,BRITISH GAS,BRI040
EFDC,YB110,SUPERVISION/MANAGEMENT SPECIAL,ELECTRICITY,1120,27-Apr-16,82945,-124.89,BRITISH GAS,BRI040
EFDC,YB110,SUPERVISION/MANAGEMENT SPECIAL,ELECTRICITY,1120,27-Apr-16,82945,330.11,BRITISH GAS,BRI040
EFDC,YB110,SUPERVISION/MANAGEMENT SPECIAL,ELECTRICITY,1120,27-Apr-16,82945,440.28,BRITISH GAS,BRI040
EFDC,YB110,SUPERVISION/MANAGEMENT SPECIAL,ELECTRICITY,1120,27-Apr-16,82945,11.48,BRITISH GAS,BRI040
EFDC,YB110,SUPERVISION/MANAGEMENT SPECIAL,ELECTRICITY,1120,27-Apr-16,82945,15.30,BRITISH GAS,BRI040
EFDC,YB110,SUPERVISION/MANAGEMENT SPECIAL,ELECTRICITY,1120,27-Apr-16,82945,70.06,BRITISH GAS,BRI040
EFDC,YB110,SUPERVISION/MANAGEMENT SPECIAL,ELECTRICITY,1120,27-Apr-16,82945,7.49,BRITISH GAS,BRI040
EFDC,YB110,SUPERVISION/MANAGEMENT SPECIAL,ELECTRICITY,1120,27-Apr-16,82945,7.49,BRITISH GAS,BRI040
EFDC,YB110,SUPERVISION/MANAGEMENT SPECIAL,ELECTRICITY,1120,27-Apr-16,82945,7.26,BRITISH GAS,BRI040
EFDC,YB110,SUPERVISION/MANAGEMENT SPECIAL,ELECTRICITY,1120,27-Apr-16,82945,9.59,BRITISH GAS,BRI040
EFDC,YB110,SUPERVISION/MANAGEMENT SPECIAL,ELECTRICITY,1120,27-Apr-16,82945,33.06,BRITISH GAS,BRI040
EFDC,YB110,SUPERVISION/MANAGEMENT SPECIAL,ELECTRICITY,1120,27-Apr-16,82945,11.57,BRITISH GAS,BRI040
EFDC,YB110,SUPERVISION/MANAGEMENT SPECIAL,ELECTRICITY,1120,27-Apr-16,82945,15.09,BRITISH GAS,BRI040
EFDC,YB110,SUPERVISION/MANAGEMENT SPECIAL,ELECTRICITY,1120,27-Apr-16,82945,12.45,BRITISH GAS,BRI040
EFDC,YB110,SUPERVISION/MANAGEMENT SPECIAL,ELECTRICITY,1120,27-Apr-16,82945,31.87,BRITISH GAS,BRI040
EFDC,YB110,SUPERVISION/MANAGEMENT SPECIAL,ELECTRICITY,1120,27-Apr-16,82945,73.77,BRITISH GAS,BRI040
EFDC,YB110,SUPERVISION/MANAGEMENT SPECIAL,ELECTRICITY,1120,27-Apr-16,82945,89.04,BRITISH GAS,BRI040
EFDC,YB110,SUPERVISION/MANAGEMENT SPECIAL,ELECTRICITY,1120,27-Apr-16,82945,10.14,BRITISH GAS,BRI040
EFDC,YB110,SUPERVISION/MANAGEMENT SPECIAL,ELECTRICITY,1120,27-Apr-16,82945,10.49,BRITISH GAS,BRI040
EFDC,YB110,SUPERVISION/MANAGEMENT SPECIAL,ELECTRICITY,1120,27-Apr-16,82945,9.62,BRITISH GAS,BRI040
EFDC,YB110,SUPERVISION/MANAGEMENT SPECIAL,ELECTRICITY,1120,27-Apr-16,82945,39.77,BRITISH GAS,BRI040
EFDC,YB110,SUPERVISION/MANAGEMENT SPECIAL,ELECTRICITY,1120,27-Apr-16,82945,17.64,BRITISH GAS,BRI040
EFDC,YB110,SUPERVISION/MANAGEMENT SPECIAL,ELECTRICITY,1120,27-Apr-16,82945,-54.47,BRITISH GAS,BRI040
EFDC,YB110,SUPERVISION/MANAGEMENT SPECIAL,ELECTRICITY,1120,27-Apr-16,82945,86.83,BRITISH GAS,BRI040
EFDC,YB110,SUPERVISION/MANAGEMENT SPECIAL,ELECTRICITY,1120,27-Apr-16,82945,13.26,BRITISH GAS,BRI040
EFDC,YB110,SUPERVISION/MANAGEMENT SPECIAL,ELECTRICITY,1120,27-Apr-16,82945,41.23,BRITISH GAS,BRI040
EFDC,YB110,SUPERVISION/MANAGEMENT SPECIAL,ELECTRICITY,1120,27-Apr-16,82945,101.23,BRITISH GAS,BRI040
EFDC,YB110,SUPERVISION/MANAGEMENT SPECIAL,ELECTRICITY,1120,27-Apr-16,82945,87.95,BRITISH GAS,BRI040
